Workbook

Sheet Sondages (hidden)
A1: Sondages
A2: À programmer | L2: Légende
A3: 1- Conversion azimut-plongée vers cosinus directeurs (système main droite, composante z du cosinus directeur négative) | M3: valeurs à entrer
A4: 2- Conversion cosinus directeur vers azimut-plongée (angle de plongée positif pour un vecteur qui pointe vers le bas) | M4: valeurs calculées
A5: 3- Conversion épaisseur observée en forage vers épaisseur vraie selon le JO | M5: exemple de résultat que vous devriez obtenir
A6: 4- Conversion épaisseur vraie vers épaisseur observée en forage selon le JO
A7: 5- Conversion orientation d'un plan en convention géologique vers le pôle du plan (cosinus directeurs)
A8: 6- Conversion pôle du plan (cosinus directeurs) vers orientation du plan en convention géologique
A9: 7- Calcul du JO à partir des cosinus directeurs du pôle du plan et du forage
A10: 8- Calcul de la distance entre le collet d'un forage et le plan étant donné les cosinus directeurs du forage et du pôle et un point connu du plan
A11: 9- Calcul de l'inclinaison apparente d'un forage projeté sur une section verticale, les deux spécifiés par leurs cosinus directeurs
A12: 10- Calcul de l'inclinaison apparente d'un plan intercepté par une section verticale
A13: 11- Calcul de l'orientation d'un plan à partir des JO observés dans trois forages non parallèles
A14: 12- Composites et coordonnées
A16: 1- Conversion azimut-plongée d'un vecteur vers cosinus directeurs (système main droite, composante z du cosinus directeur négative); coordonnées angles égaux et aires égales
C17: cosinus directeur | G17: coord. aires égales | I17: coord. angles égaux | N17: cosinus directeur | R17: coord. aires égales | T17: coord. angles égaux
A18: azimut | B18: plongée | C18: a | D18: b | E18: c | F18: norme | G18: x | H18: y | I18: x | J18: y | L18: azimut | M18: plongée | N18: a | O18: b | P18: c | Q18: norme | R18: x | S18: y | T18: x | U18: y
A19: 325 | B19: 60 | L19: 325 | M19: 60 | N19: -0.2867882182 | O19: 0.4095760221 | P19: -0.8660254038 | Q19: 1 | R19: -0.2099435467 | S19: 0.2998304578 | T19: -0.1536893429 | U19: 0.2194911287
A21: 2- Conversion cosinus directeur vers azimut-plongée (angle de plongée positif pour un vecteur qui pointe vers le bas)
A22: azimut | B22: plongée | C22: a | D22: b | E22: c | F22: norme | L22: azimut | M22: plongée | N22: a | O22: b | P22: c | Q22: norme
C23: -0.3686878265 | D23: -0.5265407845 | E23: -0.7660444431 | F23: =C23^2+D23^2+E23^2 -> 1 | L23: =IF(90-DEGREES(ATAN2(N23,O23))<0,90+360-DEGREES(ATAN2(N23,O23)),90-DEGREES(ATAN2(N23,O23))) -> 215 | M23: =-DEGREES(ASIN(P23)) -> 50 | N23: -0.3686878265 | O23: -0.5265407845 | P23: -0.7660444431 | Q23: =N23^2+O23^2+P23^2 -> 1
A25: 3- Conversion épaisseur observée en forage vers épaisseur vraie selon le JO
A26: JO | B26: e_obs | C26: e_vraie | L26: JO | M26: e_obs | N26: e_vraie
A27: 35 | B27: 2.8 | L27: 35 | M27: 2.8 | N27: 1.606014022
A29: 4- Conversion épaisseur vraie vers épaisseur observée en forage selon le JO
A30: JO | B30: e_obs | C30: e_vraie | L30: JO | M30: e_obs | N30: e_vraie
A31: 55 | C31: 2.2 | L31: 55 | M31: 2.685704095 | N31: 2.2
A33: 5- Conversion orientation d'un plan en convention géologique vers le pôle du plan
A34: Plan | C34: Pôle | E34: Pôle | L34: Plan | N34: Pôle | P34: Pôle
A35: azimut | B35: pendage | C35: azimut | D35: plongée | E35: a | F35: b | G35: c | L35: azimut | M35: pendage | N35: azimut | O35: plongée | P35: a | Q35: b | R35: c
A36: 45 | B36: 50 | C36: =IF(A36-90<0,A36+270,A36-90) -> 315 | D36: =90-B36 -> 40 | E36: =COS(RADIANS(D36))*SIN(RADIANS(C36)) -> -0.5416752204 | F36: =COS(RADIANS(D36))*COS(RADIANS(C36)) -> 0.5416752204 | G36: =-SIN(RADIANS(D36)) -> -0.6427876097 | L36: 45 | M36: 50 | N36: 315 | O36: 40 | P36: -0.5416752204 | Q36: 0.5416752204 | R36: -0.6427876097
A38: 6- Conversion pôle du plan vers orientation du plan en convention géologique
A39: Plan | C39: Pôle | E39: Pôle | L39: Plan | N39: Pôle | P39: Pôle
A40: azimut | B40: pendage | C40: azimut | D40: plongée | E40: a | F40: b | G40: c | L40: azimut | M40: pendage | N40: azimut | O40: plongée | P40: a | Q40: b | R40: c
A41: =MOD(C41+90,360) -> 45 | B41: =90-D41 -> 50 | C41: 315 | D41: 40 | E41: =COS(RADIANS(D41))*SIN(RADIANS(C41)) -> -0.5416752204 | F41: =COS(RADIANS(D41))*COS(RADIANS(C41)) -> 0.5416752204 | G41: =-SIN(RADIANS(D41)) -> -0.6427876097 | L41: 45 | M41: 50 | N41: 315 | O41: 40 | P41: -0.5416752204 | Q41: 0.5416752204 | R41: -0.6427876097
A43: 7- Calcul du JO à partir des orientations du plan (convention géologique) et du forage
A44: Plan | C44: Pôle | E44: Pôle | L44: Plan | N44: Pôle | P44: Pôle
A45: azimut | B45: pendage | C45: azimut | D45: plongée | E45: a | F45: b | G45: c | L45: azimut | M45: pendage | N45: azimut | O45: plongée | P45: a | Q45: b | R45: c
A46: 135 | B46: 50 | C46: =IF(A46-90<0,A46+270,A46-90) -> 45 | D46: =90-B46 -> 40 | E46: =COS(RADIANS(D46))*SIN(RADIANS(C46)) -> 0.5416752204 | F46: =COS(RADIANS(D46))*COS(RADIANS(C46)) -> 0.5416752204 | G46: =-SIN(RADIANS(D46)) -> -0.6427876097 | L46: 135 | M46: 50 | N46: 45 | O46: 40 | P46: 0.5416752204 | Q46: 0.5416752204 | R46: -0.6427876097
A47: Forage | L47: Forage
A48: azimut | B48: plongée | G48: JO | L48: azimut | M48: plongée | R48: JO
A49: 90 | B49: 80 | C49: =COS(RADIANS(B49))*SIN(RADIANS(A49)) -> 0.1736481777 | D49: =COS(RADIANS(B49))*COS(RADIANS(A49)) -> 1.063723983e-17 | E49: =-SIN(RADIANS(B49)) -> -0.984807753 | G49: =90-DEGREES(ACOS(C49*E46+D49*F46+E49*G46)) -> 46.64241721 | L49: 90 | M49: 80 | N49: 0.1736481777 | O49: 1.063723983e-17 | P49: -0.984807753 | R49: 46.64241721
A51: 8- Calcul de la distance entre le collet d'un forage et le plan
B52: x | C52: y | D52: z
A53: Collet | B53: 100 | C53: 100 | D53: 200
A54: Point connu dans le plan | B54: 50 | C54: 0 | D54: -100
B55: azimut | C55: pendage ou plongée | D55: pôle azimut | E55: pôle plongée | F55: cosinus directeurs | J55: Distance | K55: Coordonnées du point d'intersection
A56: plan (conv. géol.) | B56: 350 | C56: 30 | D56: =IF(B56-90<0,B56+270,B56-90) -> 260 | E56: =90-C56 -> 60 | F56: =COS(RADIANS(E56))*SIN(RADIANS(D56)) -> -0.4924038765 | G56: =COS(RADIANS(E56))*COS(RADIANS(D56)) -> -0.08682408883 | H56: =-SIN(RADIANS(E56)) -> -0.8660254038 | K56: x | L56: y | M56: z | P56: x | Q56: y | R56: z
A57: forage | D57: 270 | E57: 80 | F57: -0.1736481777 | G57: -3.191171948e-17 | H57: -0.984807753 | O57: 312.3598468 | P57: 45.75928183 | Q57: 100 | R57: -107.6143988
A59: 9- Calcul de l'inclinaison apparente d'un forage projeté sur une section verticale
B60: azimut | C60: pendage ou plongée | D60: cosinus directeurs
A61: section verticale (conv. géol) | B61: 90 | H61: plongée apparente
A62: v. horizontal dans section | B62: =B61 -> 90 | C62: 0 | D62: =COS(RADIANS(C62))*SIN(RADIANS(B62)) -> 1 | E62: =COS(RADIANS(C62))*COS(RADIANS(B62)) -> 6.125742275e-17 | F62: =-SIN(RADIANS(C62)) -> 0 | H62: =ABS(DEGREES(ATAN(F63/(D62*D63+E62*E63)))) -> 61.65922558
A63: forage | B63: 220 | C63: 50 | D63: -0.4131759112 | E63: -0.4924038765 | F63: -0.7660444431
A65: 10- Calcul du pendage apparent d'un plan sur une section verticale
B66: azimut | C66: pendage ou plongée | D66: cosinus directeurs
A67: section verticale (conv. géol) | B67: 90 | H67: pendage apparent
A68: v. horizontal dans section | B68: =B67 -> 90 | C68: 0 | D68: =COS(RADIANS(C68))*SIN(RADIANS(B68)) -> 1 | E68: =COS(RADIANS(C68))*COS(RADIANS(B68)) -> 6.125742275e-17 | F68: =-SIN(RADIANS(C68)) -> 0 | H68: =ABS(DEGREES(ATAN((D68*D70+E68*E70)/F70))) -> 22.76047627
A69: plan (conv. géol.) | B69: 60 | C69: 40
A70: pôle du plan | B70: =IF(B69-90<0,B69+270,B69-90) -> 330 | C70: =90-C69 -> 50 | D70: =COS(RADIANS(C70))*SIN(RADIANS(B70)) -> -0.3213938048 | E70: =COS(RADIANS(C70))*COS(RADIANS(B70)) -> 0.5566703992 | F70: =-SIN(RADIANS(C70)) -> -0.7660444431
A73: 11- Calcul de l'orientation d'un plan à partir des JO observés dans trois forages non parallèles
B74: angle | C74: angle complémentaire | D74: cosinus de l'angle complémentaire
A75: JO1 | B75: 54.6 | C75: =90-B75 -> 35.4 | D75: =COS(RADIANS(C75)) -> 0.8151277957
A76: JO2 | B76: 60.92 | C76: =90-B76 -> 29.08 | D76: =COS(RADIANS(C76)) -> 0.8739419329
A77: JO3 | B77: 62.38 | C77: 27.62 | D77: 0.8860418044 | J77: azimut | K77: pendage
B78: azimut | C78: plongée | D78: a | E78: b | F78: c | H78: v. unitaire du plan | I78: plan | J78: =IF(90-DEGREES(ATAN2(H79,H80))<0,90+360-DEGREES(ATAN2(H79,H80)),90-DEGREES(ATAN2(H79,H80))) -> 325.228449 | K78: =-DEGREES(ASIN(H81)) -> 60.03197979
A79: forage1 | B79: 270 | C79: 45 | D79: =COS(RADIANS(C79))*SIN(RADIANS(B79)) -> -0.7071067812 | E79: =COS(RADIANS(C79))*COS(RADIANS(B79)) -> -1.299466171e-16 | F79: =-SIN(RADIANS(C79)) -> -0.7071067812 | H79: =MMULT(MINVERSE(D79:F81),D75:D77) -> -0.2864604386 | I79: a
A80: forage2 | B80: 270 | C80: 55 | D80: -0.5735764364 | E80: -1.054074427e-16 | F80: -0.8191520443 | H80: 0.4125995572 | I80: b
A81: forage3 | B81: 260 | C81: 70 | D81: -0.3368240888 | E81: -0.05939117461 | F81: -0.9396926208 | H81: -0.8663043452 | I81: c
H82: =H79^2+H80^2+H81^2 -> 1.002781196 | I82: norme
A84: Note: si la norme du vecteur solution est trop éloignée de 1, c'est dû soit à des erreurs sur les JO , soit que ce n'est pas un plan.
A86: 12- Composites et coordonnées
B87: x | C87: y | D87: z | E87: azimut | F87: plongée | H87: Longueur des composites
A88: Collet | B88: 100 | C88: 100 | D88: 100 | E88: 270 | F88: 70 | H88: 3
B90: à | C90: azimut | D90: plongée | E90: vecteurs unitaires | H90: Point milieu | I90: Coordonnées du point milieu
B91: 0 | C91: =E88 -> 270 | D91: =F88 -> 70 | E91: =COS(RADIANS(D91))*SIN(RADIANS(C91)) -> -0.3420201433 | F91: =COS(RADIANS(D91))*COS(RADIANS(C91)) -> -6.285381752e-17 | G91: =-SIN(RADIANS(D91)) -> -0.9396926208 | H91: à | I91: x | J91: y | K91: z
A92: Déviation | B92: 50 | C92: 275 | D92: 67 | E92: -0.3892442786 | F92: 0.03405446172 | G92: -0.9205048535 | H92: =(B91+B92)/2 -> 25 | I92: =B$88+E91*($B92-$B91) -> 82.89899283 | J92: =C$88+F91*($B92-$B91) -> 100 | K92: =D$88+G91*($B92-$B91) -> 53.01536896
B93: 100 | C93: 280 | D93: 65 | E93: -0.4161977407 | F93: 0.073386891 | G93: -0.906307787 | H93: =(B92+B93)/2 -> 75 | I93: =I92+($H93-$H92)*E92 -> 63.4367789 | J93: =J92+($H93-$H92)*F92 -> 101.7027231 | K93: 6.990126288
B94: 150 | C94: 282 | D94: 60 | E94: -0.4890738004 | F94: 0.1039558454 | G94: -0.8660254038 | H94: 125 | I94: =I93+($H94-$H93)*E93 -> 42.62689187 | J94: 105.3720676 | K94: -38.32526306
B95: 200 | C95: 285 | D95: 58 | E95: -0.5118627032 | F95: 0.137153198 | G95: -0.8480480962 | H95: 175 | I95: 18.17320185 | J95: 110.5698599 | K95: -81.62653325
B97: de | C97: à | D97: teneur(%) | E97: l | F97: lc1 | G97: lc2 | H97: lc3 | I97: lc4 | J97: lc5 | K97: lc6 | L97: ….
A98: Analyse | B98: 120 | C98: 122.3 | D98: 2.72 | E98: =MIN($C$98-$B$98,3) -> 2.3 | F98: =MAX(MIN($H$88,E98),0) -> 2.3 | G98: =MAX(MIN($H$88,$E98-SUM($F98:F98)),0) -> 0 | H98: =MAX(MIN($H$88,$E98-SUM($F98:G98)),0) -> 0 | I98: =MAX(MIN($H$88,$E98-SUM($F98:H98)),0) -> 0 | J98: =MAX(MIN($H$88,$E98-SUM($F98:I98)),0) -> 0 | K98: =MAX(MIN($H$88,$E98-SUM($F98:J98)),0) -> 0
B99: 122.3 | C99: 124.7 | D99: 4.35 | E99: =C99-B99 -> 2.4 | F99: =MAX(MIN($H$88-SUM(F$98:F98),E99),0) -> 0.7 | G99: =MAX(MIN($H$88-SUM(G$98:G98),$E99-SUM($F99:F99)),0) -> 1.7 | H99: =MAX(MIN($H$88-SUM(H$98:H98),$E99-SUM($F99:G99)),0) -> 0 | I99: =MAX(MIN($H$88-SUM(I$98:I98),$E99-SUM($F99:H99)),0) -> 0 | J99: =MAX(MIN($H$88-SUM(J$98:J98),$E99-SUM($F99:I99)),0) -> 0 | K99: =MAX(MIN($H$88-SUM(K$98:K98),$E99-SUM($F99:J99)),0) -> 0
B100: 124.7 | C100: 128.2 | D100: 5.25 | E100: 3.5 | F100: =MAX(MIN($H$88-SUM(F$98:F99),E100),0) -> 0 | G100: =MAX(MIN($H$88-SUM(G$98:G99),$E100-SUM($F100:F100)),0) -> 1.3 | H100: =MAX(MIN($H$88-SUM(H$98:H99),$E100-SUM($F100:G100)),0) -> 2.2 | I100: =MAX(MIN($H$88-SUM(I$98:I99),$E100-SUM($F100:H100)),0) -> 0 | J100: =MAX(MIN($H$88-SUM(J$98:J99),$E100-SUM($F100:I100)),0) -> 0 | K100: =MAX(MIN($H$88-SUM(K$98:K99),$E100-SUM($F100:J100)),0) -> 0
B101: 128.2 | C101: 129.1 | D101: 2.28 | E101: 0.9 | F101: =MAX(MIN($H$88-SUM(F$98:F100),E101),0) -> 0 | G101: =MAX(MIN($H$88-SUM(G$98:G100),$E101-SUM($F101:F101)),0) -> 0 | H101: =MAX(MIN($H$88-SUM(H$98:H100),$E101-SUM($F101:G101)),0) -> 0.8 | I101: =MAX(MIN($H$88-SUM(I$98:I100),$E101-SUM($F101:H101)),0) -> 0.1 | J101: =MAX(MIN($H$88-SUM(J$98:J100),$E101-SUM($F101:I101)),0) -> 0 | K101: =MAX(MIN($H$88-SUM(K$98:K100),$E101-SUM($F101:J101)),0) -> 0
B102: 129.1 | C102: 132 | D102: 0.83 | E102: 2.9 | F102: =MAX(MIN($H$88-SUM(F$98:F101),E102),0) -> 0 | G102: =MAX(MIN($H$88-SUM(G$98:G101),$E102-SUM($F102:F102)),0) -> 0 | H102: =MAX(MIN($H$88-SUM(H$98:H101),$E102-SUM($F102:G102)),0) -> 0 | I102: =MAX(MIN($H$88-SUM(I$98:I101),$E102-SUM($F102:H102)),0) -> 2.9 | J102: =MAX(MIN($H$88-SUM(J$98:J101),$E102-SUM($F102:I102)),0) -> 0 | K102: =MAX(MIN($H$88-SUM(K$98:K101),$E102-SUM($F102:J102)),0) -> 0
E103: teneur | F103: =SUM(F98:F102*$D98:$D102)/$H$88 -> 3.100333333 | G103: =SUM(G98:G102*$D98:$D102)/$H$88 -> 4.74 | H103: =SUM(H98:H102*$D98:$D102)/$H$88 -> 4.458 | I103: =SUM(I98:I102*$D98:$D102)/$H$88 -> 0.8783333333 | J103: =SUM(J98:J102*$D98:$D102)/$H$88 -> 0 | K103: =SUM(K98:K102*$D98:$D102)/$H$88 -> 0
E104: longueur | F104: =SUM(F98:F102) -> 3 | G104: 3 | H104: 3 | I104: 3 | J104: 0 | K104: 0
B109: Composites formés | F109: Centre du composite
B110: de | C110: à | D110: Centre à | F110: x | G110: y | H110: z | I110: teneur | J110: lc | K110: distance avec le composite précédent (pour vérification)
B111: =$B$98 -> 120 | C111: =B111+$H$88 -> 123 | D111: =(B111+C111)/2 -> 121.5 | F111: =IF($D111<$H$94,I$93+($D111-$H$93)/($H$94-$H$93)*(I$94-I$93),I$94+($D111-$H$94)/($H$95-$H$94)*(I$95-I$94)) -> 44.08358396 | G111: =IF($D111<$H$94,J$93+($D111-$H$93)/($H$94-$H$93)*(J$94-J$93),J$94+($D111-$H$94)/($H$95-$H$94)*(J$95-J$94)) -> 105.1152135 | H111: -35.15318581 | I111: =TRANSPOSE(F103:K103) -> 3.100333333 | J111: =TRANSPOSE(F104:K104) -> 3
B112: =C111 -> 123 | C112: 126 | D112: =(B112+C112)/2 -> 124.5 | F112: =IF($D112<$H$94,I$93+($D112-$H$93)/($H$94-$H$93)*(I$94-I$93),I$94+($D112-$H$94)/($H$95-$H$94)*(I$95-I$94)) -> 42.83499074 | G112: 105.3353742 | H112: -37.87210917 | I112: 4.74 | J112: 3 | K112: =SQRT((F112-F111)^2+(G112-G111)^2+(H112-H111)^2) -> 3
B113: =C112 -> 126 | C113: 129 | D113: 127.5 | F113: 41.40420737 | G113: 105.6319572 | H113: -40.49032657 | I113: 4.458 | J113: 3 | K113: =SQRT((F113-F112)^2+(G113-G112)^2+(H113-H112)^2) -> 2.998360375
B114: 129 | C114: 132 | D114: 130.5 | F114: 39.93698597 | G114: 105.9438248 | H114: -43.08840278 | I114: 0.8783333333 | J114: 3 | K114: 3
B115: 132 | C115: 135 | D115: 133.5 | F115: 38.46976457 | G115: 106.2556923 | H115: -45.686479 | I115: 0 | J115: 0 | K115: 3
B116: 135 | C116: 138 | D116: 136.5 | F116: 37.00254316 | G116: 106.5675599 | H116: -48.28455521 | I116: 0 | J116: 0 | K116: 3

Sheet Sondage
A1: Sondages
B2: Légende
C3: valeurs à entrer
C4: valeurs calculées
A7: 1- Conversion azimut-plongée d'un vecteur vers cosinus directeurs (système main droite, composante z du cosinus directeur négative)
C8: cosinus directeur | G8: coord. aires égales | I8: coord. angles égaux
A9: azimut | B9: plongée | C9: a | D9: b | E9: c | F9: norme | G9: x | H9: y | I9: x | J9: y
A10: 122 | B10: 60 | C10: =COS(RADIANS(B10))*SIN(RADIANS(A10)) -> 0.4240240481 | D10: =COS(RADIANS(B10))*COS(RADIANS(A10)) -> -0.2649596321 | E10: =-SIN(RADIANS(B10)) -> -0.8660254038 | F10: =C10^2+D10^2+E10^2 -> 1 | G10: =C10/SQRT(1-$E10) -> 0.3104071468 | H10: =D10/SQRT(1-$E10) -> -0.1939639127 | I10: =C10/(1-$E10) -> 0.2272338025 | J10: =D10/(1-$E10) -> -0.1419914389
A12: 2- Conversion cosinus directeur vers azimut-plongée (angle de plongée positif pour un vecteur qui pointe vers le bas)
A13: azimut | B13: plongée | C13: a | D13: b | E13: c | F13: norme
A14: =IF(90-DEGREES(ATAN2(C14,D14))<0,90+360-DEGREES(ATAN2(C14,D14)),90-DEGREES(ATAN2(C14,D14))) -> 215 | B14: =-DEGREES(ASIN(E14)) -> 50 | C14: -0.3686878265 | D14: -0.5265407845 | E14: -0.7660444431 | F14: =C14^2+D14^2+E14^2 -> 1
A16: 3- Conversion épaisseur observée en forage vers épaisseur vraie selon le JO
A17: JO | B17: e_obs | C17: e_vraie
A18: 35 | B18: 2.8 | C18: =SIN(RADIANS(A18))*B18 -> 1.606014022
A20: 4- Conversion épaisseur vraie vers épaisseur observée en forage selon le JO
A21: JO | B21: e_obs | C21: e_vraie
A22: 55 | B22: =C22/SIN(RADIANS(A22)) -> 2.685704095 | C22: 2.2
A24: 5- Conversion orientation d'un plan en convention géologique vers le pôle du plan
A25: Plan | C25: Pôle | E25: Pôle
A26: azimut | B26: pendage | C26: azimut | D26: plongée | E26: a | F26: b | G26: c
A27: 127 | B27: 59 | C27: =IF(A27-90<0,A27+270,A27-90) -> 37 | D27: =90-B27 -> 31 | E27: =COS(RADIANS(D27))*SIN(RADIANS(C27)) -> 0.5158561589 | F27: =COS(RADIANS(D27))*COS(RADIANS(C27)) -> 0.6845642444 | G27: =-SIN(RADIANS(D27)) -> -0.5150380749
A29: 6- Conversion pôle du plan vers orientation du plan en convention géologique
A30: Plan | C30: Pôle | E30: Pôle
A31: azimut | B31: pendage | C31: azimut | D31: plongée | E31: a | F31: b | G31: c
A32: =MOD(C32+90,360) -> 45 | B32: =90-D32 -> 50 | C32: 315 | D32: 40 | E32: =COS(RADIANS(D32))*SIN(RADIANS(C32)) -> -0.5416752204 | F32: =COS(RADIANS(D32))*COS(RADIANS(C32)) -> 0.5416752204 | G32: =-SIN(RADIANS(D32)) -> -0.6427876097
A34: 7- Calcul du JO à partir des orientations du plan (convention géologique) et du forage
A35: Plan | C35: Pôle | E35: Pôle
A36: azimut | B36: pendage | C36: azimut | D36: plongée | E36: a | F36: b | G36: c
A37: 135 | B37: 50 | C37: =IF(A37-90<0,A37+270,A37-90) -> 45 | D37: =90-B37 -> 40 | E37: =COS(RADIANS(D37))*SIN(RADIANS(C37)) -> 0.5416752204 | F37: =COS(RADIANS(D37))*COS(RADIANS(C37)) -> 0.5416752204 | G37: =-SIN(RADIANS(D37)) -> -0.6427876097
A38: Forage
A39: azimut | B39: plongée | G39: JO
A40: 90 | B40: 80 | C40: =COS(RADIANS(B40))*SIN(RADIANS(A40)) -> 0.1736481777 | D40: =COS(RADIANS(B40))*COS(RADIANS(A40)) -> 1.063723983e-17 | E40: =-SIN(RADIANS(B40)) -> -0.984807753 | G40: =DEGREES(ASIN(C40*E37+D40*F37+E40*G37)) -> 46.64241721
A42: 8- Calcul de la distance entre le collet d'un forage et le plan
B43: x | C43: y | D43: z
A44: Collet | B44: 100 | C44: 100 | D44: 200
A45: Point connu dans le plan | B45: 50 | C45: 0 | D45: -100
B46: azimut | C46: pendage ou plongée | D46: pôle azimut | E46: pôle plongée | F46: cosinus directeurs | J46: Distance | K46: Coordonnées du point d'intersection
A47: plan (conv. géol.) | B47: 350 | C47: 30 | D47: =IF(B47-90<0,B47+270,B47-90) -> 260 | E47: =90-C47 -> 60 | F47: =COS(RADIANS(E47))*SIN(RADIANS(D47)) -> -0.4924038765 | G47: =COS(RADIANS(E47))*COS(RADIANS(D47)) -> -0.08682408883 | H47: =-SIN(RADIANS(E47)) -> -0.8660254038 | K47: x | L47: y | M47: z
A48: forage | D48: 270 | E48: 80 | F48: -0.1736481777 | G48: -3.191171948e-17 | H48: -0.984807753 | J48: =SUM((B45:D45-B44:D44)*F47:H47)/SUM(F48:H48*F47:H47) -> 312.3598468 | K48: =J48*F48:H48+B44:D44 -> 45.75928183 | L48: 100 | M48: -107.6143988
A50: 9- Calcul de l'inclinaison apparente d'un forage projeté sur une section verticale
B51: azimut | C51: pendage ou plongée | D51: cosinus directeurs
A52: section verticale (conv. géol) | B52: 90 | H52: Plongée apparente
A53: v. horizontal dans section | B53: =B52 -> 90 | C53: 0 | D53: =COS(RADIANS(C53))*SIN(RADIANS(B53)) -> 1 | E53: =COS(RADIANS(C53))*COS(RADIANS(B53)) -> 6.125742275e-17 | F53: =-SIN(RADIANS(C53)) -> 0 | H53: =ABS(DEGREES(ATAN(F54/(D53*D54+E53*E54)))) -> 61.65922558
A54: forage | B54: 220 | C54: 50 | D54: =COS(RADIANS(C54))*SIN(RADIANS(B54)) -> -0.4131759112 | E54: =COS(RADIANS(C54))*COS(RADIANS(B54)) -> -0.4924038765 | F54: =-SIN(RADIANS(C54)) -> -0.7660444431
A56: 10- Calcul du pendage apparent d'un plan sur une section verticale
B57: azimut | C57: pendage ou plongée | D57: cosinus directeurs
A58: section verticale (conv. géol) | B58: 90 | H58: pendage apparent
A59: v. horizontal dans section | B59: =B58 -> 90 | C59: 0 | D59: =COS(RADIANS(C59))*SIN(RADIANS(B59)) -> 1 | E59: =COS(RADIANS(C59))*COS(RADIANS(B59)) -> 6.125742275e-17 | F59: =-SIN(RADIANS(C59)) -> 0 | H59: =ABS(DEGREES(ATAN((D59*D61+E59*E61)/F61))) -> 22.76047627
A60: plan (conv. géol.) | B60: 60 | C60: 40
A61: pôle du plan | B61: =IF(B60-90<0,B60+270,B60-90) -> 330 | C61: =90-C60 -> 50 | D61: =COS(RADIANS(C61))*SIN(RADIANS(B61)) -> -0.3213938048 | E61: =COS(RADIANS(C61))*COS(RADIANS(B61)) -> 0.5566703992 | F61: =-SIN(RADIANS(C61)) -> -0.7660444431
A64: 11- Calcul de l'orientation d'un plan à partir des JO observés dans trois forages non parallèles
B65: angle | C65: angle complémentaire | D65: cosinus de l'angle complémentaire
A66: JO1 | B66: 54.6 | C66: =90-B66 -> 35.4 | D66: =COS(RADIANS(C66)) -> 0.8151277957
A67: JO2 | B67: 60.92 | C67: =90-B67 -> 29.08 | D67: =COS(RADIANS(C67)) -> 0.8739419329
A68: JO3 | B68: 62.38 | C68: 27.62 | D68: 0.8860418044 | J68: azimut | K68: pendage
B69: azimut | C69: plongée | D69: a | E69: b | F69: c | H69: v. unitaire du plan | I69: plan | J69: =IF(90-DEGREES(ATAN2(H70,H71))<0,90+360-DEGREES(ATAN2(H70,H71)),90-DEGREES(ATAN2(H70,H71))) -> 325.228449 | K69: =-DEGREES(ASIN(H72)) -> 60.03197979
A70: forage1 | B70: 270 | C70: 45 | D70: =COS(RADIANS(C70))*SIN(RADIANS(B70)) -> -0.7071067812 | E70: =COS(RADIANS(C70))*COS(RADIANS(B70)) -> -1.299466171e-16 | F70: =-SIN(RADIANS(C70)) -> -0.7071067812 | H70: =MMULT(MINVERSE(D70:F72),D66:D68) -> -0.2864604386 | I70: a
A71: forage2 | B71: 270 | C71: 55 | D71: -0.5735764364 | E71: -1.054074427e-16 | F71: -0.8191520443 | H71: 0.4125995572 | I71: b
A72: forage3 | B72: 260 | C72: 70 | D72: -0.3368240888 | E72: -0.05939117461 | F72: -0.9396926208 | H72: -0.8663043452 | I72: c
H73: =H70^2+H71^2+H72^2 -> 1.002781196 | I73: norme
A75: Note: si la norme du vecteur solution est trop éloignée de 1, c'est dû soit à des erreurs sur les JO , soit que ce n'est pas un plan.
A78: 12- Composites et coordonnées
B79: x | C79: y | D79: z | E79: azimut | F79: plongée | H79: Longueur des composites
A80: Collet | B80: 0 | C80: 100 | D80: 55 | E80: 90 | F80: 60 | H80: 3
B82: à | C82: azimut | D82: plongée | E82: vecteurs unitaires | H82: Point milieu | I82: Coordonnées du point milieu
B83: 0 | C83: =E80 -> 90 | D83: =F80 -> 60 | E83: =COS(RADIANS(D83))*SIN(RADIANS(C83)) -> 0.5 | F83: =COS(RADIANS(D83))*COS(RADIANS(C83)) -> 3.062871137e-17 | G83: =-SIN(RADIANS(D83)) -> -0.8660254038 | H83: à | I83: x | J83: y | K83: z
A84: Déviation | B84: 80 | C84: 80 | D84: 55 | E84: 0.5648625215 | F84: 0.09960050293 | G84: -0.8191520443 | H84: =(B83+B84)/2 -> 40 | I84: =B$80+E83*($B84-$B83) -> 40 | J84: =C$80+F83*($B84-$B83) -> 100 | K84: =D$80+G83*($B84-$B83) -> -14.2820323
B85: 180 | C85: 70 | D85: 45 | E85: 0.6644630244 | F85: 0.2418447626 | G85: -0.7071067812 | H85: =(B84+B85)/2 -> 130 | I85: =I84+($H85-$H84)*E84 -> 90.83762693 | J85: =J84+($H85-$H84)*F84 -> 108.9640453 | K85: -88.00571629
B86: 230 | C86: 70 | D86: 45 | E86: =COS(RADIANS(D86))*SIN(RADIANS(C86)) -> 0.6644630244 | F86: =COS(RADIANS(D86))*COS(RADIANS(C86)) -> 0.2418447626 | G86: =-SIN(RADIANS(D86)) -> -0.7071067812 | H86: 205 | I86: =I85+($H86-$H85)*E85 -> 140.6723538 | J86: =J85+($H86-$H85)*F85 -> 127.1024025 | K86: =K85+($H86-$H85)*G85 -> -141.0387249
B88: de | C88: à | D88: teneur(%) | E88: l | F88: lc1 | G88: lc2 | H88: lc3 | I88: lc4 | J88: lc5 | K88: lc6 | L88: ….
A89: Analyse | B89: 180 | C89: 181.5 | D89: 0.5 | E89: =MIN($C$89-$B$89,3) -> 1.5 | F89: =MAX(MIN($H$80,E89),0) -> 1.5 | G89: =MAX(MIN($H$80,$E89-SUM($F89:F89)),0) -> 0 | H89: =MAX(MIN($H$80,$E89-SUM($F89:G89)),0) -> 0 | I89: =MAX(MIN($H$80,$E89-SUM($F89:H89)),0) -> 0 | J89: =MAX(MIN($H$80,$E89-SUM($F89:I89)),0) -> 0 | K89: =MAX(MIN($H$80,$E89-SUM($F89:J89)),0) -> 0
B90: 181.5 | C90: 184 | D90: 0.65 | E90: =C90-B90 -> 2.5 | F90: =MAX(MIN($H$80-SUM(F$89:F89),E90),0) -> 1.5 | G90: =MAX(MIN($H$80-SUM(G$89:G89),$E90-SUM($F90:F90)),0) -> 1 | H90: =MAX(MIN($H$80-SUM(H$89:H89),$E90-SUM($F90:G90)),0) -> 0 | I90: =MAX(MIN($H$80-SUM(I$89:I89),$E90-SUM($F90:H90)),0) -> 0 | J90: =MAX(MIN($H$80-SUM(J$89:J89),$E90-SUM($F90:I90)),0) -> 0 | K90: =MAX(MIN($H$80-SUM(K$89:K89),$E90-SUM($F90:J90)),0) -> 0
B91: 184 | C91: 184.5 | D91: 0.72 | E91: 0.5 | F91: =MAX(MIN($H$80-SUM(F$89:F90),E91),0) -> 0 | G91: =MAX(MIN($H$80-SUM(G$89:G90),$E91-SUM($F91:F91)),0) -> 0.5 | H91: =MAX(MIN($H$80-SUM(H$89:H90),$E91-SUM($F91:G91)),0) -> 0 | I91: =MAX(MIN($H$80-SUM(I$89:I90),$E91-SUM($F91:H91)),0) -> 0 | J91: =MAX(MIN($H$80-SUM(J$89:J90),$E91-SUM($F91:I91)),0) -> 0 | K91: =MAX(MIN($H$80-SUM(K$89:K90),$E91-SUM($F91:J91)),0) -> 0
B92: 184.5 | C92: 187.3 | D92: 1.1 | E92: 2.8 | F92: =MAX(MIN($H$80-SUM(F$89:F91),E92),0) -> 0 | G92: =MAX(MIN($H$80-SUM(G$89:G91),$E92-SUM($F92:F92)),0) -> 1.5 | H92: =MAX(MIN($H$80-SUM(H$89:H91),$E92-SUM($F92:G92)),0) -> 1.3 | I92: =MAX(MIN($H$80-SUM(I$89:I91),$E92-SUM($F92:H92)),0) -> 0 | J92: =MAX(MIN($H$80-SUM(J$89:J91),$E92-SUM($F92:I92)),0) -> 0 | K92: =MAX(MIN($H$80-SUM(K$89:K91),$E92-SUM($F92:J92)),0) -> 0
B93: 187.3 | C93: 189 | D93: 0.6 | E93: 1.7 | F93: =MAX(MIN($H$80-SUM(F$89:F92),E93),0) -> 0 | G93: =MAX(MIN($H$80-SUM(G$89:G92),$E93-SUM($F93:F93)),0) -> 0 | H93: =MAX(MIN($H$80-SUM(H$89:H92),$E93-SUM($F93:G93)),0) -> 1.7 | I93: =MAX(MIN($H$80-SUM(I$89:I92),$E93-SUM($F93:H93)),0) -> 0 | J93: =MAX(MIN($H$80-SUM(J$89:J92),$E93-SUM($F93:I93)),0) -> 0 | K93: =MAX(MIN($H$80-SUM(K$89:K92),$E93-SUM($F93:J93)),0) -> 0
E94: teneur | F94: =SUM(F89:F93*$D89:$D93)/$H$80 -> 0.575 | G94: =SUM(G89:G93*$D89:$D93)/$H$80 -> 0.8866666667 | H94: =SUM(H89:H93*$D89:$D93)/$H$80 -> 0.8166666667 | I94: =SUM(I89:I93*$D89:$D93)/$H$80 -> 0 | J94: =SUM(J89:J93*$D89:$D93)/$H$80 -> 0 | K94: =SUM(K89:K93*$D89:$D93)/$H$80 -> 0
E95: longueur | F95: =SUM(F89:F93) -> 3 | G95: 3 | H95: 3 | I95: 0 | J95: 0 | K95: 0
B100: Composites formés | F100: Centre du composite
B101: de | C101: à | D101: Centre à | F101: x | G101: y | H101: z | I101: teneur | J101: lc | K101: distance avec le composite précédent (pour vérification)
B102: =$B$89 -> 180 | C102: =B102+$H$80 -> 183 | D102: =(B102+C102)/2 -> 181.5 | F102: =IF($D102<$H$86,I$85+($D102-$H$85)/($H$86-$H$85)*(I$86-I$85),I$86+($D102-$H$86)/(#REF!-$H$86)*(#REF!-I$86)) -> 125.0574727 | G102: =IF($D102<$H$86,J$85+($D102-$H$85)/($H$86-$H$85)*(J$86-J$85),J$86+($D102-$H$86)/(#REF!-$H$86)*(#REF!-J$86)) -> 121.4190505 | H102: =IF($D102<$H$86,K$85+($D102-$H$85)/($H$86-$H$85)*(K$86-K$85),K$86+($D102-$H$86)/(#REF!-$H$86)*(#REF!-K$86)) -> -124.4217155 | I102: =TRANSPOSE(F94:K94) -> 0.575 | J102: =TRANSPOSE(F95:K95) -> 3
B103: =C102 -> 183 | C103: 186 | D103: =(B103+C103)/2 -> 184.5 | F103: =IF($D103<$H$86,I$85+($D103-$H$85)/($H$86-$H$85)*(I$86-I$85),I$86+($D103-$H$86)/(#REF!-$H$86)*(#REF!-I$86)) -> 127.0508618 | G103: =IF($D103<$H$86,J$85+($D103-$H$85)/($H$86-$H$85)*(J$86-J$85),J$86+($D103-$H$86)/(#REF!-$H$86)*(#REF!-J$86)) -> 122.1445848 | H103: =IF($D103<$H$86,K$85+($D103-$H$85)/($H$86-$H$85)*(K$86-K$85),K$86+($D103-$H$86)/(#REF!-$H$86)*(#REF!-K$86)) -> -126.5430359 | I103: 0.8866666667 | J103: 3 | K103: =SQRT((F103-F102)^2+(G103-G102)^2+(H103-H102)^2) -> 3
B104: =C103 -> 186 | C104: 189 | D104: 187.5 | F104: =IF($D104<$H$86,I$85+($D104-$H$85)/($H$86-$H$85)*(I$86-I$85),I$86+($D104-$H$86)/(#REF!-$H$86)*(#REF!-I$86)) -> 129.0442508 | G104: =IF($D104<$H$86,J$85+($D104-$H$85)/($H$86-$H$85)*(J$86-J$85),J$86+($D104-$H$86)/(#REF!-$H$86)*(#REF!-J$86)) -> 122.8701191 | H104: =IF($D104<$H$86,K$85+($D104-$H$85)/($H$86-$H$85)*(K$86-K$85),K$86+($D104-$H$86)/(#REF!-$H$86)*(#REF!-K$86)) -> -128.6643562 | I104: 0.8166666667 | J104: 3 | K104: =SQRT((F104-F103)^2+(G104-G103)^2+(H104-H103)^2) -> 3
B105: 189 | C105: 192 | D105: 190.5 | F105: =IF($D105<$H$86,I$85+($D105-$H$85)/($H$86-$H$85)*(I$86-I$85),I$86+($D105-$H$86)/(#REF!-$H$86)*(#REF!-I$86)) -> 131.0376399 | G105: =IF($D105<$H$86,J$85+($D105-$H$85)/($H$86-$H$85)*(J$86-J$85),J$86+($D105-$H$86)/(#REF!-$H$86)*(#REF!-J$86)) -> 123.5956534 | H105: =IF($D105<$H$86,K$85+($D105-$H$85)/($H$86-$H$85)*(K$86-K$85),K$86+($D105-$H$86)/(#REF!-$H$86)*(#REF!-K$86)) -> -130.7856766 | I105: 0 | J105: 0 | K105: 3
B106: 192 | C106: 195 | D106: 193.5 | F106: =IF($D106<$H$86,I$85+($D106-$H$85)/($H$86-$H$85)*(I$86-I$85),I$86+($D106-$H$86)/(#REF!-$H$86)*(#REF!-I$86)) -> 133.031029 | G106: =IF($D106<$H$86,J$85+($D106-$H$85)/($H$86-$H$85)*(J$86-J$85),J$86+($D106-$H$86)/(#REF!-$H$86)*(#REF!-J$86)) -> 124.3211877 | H106: =IF($D106<$H$86,K$85+($D106-$H$85)/($H$86-$H$85)*(K$86-K$85),K$86+($D106-$H$86)/(#REF!-$H$86)*(#REF!-K$86)) -> -132.9069969 | I106: 0 | J106: 0 | K106: 3
B107: 195 | C107: 198 | D107: 196.5 | F107: =IF($D107<$H$86,I$85+($D107-$H$85)/($H$86-$H$85)*(I$86-I$85),I$86+($D107-$H$86)/(#REF!-$H$86)*(#REF!-I$86)) -> 135.0244181 | G107: =IF($D107<$H$86,J$85+($D107-$H$85)/($H$86-$H$85)*(J$86-J$85),J$86+($D107-$H$86)/(#REF!-$H$86)*(#REF!-J$86)) -> 125.046722 | H107: =IF($D107<$H$86,K$85+($D107-$H$85)/($H$86-$H$85)*(K$86-K$85),K$86+($D107-$H$86)/(#REF!-$H$86)*(#REF!-K$86)) -> -135.0283172 | I107: 0 | J107: 0 | K107: 3

Sheet Gy
A1: Gy | B1: Définition des variables
B2: a: teneur du minéral d'intérêt (en fraction)
B3: rhoa: masse volumique du minéral d'intérêt (en g/cm3)
B4: rhog: masse volumique de la gangue (en g/cm3) | H4: doivent être fournis
B5: Ml: masse du lot à échantillonner (en g)
B6: d0: taille de libération des grains du minéral d'intérêt (en cm)
B8: Me: masse de l'échantillon prélevé (en g)
B9: d: taille des plus gros fragments (en cm, en pratique maille du tamis retenant 5% des particules)
B10: s2r: variance relative (pas d'unités)
B11: sr: écart-type relatif (sr2^0.5)
A13: Saisie des paramètres connus
B14: Calcul de a
A15: teneur du métal dans la roche | B15: 0.002 | C15: fraction | F15: Note: cet exemple est pour de l'or natif
A16: teneur du métal dans le minéral d'intérêt | B16: 0.34622 | C16: fraction
C17: a: teneur du minéral d'intérêt | D17: =$B$15/$B$16 -> 0.005776673791 | E17: fraction
A18: rhoa (masse spécifique du minéral d'intérêt) | B18: 4.2 | C18: g/cm^3
A19: rhog (masse spécifique de la gangue) | B19: 3 | C19: g/cm^3
A20: Ml (masse initiale du lot) | B20: 32000 | C20: g | F20: a
A21: d0 (taille de libération) | B21: 0.05 | C21: cm
A22: f (facteur de forme) | B22: 0.5 | C22: paramètre de forme (sans unités)
A23: g (facteur granulométrique) | B23: 0.25 | C23: facteur granulométrique (sans unités)
A25: 1, 2 et 3 Saisie des paramètres désirés. Sr Me et d correpondant aux deux autres paramètres fixés sont calculés en B32, B33 et B36
D26: Calculs intermédiaires
A27: sr | B27: 0.01 | C27: sans unités | D27: facteur de libération | E27: =IF($B29<$B21,1,SQRT($B21/$B29)) -> 0.7071067812
A28: Me | B28: 350 | C28: g | D28: mu-delta | E28: =(1-$D17)/$D17*((1-$D17)*$B18+$D17*$B19) -> 721.668932 | F28: g/cm^3
A29: d | B29: 0.1 | C29: cm | D29: constante K | E29: =E28*B22*B23 -> 90.2086165 | F29: g/cm^3
B31: réponses
A32: sr2 | B32: =$E$29*$E$27*$B$29^3/$B$28*(1-$B$28/$B$20) -> 0.0001802555794
A33: sr | B33: =SQRT(B32) -> 0.01342592937 | D33: sr calculé avec Me et d lus en B28 et B29
A34: Me | B34: =($B$27^2/($E$29*$E$27*B$29^3)+1/$B$20)^(-1) -> 625.4047536 | C34: g | D34: Me calculé avec sr et d lus en B27 et B29
A35: d1 | B35: =($B$27^2/($E$29*(1/$B$28-1/$B$20)))^(1/3) -> 0.07320354203 | C35: cm | D35: calcul en supposant que d<d0
A36: d2 | B36: =($B$27^2/(SQRT($B$21)*$E$29*(1/$B$28-1/$B$20)))^(1/3) -> 0.1206064205 | C36: cm | D36: calcul en supposant que d>d0
A37: d | B37: =IF($B$35<=$B$21,$B35,$B$36) -> 0.1206064205 | C37: cm | D37: d calculé avec sr et Me lus en B27 et B28, valeur à retenir (un seul de d1 ou d2 respecte l'hypothèse formulée)
A40: 4- Procédure multistage
A41: (dans une procédure multistage, la masse de l'échantillon prélevé à l'étape k devient la masse du lot à l'étape k+1)
A43: On utilise les paramètres connus donnés plus haut
B44: Me | C44: d | D44: facteur de libération | E44: sr2 | F44: sr
A45: stage 1 | B45: 22000 | C45: 0.5 | D45: =MIN(1,SQRT($B$21/C45)) -> 0.316227766 | E45: =D45*$E$29*C45^3/B45*(1-B45/$B$20) -> 5.065069118e-05 | F45: =SQRT(E45) -> 0.007116929898
A46: stage 2 | B46: 1250 | C46: 0.1 | D46: =MIN(1,SQRT($B$21/C46)) -> 0.7071067812 | E46: =D46*$E$29*C46^3/B46*(1-B46/B45) -> 4.813028481e-05 | F46: =SQRT(E46) -> 0.006937599355
A47: stage 3 | B47: 30 | C47: 0.0009 | D47: 1 | E47: =D47*$E$29*C47^3/B47*(1-B47/B46) -> 2.139459716e-09 | F47: 4.625429403e-05
A48: Total | E48: =SUM(E45:E47) -> 9.878311545e-05 | F48: =SQRT(E48) -> 0.009938969537

Sheet Lane
A1: Lane | L1: Légende
L2: données du problème
A3: 1- Calcul des teneurs limites et valeurs/t. minéralisée associées
A4: 2- Calcul des teneurs d'équilibre et valeurs/t. minéralisée associées (faire rouler la macro) | L4: champ calculé, ne pas modifier
A5: 3- Calcul de la teneur de coupure optimale et valeur/t. minéralisée associée | L5: calcul intermédiaire
A7: Paramètres du problème à saisir
B8: 2500 | C8: (p-k): prix net du métal (en $/t métal)
B9: 0.85 | C9: y: taux de récupération (fraction)
B11: 4 | C11: m: coût de minage (développement) (en $/t minéralisée)
B12: 5 | C12: h: coût de traitement (tout ce qui est associé au minerai) (en $/t minerai)
B13: 10 | C13: f: frais fixes annuels (M$)
B15: 25 | C15: M: capacité annuelle de développement (Mt matériau minéralisé)
B16: 15 | C16: H: capacité annuelle de traitement (Mt de minerai) (H<M)
B18: 0.7 | C18: moy: moyenne de la distribution des teneurs dans le matériau minéralisé (loi lognormale)
B19: 1 | C19: s2: variance de la distribution des teneurs dans le matériau minéralisé (loi lognormale)
B20: 100 | C20: Unités des teneurs 100 pour des % ou 1e06 pour des ppm
A22: 1- Calcul des teneurs limites et valeurs/t. minéralisée associées
B23: teneur | G23: valeur ($/t minéralisée) | K23: calcul | L23: calcul | M23: xc | N23: gc
B24: =$B$12/($B$9*$B$8)*$B$20 -> 0.2352941176 | C24: c1: t.c. limite de la mine | G24: =$B$8*$M24*$N24/$B$20*$B$9-$M24*$B$12-$B$11-$B$13/$B$15 -> 6.124873419 | H24: calcul avec courbe v1 | K24: =1/$B$38*LN($B$18/B24)-$B$38/2 -> 0.5065373415 | L24: =1/$B$38*LN($B$18/B24)+$B$38/2 -> 1.561111193 | M24: =NORMSDIST(K24) -> 0.6937602588 | N24: =NORMSDIST(L24)*$B$18/M24 -> 0.9492124412
B25: =($B$12+$B$13/$B$16)/($B$9*$B$8)*$B$20 -> 0.2666666667 | C25: c2: t.c. limite du traitement | G25: =$B$8*$M25*$N25/$B$20*$B$9-$M25*$B$12-$B$11-$B$13*$M$25/$B$16 -> 6.076812584 | H25: calcul avec courbe v2 | K25: =1/$B$38*LN($B$18/B25)-$B$38/2 -> 0.3878513502 | L25: =1/$B$38*LN($B$18/B25)+$B$38/2 -> 1.442425202 | M25: =NORMSDIST(K25) -> 0.6509369789 | N25: =NORMSDIST(L25)*$B$18/M25 -> 0.9951595323
A28: 2- Calcul des teneurs d'équilibre et valeurs/t. minéralisée associées
B29: teneur | G29: valeur ($/t minéralisée) | K29: calcul | L29: calcul | M29: xc | N29: gc
B30: =$B$49 -> 0.3073060329 | C30: c12: t.c. d'équilibre mine-traitement | G30: =$B$8*$M30*$N30/$B$20*$B$9-$M30*$B$12-$B$11-$B$13/$B$15 -> 6.055180347 | H30: calcul avec courbe v1 | K30: =1/$B$38*LN($B$18/B30)-$B$38/2 -> 0.2533471031 | L30: =1/$B$38*LN($B$18/B30)+$B$38/2 -> 1.307920954 | M30: =NORMSDIST(K30) -> 0.6 | N30: =NORMSDIST(L30)*$B$18/M30 -> 1.055308263
A32: 3- Calcul de la teneur de coupure optimale et valeur/t. minéralisée associée
B33: teneur | G33: valeur ($/t minéralisée)
B34: =IF(AND($B$30<$B$25,$B30>$B$24),$B$30,IF($B$30<$B$24,$B$24,$B$25)) -> 0.2666666667 | C34: milieu du triplet c1, c2, c12: t.c. optimale | G34: =IF($B$34=$B$30,$G$30,IF($B$34=$B$24,$G$24,$G$25)) -> 6.076812584 | H34: valeur optimale ($/t. minéralisée)
A36: 4- Loi lognormale (diapo 44)
B37: =LN($B$19/$B$18^2+1) -> 1.112126008 | C37: beta^2: variance logarithmique
B38: =SQRT($B$37) -> 1.054573851 | C38: beta: écart-type logarithmique
B39: =1/$B$38*LN($B$18/$B$42)-$B$38/2 -> -0.208227017 | C39: valeur intermédiaire pour calcul de xc
B40: =1/$B$38*LN($B$18/$B$42)+$B$38/2 -> 0.8463468343 | C40: valeur intermédiaire pour calcul de Qc
B42: 0.5 | C42: c: teneur de coupure considérée (>c est du minerai)
B43: =NORMSDIST(B39) -> 0.4175258572 | C43: xc=Tc/T0 proportion du tonnage au-dessus de la teneur c (i.e. proportion de minerai)
B44: =NORMSDIST($B$40)*$B$18 -> 0.5609242492 | C44: Qc/T0: quantité de métal par tonne minéralisée (mêmes unités que la teneur)
B45: =$B$44/$B$43 -> 1.343447931 | C45: gc= Qx/xc: teneur du minerai
D46: note: Qc, gc et c ont les mêmes unités (ex. % ou ppm)
B48: =$B$16/$B$15 -> 0.6 | C48: xc à l'équilibre
B49: =$B$18*EXP(-(_xlfn.NORM.S.INV($B$48)+$B$38/2)*$B$38) -> 0.3073060329 | C49: t.c. équilibre mine-traitement

Sheet Ressources
A1: 1- Interpolation linéaire sur un triangle (2D)
A2: Point à estimer
A3: x0 | B3: y0 | D3: Valeur estimée
A4: 0 | B4: 0 | D4: =$A$4*$J$7+$B$4*$J$8+$J$9 -> 6.6625
A5: Données (trois sommets du triangle qui contient le point x0)
A6: x | B6: y | C6: constante | D6: valeur | F6: matrice inverse | J6: Équation du plan
A7: 3 | B7: 0 | C7: 1 | D7: 13 | F7: =MINVERSE(A7:C9) -> 0.25 | G7: -0.125 | H7: -0.125 | J7: =MMULT(F7:H9,D7:D9) -> 2.1125
A8: -2 | B8: 3 | C8: 1 | D8: 3.4 | F8: 0.08333333333 | G8: 0.125 | H8: -0.2083333333 | J8: 0.3208333333
A9: 0 | B9: -3 | C9: 1 | D9: 5.7 | F9: 0.25 | G9: 0.375 | H9: 0.375 | J9: 6.6625
A12: 2- Inverse de la distance (2D ou 3D)
A13: Point à estimer
A14: x0 | B14: y0 | C14: z0 | D14: Valeur estimée | E14: Exposant | F14: dmax | G14: ax | H14: ay | I14: az
A15: 10 | B15: 5 | C15: 0 | D15: =SUM(J19:J38*D19:D38) -> 1.287443015 | E15: 3 | F15: 10 | G15: 1 | H15: 1 | I15: 1 | J15: Pour untroduire une anisotropie modifier un ou deux des facteurs ax,ay,az
A17: Données
A18: x | B18: y | C18: z | D18: valeur | F18: Distance^b avec x0 | G18: D. euclid. | H18: <dmax ? | I18: inverse distance | J18: poids
A19: 3 | B19: 0 | D19: 3 | F19: =SQRT(($G$15*(A19-$A$15))^2+($H$15*(B19-$B$15))^2+($I$15*(C19-$C$15))^2)^$E$15 -> 636.5720698 | G19: =SQRT(($G$15*(A19-$A$15))^2+($H$15*(B19-$B$15))^2+($I$15*(C19-$C$15))^2) -> 8.602325267 | H19: =IF(G19<$F$15,1,0) -> 1 | I19: =1/F19*H19 -> 0.001570914037 | J19: =I19/$I$39 -> 0.006314074337
A20: -2 | B20: 3 | D20: 0.4 | F20: =SQRT(($G$15*(A20-$A$15))^2+($H$15*(B20-$B$15))^2+($I$15*(C20-$C$15))^2)^$E$15 -> 1800.497709 | G20: =SQRT(($G$15*(A20-$A$15))^2+($H$15*(B20-$B$15))^2+($I$15*(C20-$C$15))^2) -> 12.16552506 | H20: =IF(G20<$F$15,1,0) -> 0 | I20: 0 | J20: 0
A21: -7 | B21: 10 | D21: 1.3 | F21: 5564.094176 | G21: 17.72004515 | H21: 0 | I21: 0 | J21: 0
A22: -7 | B22: 0 | D22: 1.5 | F22: 5564.094176 | G22: 17.72004515 | H22: 0 | I22: 0 | J22: 0
A23: 5 | B23: 8 | D23: 0.8 | F23: 198.2523644 | G23: 5.830951895 | H23: 1 | I23: 0.005044076034 | J23: 0.02027397444
A24: -8 | B24: 1 | D24: 2.2 | F24: 6269.290231 | G24: 18.43908891 | H24: 0 | I24: 0 | J24: 0
A25: -5 | B25: -7 | D25: 3 | F25: 7088.258531 | G25: 19.20937271 | H25: 0 | I25: 0 | J25: 0
A26: 8 | B26: 10 | D26: 0.9 | F26: 156.1697794 | G26: 5.385164807 | H26: 1 | I26: 0.006403287523 | J26: 0.02573713932
A27: 5 | B27: -7 | D27: 1.7 | F27: 2197 | G27: 13 | H27: 0 | I27: 0 | J27: 0
A28: -7 | B28: -9 | D28: 2.1 | F28: 10681.01704 | G28: 22.02271555 | H28: 0 | I28: 0 | J28: 0
A29: -4 | B29: -8 | D29: 4.3 | F29: 6973.315209 | G29: 19.10497317 | H29: 0 | I29: 0 | J29: 0
A30: 0 | B30: -7 | D30: 2.2 | F30: 3811.401842 | G30: 15.62049935 | H30: 0 | I30: 0 | J30: 0
A31: 9 | B31: 7 | D31: 0.9 | F31: 11.18033989 | G31: 2.236067977 | H31: 1 | I31: 0.0894427191 | J31: 0.3595027888
A32: 7 | B32: 7 | D32: 0.6 | F32: 46.87216658 | G32: 3.605551275 | H32: 1 | I32: 0.02133462293 | J32: 0.08575160191
A33: 1 | B33: -9 | D33: 0.6 | F33: 4610.198803 | G33: 16.64331698 | H33: 0 | I33: 0 | J33: 0
A34: -3 | B34: -6 | D34: 5.9 | F34: 4938.522046 | G34: 17.02938637 | H34: 0 | I34: 0 | J34: 0
A35: -4 | B35: 6 | D35: 1.6 | F35: 2765.026763 | G35: 14.03566885 | H35: 0 | I35: 0 | J35: 0
A36: 8 | B36: -8 | D36: 3.9 | F36: 2275.459734 | G36: 13.15294644 | H36: 0 | I36: 0 | J36: 0
A37: -8 | B37: -5 | D37: 4.2 | F37: 8730.69436 | G37: 20.59126028 | H37: 0 | I37: 0 | J37: 0
A38: 8 | B38: 5 | D38: 1.7 | F38: 8 | G38: 2 | H38: 1 | I38: 0.125 | J38: 0.5024204212
G39: Somme | H39: =SUM(H19:H38) -> 6 | I39: =SUM(I19:I38) -> 0.2487956196 | J39: =SUM(J19:J38) -> 1

Sheet Variogrammes
A1: 1- Programme pour calculer le variogramme en 1D pour des données régulièrement espacées
A3: Nonbre de données | B3: 18 | D3: Variogramme expérimental
A4: x | B4: Z(x) | D4: h | E4: N(h) | F4: gamma(h)
A5: 1 | B5: 1.2 | D5: 1 | E5: =$B$3-1 -> 17 | F5: =AVERAGE((B$5:INDIRECT(_xlfn.CONCAT("B",$B$3-D5+4))-INDIRECT(_xlfn.CONCAT("B",5+D5)):INDIRECT(_xlfn.CONCAT("B",$B$3+4)))^2)*0.5 -> 0.2614705882 | I5: "
A6: =A5+1 -> 2 | B6: 2.1 | D6: =D5+1 -> 2 | E6: =$E5-1 -> 16 | F6: =AVERAGE((B$5:INDIRECT(_xlfn.CONCAT("B",$B$3-D6+4))-INDIRECT(_xlfn.CONCAT("B",5+D6)):INDIRECT(_xlfn.CONCAT("B",$B$3+4)))^2)*0.5 -> 0.4025
A7: =A6+1 -> 3 | B7: 2.5 | D7: =D6+1 -> 3 | E7: 15 | F7: =AVERAGE((B$5:INDIRECT(_xlfn.CONCAT("B",$B$3-D7+4))-INDIRECT(_xlfn.CONCAT("B",5+D7)):INDIRECT(_xlfn.CONCAT("B",$B$3+4)))^2)*0.5 -> 0.4846666667
A8: 4 | B8: 2 | D8: 4 | E8: 14 | F8: =AVERAGE((B$5:INDIRECT(_xlfn.CONCAT("B",$B$3-D8+4))-INDIRECT(_xlfn.CONCAT("B",5+D8)):INDIRECT(_xlfn.CONCAT("B",$B$3+4)))^2)*0.5 -> 0.5653571429
A9: 5 | B9: 0.8 | D9: 5 | E9: 13 | F9: =AVERAGE((B$5:INDIRECT(_xlfn.CONCAT("B",$B$3-D9+4))-INDIRECT(_xlfn.CONCAT("B",5+D9)):INDIRECT(_xlfn.CONCAT("B",$B$3+4)))^2)*0.5 -> 0.6534615385
A10: 6 | B10: 0.9 | D10: 6 | E10: 12 | F10: =AVERAGE((B$5:INDIRECT(_xlfn.CONCAT("B",$B$3-D10+4))-INDIRECT(_xlfn.CONCAT("B",5+D10)):INDIRECT(_xlfn.CONCAT("B",$B$3+4)))^2)*0.5 -> 0.8095833333
A11: 7 | B11: 1.3 | D11: 7 | E11: 11 | F11: =AVERAGE((B$5:INDIRECT(_xlfn.CONCAT("B",$B$3-D11+4))-INDIRECT(_xlfn.CONCAT("B",5+D11)):INDIRECT(_xlfn.CONCAT("B",$B$3+4)))^2)*0.5 -> 0.9313636364
A12: 8 | B12: 1.7 | D12: 8 | E12: 10 | F12: =AVERAGE((B$5:INDIRECT(_xlfn.CONCAT("B",$B$3-D12+4))-INDIRECT(_xlfn.CONCAT("B",5+D12)):INDIRECT(_xlfn.CONCAT("B",$B$3+4)))^2)*0.5 -> 0.832
A13: 9 | B13: 1.9 | D13: 9 | E13: 9 | F13: =AVERAGE((B$5:INDIRECT(_xlfn.CONCAT("B",$B$3-D13+4))-INDIRECT(_xlfn.CONCAT("B",5+D13)):INDIRECT(_xlfn.CONCAT("B",$B$3+4)))^2)*0.5 -> 0.8861111111
A14: =A13+1 -> 10 | B14: 1.8 | D14: 10 | E14: 8 | F14: =AVERAGE((B$5:INDIRECT(_xlfn.CONCAT("B",$B$3-D14+4))-INDIRECT(_xlfn.CONCAT("B",5+D14)):INDIRECT(_xlfn.CONCAT("B",$B$3+4)))^2)*0.5 -> 1.16625
A15: 11 | B15: 3.2 | D15: 11 | E15: 7 | F15: =AVERAGE((B$5:INDIRECT(_xlfn.CONCAT("B",$B$3-D15+4))-INDIRECT(_xlfn.CONCAT("B",5+D15)):INDIRECT(_xlfn.CONCAT("B",$B$3+4)))^2)*0.5 -> 1.175
A16: 12 | B16: 3.5 | D16: 12 | E16: 6 | F16: =AVERAGE((B$5:INDIRECT(_xlfn.CONCAT("B",$B$3-D16+4))-INDIRECT(_xlfn.CONCAT("B",5+D16)):INDIRECT(_xlfn.CONCAT("B",$B$3+4)))^2)*0.5 -> 0.9925
A17: 13 | B17: 2.7 | D17: 13 | E17: 5 | F17: =AVERAGE((B$5:INDIRECT(_xlfn.CONCAT("B",$B$3-D17+4))-INDIRECT(_xlfn.CONCAT("B",5+D17)):INDIRECT(_xlfn.CONCAT("B",$B$3+4)))^2)*0.5 -> 0.781
A18: 14 | B18: 2.8 | D18: 14 | E18: 4 | F18: =AVERAGE((B$5:INDIRECT(_xlfn.CONCAT("B",$B$3-D18+4))-INDIRECT(_xlfn.CONCAT("B",5+D18)):INDIRECT(_xlfn.CONCAT("B",$B$3+4)))^2)*0.5 -> 0.56875
A19: 15 | B19: 3.1 | D19: 15 | E19: 3 | F19: =AVERAGE((B$5:INDIRECT(_xlfn.CONCAT("B",$B$3-D19+4))-INDIRECT(_xlfn.CONCAT("B",5+D19)):INDIRECT(_xlfn.CONCAT("B",$B$3+4)))^2)*0.5 -> 0.49
A20: 16 | B20: 2.3 | D20: 16 | E20: 2 | F20: =AVERAGE((B$5:INDIRECT(_xlfn.CONCAT("B",$B$3-D20+4))-INDIRECT(_xlfn.CONCAT("B",5+D20)):INDIRECT(_xlfn.CONCAT("B",$B$3+4)))^2)*0.5 -> 1.22
A21: 17 | B21: 3.4 | D21: 17 | E21: 1 | F21: =AVERAGE((B$5:INDIRECT(_xlfn.CONCAT("B",$B$3-D21+4))-INDIRECT(_xlfn.CONCAT("B",5+D21)):INDIRECT(_xlfn.CONCAT("B",$B$3+4)))^2)*0.5 -> 0.605
A22: 18 | B22: 2.3
A24: 2- Calculer valeurs de variogrammes théoriques (isotrope) et de covariance en fonction de h
B26: Pépite | D26: Sphérique | F26: Exponentiel | H26: Gaussien | J26: h^b
B27: C0 | D27: C | E27: a | F27: C | G27: a | H27: C | I27: a | J27: a | K27: b
B28: 3 | D28: 10 | E28: 56 | F28: 10 | G28: 100 | H28: 2.3 | I28: 12 | J28: 1 | K28: 1.5
A29: h | B29: gamma(h) | C29: C(h) | D29: gamma(h) | E29: C(h) | F29: gamma(h) | G29: C(h) | H29: gamma(h) | I29: C(h) | J29: gamma(h_
A30: 10 | B30: =IF(A30>0,$B$28,0) -> 3 | C30: 0 | D30: =$D$28*(1.5*MIN(E$28,A30)/$E$28-0.5*(MIN(E$28,A30)/$E$28)^3) -> 2.650100219 | E30: =D$28-D30 -> 7.349899781 | F30: =F$28*(1-EXP(-3*$A30/$G$28)) -> 2.591817793 | G30: =F$28-F30 -> 7.408182207 | H30: =H$28*(1-EXP(-3*($A30/$I$28)^2)) -> 2.013616716 | I30: =H$28-H30 -> 0.2863832843 | J30: =($A30/$J$28)^$K$28 -> 31.6227766
A32: 3- Cas d'un effet de pépite + 2 sphériques de portée et palier différents
B34: Pépite | D34: Sphérique 1 | F34: Sphérique 2
B35: C0 | D35: C | E35: a | F35: C | G35: a
B36: 3 | D36: 22 | E36: 56 | F36: 36 | G36: 150 | H36: Total
A37: h | B37: gamma(h) | C37: C(h) | D37: gamma(h) | E37: C(h) | F37: gamma(h) | G37: C(h) | H37: gamma(h) | I37: C(h)
A38: 10 | B38: =IF(A38>0,$B$36,0) -> 3 | C38: 0 | D38: =$D$36*(1.5*MIN(E$36,A38)/$E$36-0.5*(MIN(E$36,A38)/$E$36)^3) -> 5.830220481 | E38: =D$28-D38 -> 4.169779519 | F38: =F$36*(1.5*MIN(G$36,A38)/G$36-0.5*(MIN(G$36,A38)/G$36)^3) -> 3.594666667 | G38: =F$36-F38 -> 32.40533333 | H38: =B38+D38+F38 -> 12.42488715 | I38: 36.57511285
A41: 4- Calculer la portée dans une direction donnée sachant les portées selon les deux directions principales (anisotropie géométrique)
D43: Exemples pour tester vos calculs
A44: Grande portée | D44: 1000 | E44: 55
A45: Petite portée | D45: 300 | E45: 20 | G45: Note: Lorsqu'il y a plus d'une composante anisotrope, il faut faire le calcul séparément pour chaque composante
A46: azimut selon la grande portée | D46: 87 | E46: 135
A47: azimut souhaité | D47: 60 | E47: 80
A48: portée selon l'azimut souhaité | D48: =D44*D45/SQRT(D45^2*COS(RADIANS(D46-D47))^2+D44^2*SIN(RADIANS(D46-D47))^2) -> 569.4355893 | E48: =E44*E45/SQRT(E45^2*COS(RADIANS(E46-E47))^2+E44^2*SIN(RADIANS(E46-E47))^2) -> 23.66055716

Sheet Variance_bloc
A1: Taille des blocs | E1: Variance de bloc | G1: Variance d'un point dans un bloc
A2: vx | B2: 50 | D2: sphérique | E2: =$B$7-$B$7*AVERAGE(1.5*(B132:AB158)-0.5*((B132:AB158)^3)) -> 59.13400265 | G2: =$B$6+$B$7-E2 -> 70.86599735 | N2: =E2/3 -> 19.71133422
A3: vy | B3: 50 | D3: exponentiel | E3: =$B$7*AVERAGE(EXP(-3*(B104:AB130))) -> 44.77128043 | G3: =$B$6+$B$7-E3 -> 85.22871957
A4: vz | B4: 5 | D4: gaussien | E4: =$B$7*AVERAGE(EXP(-3*((B104:AB130)^2))) -> 79.68996554 | G4: =$B$6+$B$7-E4 -> 50.31003446
A6: C0 | B6: 10 | E6: Explication de la démarche
A7: C | B7: 120 | E7: 1- une grille interne centrée de 3x3x3 points également espacés est générée en 3D pour un bloc unitaire (1x1x1)
A8: ax | B8: 80 | E8: 2- les écarts hx, hy et hz entre tous ces points sont calculés et multipliés par vx/ax, vy/ay et vz/az pour tenir compte de la taille du bloc souhaité et des portées dans chaque direction. Le carré est calculé.
A9: ay | B9: 80 | E9: 3- on calcule les h entre ces points (plage B104 à AB130) pour gaussien et exponentiel où la distance jusqu'à un max de 1 pour le sphérique (plage B132:AB158)
A10: az | B10: 10 | E10: 4- on fait la moyenne des 27x27 valeurs de la covariance (variance de bloc) ou du variogramme (variance d'un point dans le bloc)
A12: vx/ax | B12: =B2/B8 -> 0.625 | E12: Note: Il s'agit d'une approximation car la grille 3x3x3 est un peu petite pour avoir une bone précision et excel n'est pas super numériquement
A13: vy/ay | B13: =B3/B9 -> 0.625 | E13: Note: en divisant par ax, ay et az, les portées applicables deviennent 1 dans toutes les directions
A14: vz/az | B14: 0.5 | E14: Note: ici on suppose que les blocs sont parallèeles aux directions d'anisotropie. Si ce n'est pas le cas, il faudrait appliquer une rotation aux points de discrétisation pour les rendre parallèles aux directions d'anisotropie.
A17: hx^2 | B17: =TRANSPOSE(A18:A44) -> -0.3333333333 | C17: 0 | D17: 0.3333333333 | E17: -0.3333333333 | F17: 0 | G17: 0.3333333333 | H17: -0.3333333333 | I17: 0 | J17: 0.3333333333 | K17: -0.3333333333 | L17: 0 | M17: 0.3333333333 | N17: -0.3333333333 | O17: 0 | P17: 0.3333333333 | Q17: -0.3333333333 | R17: 0 | S17: 0.3333333333 | T17: -0.3333333333 | U17: 0 | V17: 0.3333333333 | W17: -0.3333333333 | X17: 0 | Y17: 0.3333333333 | Z17: -0.3333333333 | AA17: 0 | AB17: 0.3333333333
A18: -0.3333333333 | B18: =((B$17-$A18)*$B$12)^2 -> 0 | C18: 0.04340277778 | D18: 0.1736111111 | E18: 0 | F18: 0.04340277778 | G18: 0.1736111111 | H18: 0 | I18: 0.04340277778 | J18: 0.1736111111 | K18: 0 | L18: 0.04340277778 | M18: 0.1736111111 | N18: 0 | O18: 0.04340277778 | P18: 0.1736111111 | Q18: 0 | R18: =((R$17-$A18)*$B$12)^2 -> 0.04340277778 | S18: 0.1736111111 | T18: 0 | U18: 0.04340277778 | V18: 0.1736111111 | W18: 0 | X18: 0.04340277778 | Y18: 0.1736111111 | Z18: 0 | AA18: 0.04340277778 | AB18: 0.1736111111
A19: 0 | B19: 0.04340277778 | C19: 0 | D19: 0.04340277778 | E19: 0.04340277778 | F19: 0 | G19: 0.04340277778 | H19: 0.04340277778 | I19: 0 | J19: 0.04340277778 | K19: 0.04340277778 | L19: 0 | M19: 0.04340277778 | N19: 0.04340277778 | O19: 0 | P19: 0.04340277778 | Q19: 0.04340277778 | R19: 0 | S19: 0.04340277778 | T19: 0.04340277778 | U19: 0 | V19: 0.04340277778 | W19: 0.04340277778 | X19: 0 | Y19: 0.04340277778 | Z19: 0.04340277778 | AA19: 0 | AB19: 0.04340277778
A20: 0.3333333333 | B20: 0.1736111111 | C20: 0.04340277778 | D20: 0 | E20: 0.1736111111 | F20: 0.04340277778 | G20: 0 | H20: 0.1736111111 | I20: 0.04340277778 | J20: 0 | K20: 0.1736111111 | L20: 0.04340277778 | M20: 0 | N20: 0.1736111111 | O20: 0.04340277778 | P20: 0 | Q20: 0.1736111111 | R20: 0.04340277778 | S20: 0 | T20: 0.1736111111 | U20: 0.04340277778 | V20: 0 | W20: 0.1736111111 | X20: 0.04340277778 | Y20: 0 | Z20: 0.1736111111 | AA20: 0.04340277778 | AB20: 0
A21: -0.3333333333 | B21: 0 | C21: 0.04340277778 | D21: 0.1736111111 | E21: 0 | F21: 0.04340277778 | G21: 0.1736111111 | H21: 0 | I21: 0.04340277778 | J21: 0.1736111111 | K21: 0 | L21: 0.04340277778 | M21: 0.1736111111 | N21: 0 | O21: 0.04340277778 | P21: 0.1736111111 | Q21: 0 | R21: 0.04340277778 | S21: 0.1736111111 | T21: 0 | U21: 0.04340277778 | V21: 0.1736111111 | W21: 0 | X21: 0.04340277778 | Y21: 0.1736111111 | Z21: 0 | AA21: 0.04340277778 | AB21: 0.1736111111
A22: 0 | B22: 0.04340277778 | C22: 0 | D22: 0.04340277778 | E22: 0.04340277778 | F22: 0 | G22: 0.04340277778 | H22: 0.04340277778 | I22: 0 | J22: 0.04340277778 | K22: 0.04340277778 | L22: 0 | M22: 0.04340277778 | N22: 0.04340277778 | O22: 0 | P22: 0.04340277778 | Q22: 0.04340277778 | R22: 0 | S22: 0.04340277778 | T22: 0.04340277778 | U22: 0 | V22: 0.04340277778 | W22: 0.04340277778 | X22: 0 | Y22: 0.04340277778 | Z22: 0.04340277778 | AA22: 0 | AB22: 0.04340277778
A23: 0.3333333333 | B23: 0.1736111111 | C23: 0.04340277778 | D23: 0 | E23: 0.1736111111 | F23: 0.04340277778 | G23: 0 | H23: 0.1736111111 | I23: 0.04340277778 | J23: 0 | K23: 0.1736111111 | L23: 0.04340277778 | M23: 0 | N23: 0.1736111111 | O23: 0.04340277778 | P23: 0 | Q23: 0.1736111111 | R23: 0.04340277778 | S23: 0 | T23: 0.1736111111 | U23: 0.04340277778 | V23: 0 | W23: 0.1736111111 | X23: 0.04340277778 | Y23: 0 | Z23: 0.1736111111 | AA23: 0.04340277778 | AB23: 0
A24: -0.3333333333 | B24: 0 | C24: 0.04340277778 | D24: 0.1736111111 | E24: 0 | F24: 0.04340277778 | G24: 0.1736111111 | H24: 0 | I24: 0.04340277778 | J24: 0.1736111111 | K24: 0 | L24: 0.04340277778 | M24: 0.1736111111 | N24: 0 | O24: 0.04340277778 | P24: 0.1736111111 | Q24: 0 | R24: 0.04340277778 | S24: 0.1736111111 | T24: 0 | U24: 0.04340277778 | V24: 0.1736111111 | W24: 0 | X24: 0.04340277778 | Y24: 0.1736111111 | Z24: 0 | AA24: 0.04340277778 | AB24: 0.1736111111
A25: 0 | B25: 0.04340277778 | C25: 0 | D25: 0.04340277778 | E25: 0.04340277778 | F25: 0 | G25: 0.04340277778 | H25: 0.04340277778 | I25: 0 | J25: 0.04340277778 | K25: 0.04340277778 | L25: 0 | M25: 0.04340277778 | N25: 0.04340277778 | O25: 0 | P25: 0.04340277778 | Q25: 0.04340277778 | R25: 0 | S25: 0.04340277778 | T25: 0.04340277778 | U25: 0 | V25: 0.04340277778 | W25: 0.04340277778 | X25: 0 | Y25: 0.04340277778 | Z25: 0.04340277778 | AA25: 0 | AB25: 0.04340277778
A26: 0.3333333333 | B26: 0.1736111111 | C26: 0.04340277778 | D26: 0 | E26: 0.1736111111 | F26: 0.04340277778 | G26: 0 | H26: 0.1736111111 | I26: 0.04340277778 | J26: 0 | K26: 0.1736111111 | L26: 0.04340277778 | M26: 0 | N26: 0.1736111111 | O26: 0.04340277778 | P26: 0 | Q26: 0.1736111111 | R26: 0.04340277778 | S26: 0 | T26: 0.1736111111 | U26: 0.04340277778 | V26: 0 | W26: 0.1736111111 | X26: 0.04340277778 | Y26: 0 | Z26: 0.1736111111 | AA26: 0.04340277778 | AB26: 0
A27: -0.3333333333 | B27: 0 | C27: 0.04340277778 | D27: 0.1736111111 | E27: 0 | F27: 0.04340277778 | G27: 0.1736111111 | H27: 0 | I27: 0.04340277778 | J27: 0.1736111111 | K27: 0 | L27: 0.04340277778 | M27: 0.1736111111 | N27: 0 | O27: 0.04340277778 | P27: 0.1736111111 | Q27: 0 | R27: 0.04340277778 | S27: 0.1736111111 | T27: 0 | U27: 0.04340277778 | V27: 0.1736111111 | W27: 0 | X27: 0.04340277778 | Y27: 0.1736111111 | Z27: 0 | AA27: 0.04340277778 | AB27: 0.1736111111
A28: 0 | B28: 0.04340277778 | C28: 0 | D28: 0.04340277778 | E28: 0.04340277778 | F28: 0 | G28: 0.04340277778 | H28: 0.04340277778 | I28: 0 | J28: 0.04340277778 | K28: 0.04340277778 | L28: 0 | M28: 0.04340277778 | N28: 0.04340277778 | O28: 0 | P28: 0.04340277778 | Q28: 0.04340277778 | R28: 0 | S28: 0.04340277778 | T28: 0.04340277778 | U28: 0 | V28: 0.04340277778 | W28: 0.04340277778 | X28: 0 | Y28: 0.04340277778 | Z28: 0.04340277778 | AA28: 0 | AB28: 0.04340277778
A29: 0.3333333333 | B29: 0.1736111111 | C29: 0.04340277778 | D29: 0 | E29: 0.1736111111 | F29: 0.04340277778 | G29: 0 | H29: 0.1736111111 | I29: 0.04340277778 | J29: 0 | K29: 0.1736111111 | L29: 0.04340277778 | M29: 0 | N29: 0.1736111111 | O29: 0.04340277778 | P29: 0 | Q29: 0.1736111111 | R29: 0.04340277778 | S29: 0 | T29: 0.1736111111 | U29: 0.04340277778 | V29: 0 | W29: 0.1736111111 | X29: 0.04340277778 | Y29: 0 | Z29: 0.1736111111 | AA29: 0.04340277778 | AB29: 0
A30: -0.3333333333 | B30: 0 | C30: 0.04340277778 | D30: 0.1736111111 | E30: 0 | F30: 0.04340277778 | G30: 0.1736111111 | H30: 0 | I30: 0.04340277778 | J30: 0.1736111111 | K30: 0 | L30: 0.04340277778 | M30: 0.1736111111 | N30: 0 | O30: 0.04340277778 | P30: 0.1736111111 | Q30: 0 | R30: 0.04340277778 | S30: 0.1736111111 | T30: 0 | U30: 0.04340277778 | V30: 0.1736111111 | W30: 0 | X30: 0.04340277778 | Y30: 0.1736111111 | Z30: 0 | AA30: 0.04340277778 | AB30: 0.1736111111
A31: 0 | B31: 0.04340277778 | C31: 0 | D31: 0.04340277778 | E31: 0.04340277778 | F31: 0 | G31: 0.04340277778 | H31: 0.04340277778 | I31: 0 | J31: 0.04340277778 | K31: 0.04340277778 | L31: 0 | M31: 0.04340277778 | N31: 0.04340277778 | O31: 0 | P31: 0.04340277778 | Q31: 0.04340277778 | R31: 0 | S31: 0.04340277778 | T31: 0.04340277778 | U31: 0 | V31: 0.04340277778 | W31: 0.04340277778 | X31: 0 | Y31: 0.04340277778 | Z31: 0.04340277778 | AA31: 0 | AB31: 0.04340277778
A32: 0.3333333333 | B32: 0.1736111111 | C32: 0.04340277778 | D32: 0 | E32: 0.1736111111 | F32: 0.04340277778 | G32: 0 | H32: 0.1736111111 | I32: 0.04340277778 | J32: 0 | K32: 0.1736111111 | L32: 0.04340277778 | M32: 0 | N32: 0.1736111111 | O32: 0.04340277778 | P32: 0 | Q32: 0.1736111111 | R32: 0.04340277778 | S32: 0 | T32: 0.1736111111 | U32: 0.04340277778 | V32: 0 | W32: 0.1736111111 | X32: 0.04340277778 | Y32: 0 | Z32: 0.1736111111 | AA32: 0.04340277778 | AB32: 0
A33: -0.3333333333 | B33: 0 | C33: 0.04340277778 | D33: 0.1736111111 | E33: 0 | F33: 0.04340277778 | G33: 0.1736111111 | H33: 0 | I33: 0.04340277778 | J33: 0.1736111111 | K33: 0 | L33: 0.04340277778 | M33: 0.1736111111 | N33: 0 | O33: 0.04340277778 | P33: 0.1736111111 | Q33: =((Q$17-$A33)*$B$12)^2 -> 0 | R33: 0.04340277778 | S33: 0.1736111111 | T33: 0 | U33: 0.04340277778 | V33: 0.1736111111 | W33: 0 | X33: 0.04340277778 | Y33: 0.1736111111 | Z33: 0 | AA33: 0.04340277778 | AB33: 0.1736111111
A34: 0 | B34: =((B$17-$A34)*$B$12)^2 -> 0.04340277778 | C34: 0 | D34: 0.04340277778 | E34: 0.04340277778 | F34: 0 | G34: 0.04340277778 | H34: 0.04340277778 | I34: 0 | J34: 0.04340277778 | K34: 0.04340277778 | L34: 0 | M34: 0.04340277778 | N34: 0.04340277778 | O34: 0 | P34: 0.04340277778 | Q34: 0.04340277778 | R34: 0 | S34: 0.04340277778 | T34: 0.04340277778 | U34: 0 | V34: 0.04340277778 | W34: 0.04340277778 | X34: 0 | Y34: 0.04340277778 | Z34: 0.04340277778 | AA34: 0 | AB34: =((AB$17-$A34)*$B$12)^2 -> 0.04340277778
A35: 0.3333333333 | B35: 0.1736111111 | C35: 0.04340277778 | D35: 0 | E35: 0.1736111111 | F35: 0.04340277778 | G35: 0 | H35: 0.1736111111 | I35: 0.04340277778 | J35: 0 | K35: 0.1736111111 | L35: 0.04340277778 | M35: 0 | N35: 0.1736111111 | O35: 0.04340277778 | P35: 0 | Q35: 0.1736111111 | R35: 0.04340277778 | S35: 0 | T35: 0.1736111111 | U35: 0.04340277778 | V35: 0 | W35: 0.1736111111 | X35: 0.04340277778 | Y35: 0 | Z35: 0.1736111111 | AA35: 0.04340277778 | AB35: 0
A36: -0.3333333333 | B36: 0 | C36: 0.04340277778 | D36: 0.1736111111 | E36: 0 | F36: 0.04340277778 | G36: 0.1736111111 | H36: 0 | I36: 0.04340277778 | J36: 0.1736111111 | K36: 0 | L36: 0.04340277778 | M36: 0.1736111111 | N36: 0 | O36: 0.04340277778 | P36: 0.1736111111 | Q36: 0 | R36: 0.04340277778 | S36: 0.1736111111 | T36: 0 | U36: 0.04340277778 | V36: 0.1736111111 | W36: 0 | X36: 0.04340277778 | Y36: 0.1736111111 | Z36: 0 | AA36: 0.04340277778 | AB36: 0.1736111111
A37: 0 | B37: 0.04340277778 | C37: 0 | D37: 0.04340277778 | E37: 0.04340277778 | F37: 0 | G37: 0.04340277778 | H37: 0.04340277778 | I37: 0 | J37: 0.04340277778 | K37: 0.04340277778 | L37: 0 | M37: 0.04340277778 | N37: 0.04340277778 | O37: 0 | P37: 0.04340277778 | Q37: 0.04340277778 | R37: 0 | S37: 0.04340277778 | T37: 0.04340277778 | U37: 0 | V37: 0.04340277778 | W37: 0.04340277778 | X37: 0 | Y37: 0.04340277778 | Z37: 0.04340277778 | AA37: 0 | AB37: 0.04340277778
A38: 0.3333333333 | B38: 0.1736111111 | C38: 0.04340277778 | D38: 0 | E38: 0.1736111111 | F38: 0.04340277778 | G38: 0 | H38: 0.1736111111 | I38: 0.04340277778 | J38: 0 | K38: 0.1736111111 | L38: 0.04340277778 | M38: 0 | N38: 0.1736111111 | O38: 0.04340277778 | P38: 0 | Q38: 0.1736111111 | R38: 0.04340277778 | S38: 0 | T38: 0.1736111111 | U38: 0.04340277778 | V38: 0 | W38: 0.1736111111 | X38: 0.04340277778 | Y38: 0 | Z38: 0.1736111111 | AA38: 0.04340277778 | AB38: 0
A39: -0.3333333333 | B39: 0 | C39: 0.04340277778 | D39: 0.1736111111 | E39: 0 | F39: 0.04340277778 | G39: 0.1736111111 | H39: 0 | I39: 0.04340277778 | J39: 0.1736111111 | K39: 0 | L39: 0.04340277778 | M39: 0.1736111111 | N39: 0 | O39: 0.04340277778 | P39: 0.1736111111 | Q39: 0 | R39: 0.04340277778 | S39: 0.1736111111 | T39: 0 | U39: 0.04340277778 | V39: 0.1736111111 | W39: 0 | X39: 0.04340277778 | Y39: 0.1736111111 | Z39: 0 | AA39: 0.04340277778 | AB39: 0.1736111111
A40: 0 | B40: 0.04340277778 | C40: 0 | D40: 0.04340277778 | E40: 0.04340277778 | F40: 0 | G40: 0.04340277778 | H40: 0.04340277778 | I40: 0 | J40: 0.04340277778 | K40: 0.04340277778 | L40: 0 | M40: 0.04340277778 | N40: 0.04340277778 | O40: 0 | P40: 0.04340277778 | Q40: 0.04340277778 | R40: 0 | S40: 0.04340277778 | T40: 0.04340277778 | U40: 0 | V40: 0.04340277778 | W40: 0.04340277778 | X40: 0 | Y40: 0.04340277778 | Z40: 0.04340277778 | AA40: 0 | AB40: 0.04340277778
A41: 0.3333333333 | B41: 0.1736111111 | C41: 0.04340277778 | D41: 0 | E41: 0.1736111111 | F41: 0.04340277778 | G41: 0 | H41: 0.1736111111 | I41: 0.04340277778 | J41: 0 | K41: 0.1736111111 | L41: 0.04340277778 | M41: 0 | N41: 0.1736111111 | O41: 0.04340277778 | P41: 0 | Q41: 0.1736111111 | R41: 0.04340277778 | S41: 0 | T41: 0.1736111111 | U41: 0.04340277778 | V41: 0 | W41: 0.1736111111 | X41: 0.04340277778 | Y41: 0 | Z41: 0.1736111111 | AA41: 0.04340277778 | AB41: 0
A42: -0.3333333333 | B42: 0 | C42: 0.04340277778 | D42: 0.1736111111 | E42: 0 | F42: 0.04340277778 | G42: 0.1736111111 | H42: 0 | I42: 0.04340277778 | J42: 0.1736111111 | K42: 0 | L42: 0.04340277778 | M42: 0.1736111111 | N42: 0 | O42: 0.04340277778 | P42: 0.1736111111 | Q42: 0 | R42: 0.04340277778 | S42: 0.1736111111 | T42: 0 | U42: 0.04340277778 | V42: 0.1736111111 | W42: 0 | X42: 0.04340277778 | Y42: 0.1736111111 | Z42: 0 | AA42: 0.04340277778 | AB42: 0.1736111111
A43: 0 | B43: 0.04340277778 | C43: 0 | D43: 0.04340277778 | E43: 0.04340277778 | F43: 0 | G43: 0.04340277778 | H43: 0.04340277778 | I43: 0 | J43: 0.04340277778 | K43: 0.04340277778 | L43: 0 | M43: 0.04340277778 | N43: 0.04340277778 | O43: 0 | P43: 0.04340277778 | Q43: 0.04340277778 | R43: 0 | S43: 0.04340277778 | T43: 0.04340277778 | U43: 0 | V43: 0.04340277778 | W43: 0.04340277778 | X43: 0 | Y43: 0.04340277778 | Z43: 0.04340277778 | AA43: 0 | AB43: 0.04340277778
A44: 0.3333333333 | B44: 0.1736111111 | C44: 0.04340277778 | D44: 0 | E44: 0.1736111111 | F44: 0.04340277778 | G44: 0 | H44: 0.1736111111 | I44: 0.04340277778 | J44: 0 | K44: 0.1736111111 | L44: 0.04340277778 | M44: 0 | N44: 0.1736111111 | O44: 0.04340277778 | P44: 0 | Q44: 0.1736111111 | R44: 0.04340277778 | S44: 0 | T44: 0.1736111111 | U44: 0.04340277778 | V44: 0 | W44: 0.1736111111 | X44: 0.04340277778 | Y44: 0 | Z44: 0.1736111111 | AA44: 0.04340277778 | AB44: 0
A46: hy^2 | B46: =TRANSPOSE(A47:A73) -> -0.3333333333 | C46: -0.3333333333 | D46: -0.3333333333 | E46: 0 | F46: 0 | G46: 0 | H46: 0.3333333333 | I46: 0.3333333333 | J46: 0.3333333333 | K46: -0.3333333333 | L46: -0.3333333333 | M46: -0.3333333333 | N46: 0 | O46: 0 | P46: 0 | Q46: 0.3333333333 | R46: 0.3333333333 | S46: 0.3333333333 | T46: -0.3333333333 | U46: -0.3333333333 | V46: -0.3333333333 | W46: 0 | X46: 0 | Y46: 0 | Z46: 0.3333333333 | AA46: 0.3333333333 | AB46: 0.3333333333
A47: -0.3333333333 | B47: =((B$17-$A47)*$B$13)^2 -> 0 | C47: =((C$17-$A47)*$B$13)^2 -> 0.04340277778 | D47: 0.1736111111 | E47: 0 | F47: 0.04340277778 | G47: 0.1736111111 | H47: 0 | I47: 0.04340277778 | J47: 0.1736111111 | K47: 0 | L47: 0.04340277778 | M47: 0.1736111111 | N47: 0 | O47: 0.04340277778 | P47: 0.1736111111 | Q47: 0 | R47: 0.04340277778 | S47: =((S$17-$A47)*$B$13)^2 -> 0.1736111111 | T47: 0 | U47: 0.04340277778 | V47: 0.1736111111 | W47: 0 | X47: 0.04340277778 | Y47: 0.1736111111 | Z47: 0 | AA47: 0.04340277778 | AB47: 0.1736111111
A48: -0.3333333333 | B48: =((B$17-$A48)*$B$13)^2 -> 0 | C48: 0.04340277778 | D48: 0.1736111111 | E48: 0 | F48: 0.04340277778 | G48: 0.1736111111 | H48: 0 | I48: 0.04340277778 | J48: 0.1736111111 | K48: 0 | L48: 0.04340277778 | M48: 0.1736111111 | N48: 0 | O48: 0.04340277778 | P48: 0.1736111111 | Q48: 0 | R48: 0.04340277778 | S48: 0.1736111111 | T48: 0 | U48: 0.04340277778 | V48: 0.1736111111 | W48: 0 | X48: 0.04340277778 | Y48: 0.1736111111 | Z48: 0 | AA48: 0.04340277778 | AB48: 0.1736111111
A49: -0.3333333333 | B49: 0 | C49: 0.04340277778 | D49: 0.1736111111 | E49: 0 | F49: 0.04340277778 | G49: 0.1736111111 | H49: 0 | I49: 0.04340277778 | J49: 0.1736111111 | K49: 0 | L49: 0.04340277778 | M49: 0.1736111111 | N49: 0 | O49: 0.04340277778 | P49: 0.1736111111 | Q49: 0 | R49: 0.04340277778 | S49: 0.1736111111 | T49: 0 | U49: 0.04340277778 | V49: 0.1736111111 | W49: 0 | X49: 0.04340277778 | Y49: 0.1736111111 | Z49: 0 | AA49: 0.04340277778 | AB49: 0.1736111111
A50: 0 | B50: 0.04340277778 | C50: 0 | D50: 0.04340277778 | E50: 0.04340277778 | F50: 0 | G50: 0.04340277778 | H50: 0.04340277778 | I50: 0 | J50: 0.04340277778 | K50: 0.04340277778 | L50: 0 | M50: 0.04340277778 | N50: 0.04340277778 | O50: 0 | P50: 0.04340277778 | Q50: 0.04340277778 | R50: 0 | S50: 0.04340277778 | T50: 0.04340277778 | U50: 0 | V50: 0.04340277778 | W50: 0.04340277778 | X50: 0 | Y50: 0.04340277778 | Z50: 0.04340277778 | AA50: 0 | AB50: 0.04340277778
A51: 0 | B51: 0.04340277778 | C51: 0 | D51: 0.04340277778 | E51: 0.04340277778 | F51: 0 | G51: 0.04340277778 | H51: 0.04340277778 | I51: 0 | J51: 0.04340277778 | K51: 0.04340277778 | L51: 0 | M51: 0.04340277778 | N51: 0.04340277778 | O51: 0 | P51: 0.04340277778 | Q51: 0.04340277778 | R51: 0 | S51: 0.04340277778 | T51: 0.04340277778 | U51: 0 | V51: 0.04340277778 | W51: 0.04340277778 | X51: 0 | Y51: 0.04340277778 | Z51: 0.04340277778 | AA51: 0 | AB51: 0.04340277778
A52: 0 | B52: 0.04340277778 | C52: 0 | D52: 0.04340277778 | E52: 0.04340277778 | F52: 0 | G52: 0.04340277778 | H52: 0.04340277778 | I52: 0 | J52: 0.04340277778 | K52: 0.04340277778 | L52: 0 | M52: 0.04340277778 | N52: 0.04340277778 | O52: 0 | P52: 0.04340277778 | Q52: 0.04340277778 | R52: 0 | S52: 0.04340277778 | T52: 0.04340277778 | U52: 0 | V52: 0.04340277778 | W52: 0.04340277778 | X52: 0 | Y52: 0.04340277778 | Z52: 0.04340277778 | AA52: 0 | AB52: 0.04340277778
A53: 0.3333333333 | B53: 0.1736111111 | C53: 0.04340277778 | D53: 0 | E53: 0.1736111111 | F53: 0.04340277778 | G53: 0 | H53: 0.1736111111 | I53: 0.04340277778 | J53: 0 | K53: 0.1736111111 | L53: 0.04340277778 | M53: 0 | N53: 0.1736111111 | O53: 0.04340277778 | P53: 0 | Q53: 0.1736111111 | R53: 0.04340277778 | S53: 0 | T53: 0.1736111111 | U53: 0.04340277778 | V53: 0 | W53: 0.1736111111 | X53: 0.04340277778 | Y53: 0 | Z53: 0.1736111111 | AA53: 0.04340277778 | AB53: 0
A54: 0.3333333333 | B54: 0.1736111111 | C54: 0.04340277778 | D54: 0 | E54: 0.1736111111 | F54: 0.04340277778 | G54: 0 | H54: 0.1736111111 | I54: 0.04340277778 | J54: 0 | K54: 0.1736111111 | L54: 0.04340277778 | M54: 0 | N54: 0.1736111111 | O54: 0.04340277778 | P54: 0 | Q54: 0.1736111111 | R54: 0.04340277778 | S54: 0 | T54: 0.1736111111 | U54: 0.04340277778 | V54: 0 | W54: 0.1736111111 | X54: 0.04340277778 | Y54: 0 | Z54: 0.1736111111 | AA54: 0.04340277778 | AB54: 0
A55: 0.3333333333 | B55: 0.1736111111 | C55: 0.04340277778 | D55: 0 | E55: 0.1736111111 | F55: 0.04340277778 | G55: 0 | H55: 0.1736111111 | I55: 0.04340277778 | J55: 0 | K55: 0.1736111111 | L55: 0.04340277778 | M55: 0 | N55: 0.1736111111 | O55: 0.04340277778 | P55: 0 | Q55: 0.1736111111 | R55: 0.04340277778 | S55: 0 | T55: 0.1736111111 | U55: 0.04340277778 | V55: 0 | W55: 0.1736111111 | X55: 0.04340277778 | Y55: 0 | Z55: 0.1736111111 | AA55: 0.04340277778 | AB55: 0
A56: -0.3333333333 | B56: 0 | C56: 0.04340277778 | D56: 0.1736111111 | E56: 0 | F56: 0.04340277778 | G56: 0.1736111111 | H56: 0 | I56: 0.04340277778 | J56: 0.1736111111 | K56: 0 | L56: 0.04340277778 | M56: 0.1736111111 | N56: 0 | O56: 0.04340277778 | P56: 0.1736111111 | Q56: 0 | R56: 0.04340277778 | S56: 0.1736111111 | T56: 0 | U56: 0.04340277778 | V56: 0.1736111111 | W56: 0 | X56: 0.04340277778 | Y56: 0.1736111111 | Z56: 0 | AA56: 0.04340277778 | AB56: 0.1736111111
A57: -0.3333333333 | B57: 0 | C57: 0.04340277778 | D57: 0.1736111111 | E57: 0 | F57: 0.04340277778 | G57: 0.1736111111 | H57: 0 | I57: 0.04340277778 | J57: 0.1736111111 | K57: 0 | L57: 0.04340277778 | M57: 0.1736111111 | N57: 0 | O57: 0.04340277778 | P57: 0.1736111111 | Q57: 0 | R57: 0.04340277778 | S57: 0.1736111111 | T57: 0 | U57: 0.04340277778 | V57: 0.1736111111 | W57: 0 | X57: 0.04340277778 | Y57: 0.1736111111 | Z57: 0 | AA57: 0.04340277778 | AB57: 0.1736111111
A58: -0.3333333333 | B58: 0 | C58: 0.04340277778 | D58: 0.1736111111 | E58: 0 | F58: 0.04340277778 | G58: 0.1736111111 | H58: 0 | I58: 0.04340277778 | J58: 0.1736111111 | K58: 0 | L58: 0.04340277778 | M58: 0.1736111111 | N58: 0 | O58: 0.04340277778 | P58: 0.1736111111 | Q58: 0 | R58: 0.04340277778 | S58: 0.1736111111 | T58: 0 | U58: 0.04340277778 | V58: 0.1736111111 | W58: 0 | X58: 0.04340277778 | Y58: 0.1736111111 | Z58: 0 | AA58: 0.04340277778 | AB58: 0.1736111111
A59: 0 | B59: 0.04340277778 | C59: 0 | D59: 0.04340277778 | E59: 0.04340277778 | F59: 0 | G59: 0.04340277778 | H59: 0.04340277778 | I59: 0 | J59: 0.04340277778 | K59: 0.04340277778 | L59: 0 | M59: 0.04340277778 | N59: 0.04340277778 | O59: 0 | P59: 0.04340277778 | Q59: 0.04340277778 | R59: 0 | S59: 0.04340277778 | T59: 0.04340277778 | U59: 0 | V59: 0.04340277778 | W59: 0.04340277778 | X59: 0 | Y59: 0.04340277778 | Z59: 0.04340277778 | AA59: 0 | AB59: 0.04340277778
A60: 0 | B60: 0.04340277778 | C60: 0 | D60: 0.04340277778 | E60: 0.04340277778 | F60: 0 | G60: 0.04340277778 | H60: 0.04340277778 | I60: 0 | J60: 0.04340277778 | K60: 0.04340277778 | L60: 0 | M60: 0.04340277778 | N60: 0.04340277778 | O60: 0 | P60: 0.04340277778 | Q60: 0.04340277778 | R60: 0 | S60: 0.04340277778 | T60: 0.04340277778 | U60: 0 | V60: 0.04340277778 | W60: 0.04340277778 | X60: 0 | Y60: 0.04340277778 | Z60: 0.04340277778 | AA60: 0 | AB60: 0.04340277778
A61: 0 | B61: 0.04340277778 | C61: 0 | D61: 0.04340277778 | E61: 0.04340277778 | F61: 0 | G61: 0.04340277778 | H61: 0.04340277778 | I61: 0 | J61: 0.04340277778 | K61: 0.04340277778 | L61: 0 | M61: 0.04340277778 | N61: 0.04340277778 | O61: 0 | P61: 0.04340277778 | Q61: 0.04340277778 | R61: 0 | S61: 0.04340277778 | T61: 0.04340277778 | U61: 0 | V61: 0.04340277778 | W61: 0.04340277778 | X61: 0 | Y61: 0.04340277778 | Z61: 0.04340277778 | AA61: 0 | AB61: 0.04340277778
A62: 0.3333333333 | B62: 0.1736111111 | C62: 0.04340277778 | D62: 0 | E62: 0.1736111111 | F62: 0.04340277778 | G62: 0 | H62: 0.1736111111 | I62: 0.04340277778 | J62: 0 | K62: 0.1736111111 | L62: 0.04340277778 | M62: 0 | N62: 0.1736111111 | O62: 0.04340277778 | P62: 0 | Q62: 0.1736111111 | R62: =((R$17-$A62)*$B$13)^2 -> 0.04340277778 | S62: 0 | T62: 0.1736111111 | U62: 0.04340277778 | V62: 0 | W62: 0.1736111111 | X62: 0.04340277778 | Y62: 0 | Z62: 0.1736111111 | AA62: 0.04340277778 | AB62: 0
A63: 0.3333333333 | B63: 0.1736111111 | C63: 0.04340277778 | D63: 0 | E63: 0.1736111111 | F63: 0.04340277778 | G63: 0 | H63: 0.1736111111 | I63: 0.04340277778 | J63: 0 | K63: 0.1736111111 | L63: 0.04340277778 | M63: 0 | N63: 0.1736111111 | O63: 0.04340277778 | P63: 0 | Q63: 0.1736111111 | R63: 0.04340277778 | S63: 0 | T63: 0.1736111111 | U63: 0.04340277778 | V63: 0 | W63: 0.1736111111 | X63: 0.04340277778 | Y63: 0 | Z63: 0.1736111111 | AA63: 0.04340277778 | AB63: 0
A64: 0.3333333333 | B64: =((B$17-$A64)*$B$13)^2 -> 0.1736111111 | C64: 0.04340277778 | D64: 0 | E64: 0.1736111111 | F64: 0.04340277778 | G64: 0 | H64: 0.1736111111 | I64: 0.04340277778 | J64: 0 | K64: 0.1736111111 | L64: 0.04340277778 | M64: 0 | N64: 0.1736111111 | O64: 0.04340277778 | P64: 0 | Q64: 0.1736111111 | R64: 0.04340277778 | S64: 0 | T64: 0.1736111111 | U64: 0.04340277778 | V64: 0 | W64: 0.1736111111 | X64: 0.04340277778 | Y64: 0 | Z64: 0.1736111111 | AA64: 0.04340277778 | AB64: 0
A65: -0.3333333333 | B65: 0 | C65: 0.04340277778 | D65: 0.1736111111 | E65: 0 | F65: 0.04340277778 | G65: 0.1736111111 | H65: 0 | I65: 0.04340277778 | J65: 0.1736111111 | K65: 0 | L65: 0.04340277778 | M65: 0.1736111111 | N65: 0 | O65: 0.04340277778 | P65: 0.1736111111 | Q65: 0 | R65: 0.04340277778 | S65: 0.1736111111 | T65: 0 | U65: 0.04340277778 | V65: 0.1736111111 | W65: 0 | X65: 0.04340277778 | Y65: 0.1736111111 | Z65: 0 | AA65: 0.04340277778 | AB65: 0.1736111111
A66: -0.3333333333 | B66: 0 | C66: 0.04340277778 | D66: 0.1736111111 | E66: 0 | F66: 0.04340277778 | G66: 0.1736111111 | H66: 0 | I66: 0.04340277778 | J66: 0.1736111111 | K66: 0 | L66: 0.04340277778 | M66: 0.1736111111 | N66: 0 | O66: 0.04340277778 | P66: 0.1736111111 | Q66: 0 | R66: 0.04340277778 | S66: 0.1736111111 | T66: 0 | U66: 0.04340277778 | V66: 0.1736111111 | W66: 0 | X66: 0.04340277778 | Y66: 0.1736111111 | Z66: 0 | AA66: 0.04340277778 | AB66: 0.1736111111
A67: -0.3333333333 | B67: 0 | C67: 0.04340277778 | D67: 0.1736111111 | E67: 0 | F67: 0.04340277778 | G67: 0.1736111111 | H67: 0 | I67: 0.04340277778 | J67: 0.1736111111 | K67: 0 | L67: 0.04340277778 | M67: 0.1736111111 | N67: 0 | O67: 0.04340277778 | P67: 0.1736111111 | Q67: 0 | R67: 0.04340277778 | S67: 0.1736111111 | T67: 0 | U67: 0.04340277778 | V67: 0.1736111111 | W67: 0 | X67: 0.04340277778 | Y67: 0.1736111111 | Z67: 0 | AA67: 0.04340277778 | AB67: 0.1736111111
A68: 0 | B68: 0.04340277778 | C68: 0 | D68: 0.04340277778 | E68: 0.04340277778 | F68: 0 | G68: 0.04340277778 | H68: 0.04340277778 | I68: 0 | J68: 0.04340277778 | K68: 0.04340277778 | L68: 0 | M68: 0.04340277778 | N68: 0.04340277778 | O68: 0 | P68: 0.04340277778 | Q68: 0.04340277778 | R68: 0 | S68: 0.04340277778 | T68: 0.04340277778 | U68: 0 | V68: 0.04340277778 | W68: 0.04340277778 | X68: 0 | Y68: 0.04340277778 | Z68: 0.04340277778 | AA68: 0 | AB68: 0.04340277778
A69: 0 | B69: 0.04340277778 | C69: 0 | D69: 0.04340277778 | E69: 0.04340277778 | F69: 0 | G69: 0.04340277778 | H69: 0.04340277778 | I69: 0 | J69: 0.04340277778 | K69: 0.04340277778 | L69: 0 | M69: 0.04340277778 | N69: 0.04340277778 | O69: 0 | P69: 0.04340277778 | Q69: 0.04340277778 | R69: 0 | S69: 0.04340277778 | T69: 0.04340277778 | U69: 0 | V69: 0.04340277778 | W69: 0.04340277778 | X69: 0 | Y69: 0.04340277778 | Z69: 0.04340277778 | AA69: 0 | AB69: 0.04340277778
A70: 0 | B70: 0.04340277778 | C70: 0 | D70: 0.04340277778 | E70: 0.04340277778 | F70: 0 | G70: 0.04340277778 | H70: 0.04340277778 | I70: 0 | J70: 0.04340277778 | K70: 0.04340277778 | L70: 0 | M70: 0.04340277778 | N70: 0.04340277778 | O70: 0 | P70: 0.04340277778 | Q70: 0.04340277778 | R70: 0 | S70: 0.04340277778 | T70: 0.04340277778 | U70: 0 | V70: 0.04340277778 | W70: 0.04340277778 | X70: 0 | Y70: 0.04340277778 | Z70: 0.04340277778 | AA70: 0 | AB70: 0.04340277778
A71: 0.3333333333 | B71: 0.1736111111 | C71: 0.04340277778 | D71: 0 | E71: 0.1736111111 | F71: 0.04340277778 | G71: 0 | H71: 0.1736111111 | I71: 0.04340277778 | J71: 0 | K71: 0.1736111111 | L71: 0.04340277778 | M71: 0 | N71: 0.1736111111 | O71: 0.04340277778 | P71: 0 | Q71: 0.1736111111 | R71: 0.04340277778 | S71: 0 | T71: 0.1736111111 | U71: 0.04340277778 | V71: 0 | W71: 0.1736111111 | X71: 0.04340277778 | Y71: 0 | Z71: 0.1736111111 | AA71: 0.04340277778 | AB71: 0
A72: 0.3333333333 | B72: 0.1736111111 | C72: 0.04340277778 | D72: 0 | E72: 0.1736111111 | F72: 0.04340277778 | G72: 0 | H72: 0.1736111111 | I72: 0.04340277778 | J72: 0 | K72: 0.1736111111 | L72: 0.04340277778 | M72: 0 | N72: 0.1736111111 | O72: 0.04340277778 | P72: 0 | Q72: 0.1736111111 | R72: 0.04340277778 | S72: 0 | T72: 0.1736111111 | U72: 0.04340277778 | V72: 0 | W72: 0.1736111111 | X72: 0.04340277778 | Y72: 0 | Z72: 0.1736111111 | AA72: 0.04340277778 | AB72: 0
A73: 0.3333333333 | B73: 0.1736111111 | C73: 0.04340277778 | D73: 0 | E73: 0.1736111111 | F73: 0.04340277778 | G73: 0 | H73: 0.1736111111 | I73: 0.04340277778 | J73: 0 | K73: 0.1736111111 | L73: 0.04340277778 | M73: 0 | N73: 0.1736111111 | O73: 0.04340277778 | P73: 0 | Q73: 0.1736111111 | R73: 0.04340277778 | S73: 0 | T73: 0.1736111111 | U73: 0.04340277778 | V73: 0 | W73: 0.1736111111 | X73: 0.04340277778 | Y73: 0 | Z73: 0.1736111111 | AA73: 0.04340277778 | AB73: 0
A75: hz^2 | B75: =TRANSPOSE(A76:A102) -> -0.3333333333 | C75: -0.3333333333 | D75: -0.3333333333 | E75: -0.3333333333 | F75: -0.3333333333 | G75: -0.3333333333 | H75: -0.3333333333 | I75: -0.3333333333 | J75: -0.3333333333 | K75: 0 | L75: 0 | M75: 0 | N75: 0 | O75: 0 | P75: 0 | Q75: 0 | R75: 0 | S75: 0 | T75: 0.3333333333 | U75: 0.3333333333 | V75: 0.3333333333 | W75: 0.3333333333 | X75: 0.3333333333 | Y75: 0.3333333333 | Z75: 0.3333333333 | AA75: 0.3333333333 | AB75: 0.3333333333
A76: -0.3333333333 | B76: =((B$17-$A76)*$B$14)^2 -> 0 | C76: =((C$17-$A76)*$B$14)^2 -> 0.02777777778 | D76: 0.1111111111 | E76: 0 | F76: 0.02777777778 | G76: 0.1111111111 | H76: 0 | I76: 0.02777777778 | J76: 0.1111111111 | K76: 0 | L76: 0.02777777778 | M76: 0.1111111111 | N76: 0 | O76: 0.02777777778 | P76: 0.1111111111 | Q76: 0 | R76: 0.02777777778 | S76: =((S$17-$A76)*$B$14)^2 -> 0.1111111111 | T76: 0 | U76: 0.02777777778 | V76: 0.1111111111 | W76: 0 | X76: 0.02777777778 | Y76: 0.1111111111 | Z76: 0 | AA76: 0.02777777778 | AB76: 0.1111111111
A77: -0.3333333333 | B77: =((B$17-$A77)*$B$14)^2 -> 0 | C77: 0.02777777778 | D77: 0.1111111111 | E77: 0 | F77: 0.02777777778 | G77: 0.1111111111 | H77: 0 | I77: 0.02777777778 | J77: 0.1111111111 | K77: 0 | L77: 0.02777777778 | M77: 0.1111111111 | N77: 0 | O77: 0.02777777778 | P77: 0.1111111111 | Q77: 0 | R77: 0.02777777778 | S77: 0.1111111111 | T77: 0 | U77: 0.02777777778 | V77: 0.1111111111 | W77: 0 | X77: 0.02777777778 | Y77: 0.1111111111 | Z77: 0 | AA77: 0.02777777778 | AB77: 0.1111111111
A78: -0.3333333333 | B78: 0 | C78: 0.02777777778 | D78: 0.1111111111 | E78: 0 | F78: 0.02777777778 | G78: 0.1111111111 | H78: 0 | I78: 0.02777777778 | J78: 0.1111111111 | K78: 0 | L78: 0.02777777778 | M78: 0.1111111111 | N78: 0 | O78: 0.02777777778 | P78: 0.1111111111 | Q78: 0 | R78: 0.02777777778 | S78: 0.1111111111 | T78: 0 | U78: 0.02777777778 | V78: 0.1111111111 | W78: 0 | X78: 0.02777777778 | Y78: 0.1111111111 | Z78: 0 | AA78: 0.02777777778 | AB78: 0.1111111111
A79: -0.3333333333 | B79: 0 | C79: 0.02777777778 | D79: 0.1111111111 | E79: 0 | F79: 0.02777777778 | G79: 0.1111111111 | H79: 0 | I79: 0.02777777778 | J79: 0.1111111111 | K79: 0 | L79: 0.02777777778 | M79: 0.1111111111 | N79: 0 | O79: 0.02777777778 | P79: 0.1111111111 | Q79: 0 | R79: 0.02777777778 | S79: 0.1111111111 | T79: 0 | U79: 0.02777777778 | V79: 0.1111111111 | W79: 0 | X79: 0.02777777778 | Y79: 0.1111111111 | Z79: 0 | AA79: 0.02777777778 | AB79: 0.1111111111
A80: -0.3333333333 | B80: 0 | C80: 0.02777777778 | D80: 0.1111111111 | E80: 0 | F80: 0.02777777778 | G80: 0.1111111111 | H80: 0 | I80: 0.02777777778 | J80: 0.1111111111 | K80: 0 | L80: 0.02777777778 | M80: 0.1111111111 | N80: 0 | O80: 0.02777777778 | P80: 0.1111111111 | Q80: 0 | R80: 0.02777777778 | S80: 0.1111111111 | T80: 0 | U80: 0.02777777778 | V80: 0.1111111111 | W80: 0 | X80: 0.02777777778 | Y80: 0.1111111111 | Z80: 0 | AA80: 0.02777777778 | AB80: 0.1111111111
A81: -0.3333333333 | B81: 0 | C81: 0.02777777778 | D81: 0.1111111111 | E81: 0 | F81: 0.02777777778 | G81: 0.1111111111 | H81: 0 | I81: 0.02777777778 | J81: 0.1111111111 | K81: 0 | L81: 0.02777777778 | M81: 0.1111111111 | N81: 0 | O81: 0.02777777778 | P81: 0.1111111111 | Q81: 0 | R81: 0.02777777778 | S81: 0.1111111111 | T81: 0 | U81: 0.02777777778 | V81: 0.1111111111 | W81: 0 | X81: 0.02777777778 | Y81: 0.1111111111 | Z81: 0 | AA81: 0.02777777778 | AB81: 0.1111111111
A82: -0.3333333333 | B82: 0 | C82: 0.02777777778 | D82: 0.1111111111 | E82: 0 | F82: 0.02777777778 | G82: 0.1111111111 | H82: 0 | I82: 0.02777777778 | J82: 0.1111111111 | K82: 0 | L82: 0.02777777778 | M82: 0.1111111111 | N82: 0 | O82: 0.02777777778 | P82: 0.1111111111 | Q82: 0 | R82: 0.02777777778 | S82: 0.1111111111 | T82: 0 | U82: 0.02777777778 | V82: 0.1111111111 | W82: 0 | X82: 0.02777777778 | Y82: 0.1111111111 | Z82: 0 | AA82: 0.02777777778 | AB82: 0.1111111111
A83: -0.3333333333 | B83: 0 | C83: 0.02777777778 | D83: 0.1111111111 | E83: 0 | F83: 0.02777777778 | G83: 0.1111111111 | H83: 0 | I83: 0.02777777778 | J83: 0.1111111111 | K83: 0 | L83: 0.02777777778 | M83: 0.1111111111 | N83: 0 | O83: 0.02777777778 | P83: 0.1111111111 | Q83: 0 | R83: 0.02777777778 | S83: 0.1111111111 | T83: 0 | U83: 0.02777777778 | V83: 0.1111111111 | W83: 0 | X83: 0.02777777778 | Y83: 0.1111111111 | Z83: 0 | AA83: 0.02777777778 | AB83: 0.1111111111
A84: -0.3333333333 | B84: 0 | C84: 0.02777777778 | D84: 0.1111111111 | E84: 0 | F84: 0.02777777778 | G84: 0.1111111111 | H84: 0 | I84: 0.02777777778 | J84: 0.1111111111 | K84: 0 | L84: 0.02777777778 | M84: 0.1111111111 | N84: 0 | O84: 0.02777777778 | P84: 0.1111111111 | Q84: 0 | R84: 0.02777777778 | S84: 0.1111111111 | T84: 0 | U84: 0.02777777778 | V84: 0.1111111111 | W84: 0 | X84: 0.02777777778 | Y84: 0.1111111111 | Z84: 0 | AA84: 0.02777777778 | AB84: 0.1111111111
A85: 0 | B85: 0.02777777778 | C85: 0 | D85: 0.02777777778 | E85: 0.02777777778 | F85: 0 | G85: 0.02777777778 | H85: 0.02777777778 | I85: 0 | J85: 0.02777777778 | K85: 0.02777777778 | L85: 0 | M85: 0.02777777778 | N85: 0.02777777778 | O85: 0 | P85: 0.02777777778 | Q85: 0.02777777778 | R85: 0 | S85: 0.02777777778 | T85: 0.02777777778 | U85: 0 | V85: 0.02777777778 | W85: 0.02777777778 | X85: 0 | Y85: 0.02777777778 | Z85: 0.02777777778 | AA85: 0 | AB85: 0.02777777778
A86: 0 | B86: 0.02777777778 | C86: 0 | D86: 0.02777777778 | E86: 0.02777777778 | F86: 0 | G86: 0.02777777778 | H86: 0.02777777778 | I86: 0 | J86: 0.02777777778 | K86: 0.02777777778 | L86: 0 | M86: 0.02777777778 | N86: 0.02777777778 | O86: 0 | P86: 0.02777777778 | Q86: 0.02777777778 | R86: 0 | S86: 0.02777777778 | T86: 0.02777777778 | U86: 0 | V86: 0.02777777778 | W86: 0.02777777778 | X86: 0 | Y86: 0.02777777778 | Z86: 0.02777777778 | AA86: 0 | AB86: 0.02777777778
A87: 0 | B87: 0.02777777778 | C87: 0 | D87: 0.02777777778 | E87: 0.02777777778 | F87: 0 | G87: 0.02777777778 | H87: 0.02777777778 | I87: 0 | J87: 0.02777777778 | K87: 0.02777777778 | L87: 0 | M87: 0.02777777778 | N87: 0.02777777778 | O87: 0 | P87: 0.02777777778 | Q87: 0.02777777778 | R87: 0 | S87: 0.02777777778 | T87: 0.02777777778 | U87: 0 | V87: 0.02777777778 | W87: 0.02777777778 | X87: 0 | Y87: 0.02777777778 | Z87: 0.02777777778 | AA87: 0 | AB87: 0.02777777778
A88: 0 | B88: 0.02777777778 | C88: 0 | D88: 0.02777777778 | E88: 0.02777777778 | F88: 0 | G88: 0.02777777778 | H88: 0.02777777778 | I88: 0 | J88: 0.02777777778 | K88: 0.02777777778 | L88: 0 | M88: 0.02777777778 | N88: 0.02777777778 | O88: 0 | P88: 0.02777777778 | Q88: 0.02777777778 | R88: 0 | S88: 0.02777777778 | T88: 0.02777777778 | U88: 0 | V88: 0.02777777778 | W88: 0.02777777778 | X88: 0 | Y88: 0.02777777778 | Z88: 0.02777777778 | AA88: 0 | AB88: 0.02777777778
A89: 0 | B89: 0.02777777778 | C89: 0 | D89: 0.02777777778 | E89: 0.02777777778 | F89: 0 | G89: 0.02777777778 | H89: 0.02777777778 | I89: 0 | J89: 0.02777777778 | K89: 0.02777777778 | L89: 0 | M89: 0.02777777778 | N89: 0.02777777778 | O89: 0 | P89: 0.02777777778 | Q89: 0.02777777778 | R89: 0 | S89: 0.02777777778 | T89: 0.02777777778 | U89: 0 | V89: 0.02777777778 | W89: 0.02777777778 | X89: 0 | Y89: 0.02777777778 | Z89: 0.02777777778 | AA89: 0 | AB89: 0.02777777778
A90: 0 | B90: 0.02777777778 | C90: 0 | D90: 0.02777777778 | E90: 0.02777777778 | F90: 0 | G90: 0.02777777778 | H90: 0.02777777778 | I90: 0 | J90: 0.02777777778 | K90: 0.02777777778 | L90: 0 | M90: 0.02777777778 | N90: 0.02777777778 | O90: 0 | P90: 0.02777777778 | Q90: 0.02777777778 | R90: 0 | S90: 0.02777777778 | T90: 0.02777777778 | U90: 0 | V90: 0.02777777778 | W90: 0.02777777778 | X90: 0 | Y90: 0.02777777778 | Z90: 0.02777777778 | AA90: 0 | AB90: 0.02777777778
A91: 0 | B91: 0.02777777778 | C91: 0 | D91: 0.02777777778 | E91: 0.02777777778 | F91: 0 | G91: 0.02777777778 | H91: 0.02777777778 | I91: 0 | J91: 0.02777777778 | K91: 0.02777777778 | L91: 0 | M91: 0.02777777778 | N91: 0.02777777778 | O91: 0 | P91: 0.02777777778 | Q91: 0.02777777778 | R91: =((R$17-$A91)*$B$14)^2 -> 0 | S91: 0.02777777778 | T91: 0.02777777778 | U91: 0 | V91: 0.02777777778 | W91: 0.02777777778 | X91: 0 | Y91: 0.02777777778 | Z91: 0.02777777778 | AA91: 0 | AB91: 0.02777777778
A92: 0 | B92: 0.02777777778 | C92: 0 | D92: 0.02777777778 | E92: 0.02777777778 | F92: 0 | G92: 0.02777777778 | H92: 0.02777777778 | I92: 0 | J92: 0.02777777778 | K92: 0.02777777778 | L92: 0 | M92: 0.02777777778 | N92: 0.02777777778 | O92: 0 | P92: 0.02777777778 | Q92: 0.02777777778 | R92: 0 | S92: 0.02777777778 | T92: 0.02777777778 | U92: 0 | V92: 0.02777777778 | W92: 0.02777777778 | X92: 0 | Y92: 0.02777777778 | Z92: 0.02777777778 | AA92: 0 | AB92: 0.02777777778
A93: 0 | B93: =((B$17-$A93)*$B$14)^2 -> 0.02777777778 | C93: 0 | D93: 0.02777777778 | E93: 0.02777777778 | F93: 0 | G93: 0.02777777778 | H93: 0.02777777778 | I93: 0 | J93: 0.02777777778 | K93: 0.02777777778 | L93: 0 | M93: 0.02777777778 | N93: 0.02777777778 | O93: 0 | P93: 0.02777777778 | Q93: 0.02777777778 | R93: 0 | S93: 0.02777777778 | T93: 0.02777777778 | U93: 0 | V93: 0.02777777778 | W93: 0.02777777778 | X93: 0 | Y93: 0.02777777778 | Z93: 0.02777777778 | AA93: 0 | AB93: 0.02777777778
A94: 0.3333333333 | B94: 0.1111111111 | C94: 0.02777777778 | D94: 0 | E94: 0.1111111111 | F94: 0.02777777778 | G94: 0 | H94: 0.1111111111 | I94: 0.02777777778 | J94: 0 | K94: 0.1111111111 | L94: 0.02777777778 | M94: 0 | N94: 0.1111111111 | O94: 0.02777777778 | P94: 0 | Q94: 0.1111111111 | R94: 0.02777777778 | S94: 0 | T94: 0.1111111111 | U94: 0.02777777778 | V94: 0 | W94: 0.1111111111 | X94: 0.02777777778 | Y94: 0 | Z94: 0.1111111111 | AA94: 0.02777777778 | AB94: 0
A95: 0.3333333333 | B95: 0.1111111111 | C95: 0.02777777778 | D95: 0 | E95: 0.1111111111 | F95: 0.02777777778 | G95: 0 | H95: 0.1111111111 | I95: 0.02777777778 | J95: 0 | K95: 0.1111111111 | L95: 0.02777777778 | M95: 0 | N95: 0.1111111111 | O95: 0.02777777778 | P95: 0 | Q95: 0.1111111111 | R95: 0.02777777778 | S95: 0 | T95: 0.1111111111 | U95: 0.02777777778 | V95: 0 | W95: 0.1111111111 | X95: 0.02777777778 | Y95: 0 | Z95: 0.1111111111 | AA95: 0.02777777778 | AB95: 0
A96: 0.3333333333 | B96: 0.1111111111 | C96: 0.02777777778 | D96: 0 | E96: 0.1111111111 | F96: 0.02777777778 | G96: 0 | H96: 0.1111111111 | I96: 0.02777777778 | J96: 0 | K96: 0.1111111111 | L96: 0.02777777778 | M96: 0 | N96: 0.1111111111 | O96: 0.02777777778 | P96: 0 | Q96: 0.1111111111 | R96: 0.02777777778 | S96: 0 | T96: 0.1111111111 | U96: 0.02777777778 | V96: 0 | W96: 0.1111111111 | X96: 0.02777777778 | Y96: 0 | Z96: 0.1111111111 | AA96: 0.02777777778 | AB96: 0
A97: 0.3333333333 | B97: 0.1111111111 | C97: 0.02777777778 | D97: 0 | E97: 0.1111111111 | F97: 0.02777777778 | G97: 0 | H97: 0.1111111111 | I97: 0.02777777778 | J97: 0 | K97: 0.1111111111 | L97: 0.02777777778 | M97: 0 | N97: 0.1111111111 | O97: 0.02777777778 | P97: 0 | Q97: 0.1111111111 | R97: 0.02777777778 | S97: 0 | T97: 0.1111111111 | U97: 0.02777777778 | V97: 0 | W97: 0.1111111111 | X97: 0.02777777778 | Y97: 0 | Z97: 0.1111111111 | AA97: 0.02777777778 | AB97: 0
A98: 0.3333333333 | B98: 0.1111111111 | C98: 0.02777777778 | D98: 0 | E98: 0.1111111111 | F98: 0.02777777778 | G98: 0 | H98: 0.1111111111 | I98: 0.02777777778 | J98: 0 | K98: 0.1111111111 | L98: 0.02777777778 | M98: 0 | N98: 0.1111111111 | O98: 0.02777777778 | P98: 0 | Q98: 0.1111111111 | R98: 0.02777777778 | S98: 0 | T98: 0.1111111111 | U98: 0.02777777778 | V98: 0 | W98: 0.1111111111 | X98: 0.02777777778 | Y98: 0 | Z98: 0.1111111111 | AA98: 0.02777777778 | AB98: 0
A99: 0.3333333333 | B99: 0.1111111111 | C99: 0.02777777778 | D99: 0 | E99: 0.1111111111 | F99: 0.02777777778 | G99: 0 | H99: 0.1111111111 | I99: 0.02777777778 | J99: 0 | K99: 0.1111111111 | L99: 0.02777777778 | M99: 0 | N99: 0.1111111111 | O99: 0.02777777778 | P99: 0 | Q99: 0.1111111111 | R99: 0.02777777778 | S99: 0 | T99: 0.1111111111 | U99: 0.02777777778 | V99: 0 | W99: 0.1111111111 | X99: 0.02777777778 | Y99: 0 | Z99: 0.1111111111 | AA99: 0.02777777778 | AB99: 0
A100: 0.3333333333 | B100: 0.1111111111 | C100: 0.02777777778 | D100: 0 | E100: 0.1111111111 | F100: 0.02777777778 | G100: 0 | H100: 0.1111111111 | I100: 0.02777777778 | J100: 0 | K100: 0.1111111111 | L100: 0.02777777778 | M100: 0 | N100: 0.1111111111 | O100: 0.02777777778 | P100: 0 | Q100: 0.1111111111 | R100: 0.02777777778 | S100: 0 | T100: 0.1111111111 | U100: 0.02777777778 | V100: 0 | W100: 0.1111111111 | X100: 0.02777777778 | Y100: 0 | Z100: 0.1111111111 | AA100: 0.02777777778 | AB100: 0
A101: 0.3333333333 | B101: 0.1111111111 | C101: 0.02777777778 | D101: 0 | E101: 0.1111111111 | F101: 0.02777777778 | G101: 0 | H101: 0.1111111111 | I101: 0.02777777778 | J101: 0 | K101: 0.1111111111 | L101: 0.02777777778 | M101: 0 | N101: 0.1111111111 | O101: 0.02777777778 | P101: 0 | Q101: 0.1111111111 | R101: 0.02777777778 | S101: 0 | T101: 0.1111111111 | U101: 0.02777777778 | V101: 0 | W101: 0.1111111111 | X101: 0.02777777778 | Y101: 0 | Z101: 0.1111111111 | AA101: 0.02777777778 | AB101: 0
A102: 0.3333333333 | B102: 0.1111111111 | C102: 0.02777777778 | D102: 0 | E102: 0.1111111111 | F102: 0.02777777778 | G102: 0 | H102: 0.1111111111 | I102: 0.02777777778 | J102: 0 | K102: 0.1111111111 | L102: 0.02777777778 | M102: 0 | N102: 0.1111111111 | O102: 0.02777777778 | P102: 0 | Q102: 0.1111111111 | R102: 0.02777777778 | S102: 0 | T102: 0.1111111111 | U102: 0.02777777778 | V102: 0 | W102: 0.1111111111 | X102: 0.02777777778 | Y102: 0 | Z102: 0.1111111111 | AA102: 0.02777777778 | AB102: 0
A104: h | B104: =SQRT(B18+B47+B76) -> 0 | C104: =SQRT(C18+C47+C76) -> 0.3385016002 | D104: 0.6770032004 | E104: 0 | F104: 0.3385016002 | G104: 0.6770032004 | H104: 0 | I104: 0.3385016002 | J104: 0.6770032004 | K104: 0 | L104: 0.3385016002 | M104: 0.6770032004 | N104: 0 | O104: 0.3385016002 | P104: 0.6770032004 | Q104: 0 | R104: 0.3385016002 | S104: 0.6770032004 | T104: 0 | U104: 0.3385016002 | V104: 0.6770032004 | W104: 0 | X104: 0.3385016002 | Y104: 0.6770032004 | Z104: 0 | AA104: 0.3385016002 | AB104: 0.6770032004
B105: =SQRT(B19+B48+B77) -> 0.2083333333 | C105: 0.2667968432 | D105: 0.5728219619 | E105: 0.2083333333 | F105: 0.2667968432 | G105: 0.5728219619 | H105: 0.2083333333 | I105: 0.2667968432 | J105: 0.5728219619 | K105: 0.2083333333 | L105: 0.2667968432 | M105: 0.5728219619 | N105: 0.2083333333 | O105: 0.2667968432 | P105: 0.5728219619 | Q105: 0.2083333333 | R105: 0.2667968432 | S105: 0.5728219619 | T105: 0.2083333333 | U105: 0.2667968432 | V105: 0.5728219619 | W105: 0.2083333333 | X105: 0.2667968432 | Y105: 0.5728219619 | Z105: 0.2083333333 | AA105: 0.2667968432 | AB105: 0.5728219619
B106: 0.4166666667 | C106: 0.3385016002 | D106: 0.5335936865 | E106: 0.4166666667 | F106: 0.3385016002 | G106: 0.5335936865 | H106: 0.4166666667 | I106: 0.3385016002 | J106: 0.5335936865 | K106: 0.4166666667 | L106: 0.3385016002 | M106: 0.5335936865 | N106: 0.4166666667 | O106: 0.3385016002 | P106: 0.5335936865 | Q106: 0.4166666667 | R106: 0.3385016002 | S106: 0.5335936865 | T106: 0.4166666667 | U106: 0.3385016002 | V106: 0.5335936865 | W106: 0.4166666667 | X106: 0.3385016002 | Y106: 0.5335936865 | Z106: 0.4166666667 | AA106: 0.3385016002 | AB106: 0.5335936865
B107: 0.2083333333 | C107: 0.2667968432 | D107: 0.5728219619 | E107: 0.2083333333 | F107: 0.2667968432 | G107: 0.5728219619 | H107: 0.2083333333 | I107: 0.2667968432 | J107: 0.5728219619 | K107: 0.2083333333 | L107: 0.2667968432 | M107: 0.5728219619 | N107: 0.2083333333 | O107: 0.2667968432 | P107: 0.5728219619 | Q107: 0.2083333333 | R107: 0.2667968432 | S107: 0.5728219619 | T107: 0.2083333333 | U107: 0.2667968432 | V107: 0.5728219619 | W107: 0.2083333333 | X107: 0.2667968432 | Y107: 0.5728219619 | Z107: 0.2083333333 | AA107: 0.2667968432 | AB107: 0.5728219619
B108: 0.2946278255 | C108: 0.1666666667 | D108: 0.4448782605 | E108: 0.2946278255 | F108: 0.1666666667 | G108: 0.4448782605 | H108: 0.2946278255 | I108: 0.1666666667 | J108: 0.4448782605 | K108: 0.2946278255 | L108: 0.1666666667 | M108: 0.4448782605 | N108: 0.2946278255 | O108: 0.1666666667 | P108: 0.4448782605 | Q108: 0.2946278255 | R108: 0.1666666667 | S108: 0.4448782605 | T108: 0.2946278255 | U108: 0.1666666667 | V108: 0.4448782605 | W108: 0.2946278255 | X108: 0.1666666667 | Y108: 0.4448782605 | Z108: 0.2946278255 | AA108: 0.1666666667 | AB108: 0.4448782605
B109: 0.4658474953 | C109: 0.2667968432 | D109: 0.3930825472 | E109: 0.4658474953 | F109: 0.2667968432 | G109: 0.3930825472 | H109: 0.4658474953 | I109: 0.2667968432 | J109: 0.3930825472 | K109: 0.4658474953 | L109: 0.2667968432 | M109: 0.3930825472 | N109: 0.4658474953 | O109: 0.2667968432 | P109: 0.3930825472 | Q109: 0.4658474953 | R109: 0.2667968432 | S109: 0.3930825472 | T109: 0.4658474953 | U109: 0.2667968432 | V109: 0.3930825472 | W109: 0.4658474953 | X109: 0.2667968432 | Y109: 0.3930825472 | Z109: 0.4658474953 | AA109: 0.2667968432 | AB109: 0.3930825472
B110: 0.4166666667 | C110: 0.3385016002 | D110: 0.5335936865 | E110: 0.4166666667 | F110: 0.3385016002 | G110: 0.5335936865 | H110: 0.4166666667 | I110: 0.3385016002 | J110: 0.5335936865 | K110: 0.4166666667 | L110: 0.3385016002 | M110: 0.5335936865 | N110: 0.4166666667 | O110: 0.3385016002 | P110: 0.5335936865 | Q110: 0.4166666667 | R110: 0.3385016002 | S110: 0.5335936865 | T110: 0.4166666667 | U110: 0.3385016002 | V110: 0.5335936865 | W110: 0.4166666667 | X110: 0.3385016002 | Y110: 0.5335936865 | Z110: 0.4166666667 | AA110: 0.3385016002 | AB110: 0.5335936865
B111: 0.4658474953 | C111: 0.2667968432 | D111: 0.3930825472 | E111: 0.4658474953 | F111: 0.2667968432 | G111: 0.3930825472 | H111: 0.4658474953 | I111: 0.2667968432 | J111: 0.3930825472 | K111: 0.4658474953 | L111: 0.2667968432 | M111: 0.3930825472 | N111: 0.4658474953 | O111: 0.2667968432 | P111: 0.3930825472 | Q111: 0.4658474953 | R111: 0.2667968432 | S111: 0.3930825472 | T111: 0.4658474953 | U111: 0.2667968432 | V111: 0.3930825472 | W111: 0.4658474953 | X111: 0.2667968432 | Y111: 0.3930825472 | Z111: 0.4658474953 | AA111: 0.2667968432 | AB111: 0.3930825472
B112: 0.589255651 | C112: 0.3385016002 | D112: 0.3333333333 | E112: 0.589255651 | F112: 0.3385016002 | G112: 0.3333333333 | H112: 0.589255651 | I112: 0.3385016002 | J112: 0.3333333333 | K112: 0.589255651 | L112: 0.3385016002 | M112: 0.3333333333 | N112: 0.589255651 | O112: 0.3385016002 | P112: 0.3333333333 | Q112: 0.589255651 | R112: 0.3385016002 | S112: 0.3333333333 | T112: 0.589255651 | U112: 0.3385016002 | V112: 0.3333333333 | W112: 0.589255651 | X112: 0.3385016002 | Y112: 0.3333333333 | Z112: 0.589255651 | AA112: 0.3385016002 | AB112: 0.3333333333
B113: 0.1666666667 | C113: 0.2946278255 | D113: 0.6123724357 | E113: 0.1666666667 | F113: 0.2946278255 | G113: 0.6123724357 | H113: 0.1666666667 | I113: 0.2946278255 | J113: 0.6123724357 | K113: 0.1666666667 | L113: 0.2946278255 | M113: 0.6123724357 | N113: 0.1666666667 | O113: 0.2946278255 | P113: 0.6123724357 | Q113: 0.1666666667 | R113: 0.2946278255 | S113: 0.6123724357 | T113: 0.1666666667 | U113: 0.2946278255 | V113: 0.6123724357 | W113: 0.1666666667 | X113: 0.2946278255 | Y113: 0.6123724357 | Z113: 0.1666666667 | AA113: 0.2946278255 | AB113: 0.6123724357
B114: 0.2667968432 | C114: 0.2083333333 | D114: 0.4947642536 | E114: 0.2667968432 | F114: 0.2083333333 | G114: 0.4947642536 | H114: 0.2667968432 | I114: 0.2083333333 | J114: 0.4947642536 | K114: 0.2667968432 | L114: 0.2083333333 | M114: 0.4947642536 | N114: =SQRT(N28+N57+N86) -> 0.2667968432 | O114: 0.2083333333 | P114: 0.4947642536 | Q114: 0.2667968432 | R114: 0.2083333333 | S114: 0.4947642536 | T114: 0.2667968432 | U114: 0.2083333333 | V114: 0.4947642536 | W114: 0.2667968432 | X114: 0.2083333333 | Y114: 0.4947642536 | Z114: 0.2667968432 | AA114: 0.2083333333 | AB114: 0.4947642536
B115: =SQRT(B29+B58+B87) -> 0.4487637339 | C115: 0.2946278255 | D115: 0.4487637339 | E115: 0.4487637339 | F115: 0.2946278255 | G115: 0.4487637339 | H115: 0.4487637339 | I115: 0.2946278255 | J115: 0.4487637339 | K115: 0.4487637339 | L115: 0.2946278255 | M115: 0.4487637339 | N115: 0.4487637339 | O115: 0.2946278255 | P115: 0.4487637339 | Q115: 0.4487637339 | R115: 0.2946278255 | S115: 0.4487637339 | T115: 0.4487637339 | U115: 0.2946278255 | V115: 0.4487637339 | W115: 0.4487637339 | X115: 0.2946278255 | Y115: 0.4487637339 | Z115: 0.4487637339 | AA115: 0.2946278255 | AB115: 0.4487637339
B116: 0.2667968432 | C116: 0.2083333333 | D116: 0.4947642536 | E116: 0.2667968432 | F116: 0.2083333333 | G116: 0.4947642536 | H116: 0.2667968432 | I116: 0.2083333333 | J116: 0.4947642536 | K116: 0.2667968432 | L116: 0.2083333333 | M116: 0.4947642536 | N116: 0.2667968432 | O116: 0.2083333333 | P116: 0.4947642536 | Q116: 0.2667968432 | R116: 0.2083333333 | S116: 0.4947642536 | T116: 0.2667968432 | U116: 0.2083333333 | V116: 0.4947642536 | W116: 0.2667968432 | X116: 0.2083333333 | Y116: 0.4947642536 | Z116: 0.2667968432 | AA116: 0.2083333333 | AB116: 0.4947642536
B117: 0.3385016002 | C117: 0 | D117: 0.3385016002 | E117: 0.3385016002 | F117: 0 | G117: 0.3385016002 | H117: 0.3385016002 | I117: 0 | J117: 0.3385016002 | K117: 0.3385016002 | L117: 0 | M117: 0.3385016002 | N117: 0.3385016002 | O117: 0 | P117: 0.3385016002 | Q117: 0.3385016002 | R117: 0 | S117: 0.3385016002 | T117: 0.3385016002 | U117: 0 | V117: 0.3385016002 | W117: 0.3385016002 | X117: 0 | Y117: 0.3385016002 | Z117: 0.3385016002 | AA117: 0 | AB117: 0.3385016002
B118: 0.4947642536 | C118: 0.2083333333 | D118: 0.2667968432 | E118: 0.4947642536 | F118: 0.2083333333 | G118: 0.2667968432 | H118: 0.4947642536 | I118: 0.2083333333 | J118: 0.2667968432 | K118: 0.4947642536 | L118: 0.2083333333 | M118: 0.2667968432 | N118: 0.4947642536 | O118: 0.2083333333 | P118: 0.2667968432 | Q118: 0.4947642536 | R118: 0.2083333333 | S118: 0.2667968432 | T118: 0.4947642536 | U118: 0.2083333333 | V118: 0.2667968432 | W118: 0.4947642536 | X118: 0.2083333333 | Y118: 0.2667968432 | Z118: 0.4947642536 | AA118: 0.2083333333 | AB118: 0.2667968432
B119: 0.4487637339 | C119: 0.2946278255 | D119: 0.4487637339 | E119: 0.4487637339 | F119: 0.2946278255 | G119: 0.4487637339 | H119: 0.4487637339 | I119: 0.2946278255 | J119: 0.4487637339 | K119: 0.4487637339 | L119: 0.2946278255 | M119: 0.4487637339 | N119: 0.4487637339 | O119: 0.2946278255 | P119: 0.4487637339 | Q119: 0.4487637339 | R119: 0.2946278255 | S119: 0.4487637339 | T119: 0.4487637339 | U119: 0.2946278255 | V119: 0.4487637339 | W119: 0.4487637339 | X119: 0.2946278255 | Y119: 0.4487637339 | Z119: 0.4487637339 | AA119: 0.2946278255 | AB119: 0.4487637339
B120: 0.4947642536 | C120: 0.2083333333 | D120: 0.2667968432 | E120: 0.4947642536 | F120: 0.2083333333 | G120: 0.2667968432 | H120: 0.4947642536 | I120: 0.2083333333 | J120: 0.2667968432 | K120: 0.4947642536 | L120: 0.2083333333 | M120: 0.2667968432 | N120: 0.4947642536 | O120: 0.2083333333 | P120: 0.2667968432 | Q120: 0.4947642536 | R120: 0.2083333333 | S120: 0.2667968432 | T120: 0.4947642536 | U120: 0.2083333333 | V120: 0.2667968432 | W120: 0.4947642536 | X120: 0.2083333333 | Y120: 0.2667968432 | Z120: 0.4947642536 | AA120: 0.2083333333 | AB120: 0.2667968432
B121: 0.6123724357 | C121: 0.2946278255 | D121: 0.1666666667 | E121: 0.6123724357 | F121: 0.2946278255 | G121: 0.1666666667 | H121: 0.6123724357 | I121: 0.2946278255 | J121: 0.1666666667 | K121: 0.6123724357 | L121: 0.2946278255 | M121: 0.1666666667 | N121: 0.6123724357 | O121: 0.2946278255 | P121: 0.1666666667 | Q121: 0.6123724357 | R121: 0.2946278255 | S121: 0.1666666667 | T121: 0.6123724357 | U121: 0.2946278255 | V121: 0.1666666667 | W121: 0.6123724357 | X121: 0.2946278255 | Y121: 0.1666666667 | Z121: 0.6123724357 | AA121: 0.2946278255 | AB121: 0.1666666667
B122: 0.3333333333 | C122: 0.3385016002 | D122: 0.589255651 | E122: 0.3333333333 | F122: 0.3385016002 | G122: 0.589255651 | H122: 0.3333333333 | I122: 0.3385016002 | J122: 0.589255651 | K122: 0.3333333333 | L122: 0.3385016002 | M122: 0.589255651 | N122: 0.3333333333 | O122: 0.3385016002 | P122: 0.589255651 | Q122: 0.3333333333 | R122: 0.3385016002 | S122: 0.589255651 | T122: 0.3333333333 | U122: 0.3385016002 | V122: 0.589255651 | W122: 0.3333333333 | X122: 0.3385016002 | Y122: 0.589255651 | Z122: 0.3333333333 | AA122: 0.3385016002 | AB122: 0.589255651
B123: 0.3930825472 | C123: 0.2667968432 | D123: 0.4658474953 | E123: 0.3930825472 | F123: 0.2667968432 | G123: 0.4658474953 | H123: 0.3930825472 | I123: 0.2667968432 | J123: 0.4658474953 | K123: 0.3930825472 | L123: 0.2667968432 | M123: 0.4658474953 | N123: 0.3930825472 | O123: 0.2667968432 | P123: 0.4658474953 | Q123: 0.3930825472 | R123: 0.2667968432 | S123: 0.4658474953 | T123: 0.3930825472 | U123: 0.2667968432 | V123: 0.4658474953 | W123: 0.3930825472 | X123: 0.2667968432 | Y123: 0.4658474953 | Z123: 0.3930825472 | AA123: 0.2667968432 | AB123: 0.4658474953
B124: 0.5335936865 | C124: 0.3385016002 | D124: 0.4166666667 | E124: 0.5335936865 | F124: 0.3385016002 | G124: 0.4166666667 | H124: 0.5335936865 | I124: 0.3385016002 | J124: 0.4166666667 | K124: 0.5335936865 | L124: 0.3385016002 | M124: 0.4166666667 | N124: =SQRT(N38+N67+N96) -> 0.5335936865 | O124: 0.3385016002 | P124: 0.4166666667 | Q124: 0.5335936865 | R124: 0.3385016002 | S124: 0.4166666667 | T124: 0.5335936865 | U124: 0.3385016002 | V124: 0.4166666667 | W124: 0.5335936865 | X124: 0.3385016002 | Y124: 0.4166666667 | Z124: 0.5335936865 | AA124: 0.3385016002 | AB124: 0.4166666667
B125: =SQRT(B39+B68+B97) -> 0.3930825472 | C125: 0.2667968432 | D125: 0.4658474953 | E125: 0.3930825472 | F125: 0.2667968432 | G125: 0.4658474953 | H125: 0.3930825472 | I125: 0.2667968432 | J125: 0.4658474953 | K125: 0.3930825472 | L125: 0.2667968432 | M125: 0.4658474953 | N125: 0.3930825472 | O125: 0.2667968432 | P125: 0.4658474953 | Q125: 0.3930825472 | R125: 0.2667968432 | S125: 0.4658474953 | T125: 0.3930825472 | U125: 0.2667968432 | V125: 0.4658474953 | W125: 0.3930825472 | X125: 0.2667968432 | Y125: 0.4658474953 | Z125: 0.3930825472 | AA125: 0.2667968432 | AB125: 0.4658474953
B126: 0.4448782605 | C126: 0.1666666667 | D126: 0.2946278255 | E126: 0.4448782605 | F126: 0.1666666667 | G126: 0.2946278255 | H126: 0.4448782605 | I126: 0.1666666667 | J126: 0.2946278255 | K126: 0.4448782605 | L126: 0.1666666667 | M126: 0.2946278255 | N126: 0.4448782605 | O126: 0.1666666667 | P126: 0.2946278255 | Q126: 0.4448782605 | R126: 0.1666666667 | S126: 0.2946278255 | T126: 0.4448782605 | U126: 0.1666666667 | V126: 0.2946278255 | W126: 0.4448782605 | X126: 0.1666666667 | Y126: 0.2946278255 | Z126: 0.4448782605 | AA126: 0.1666666667 | AB126: 0.2946278255
B127: 0.5728219619 | C127: 0.2667968432 | D127: 0.2083333333 | E127: 0.5728219619 | F127: 0.2667968432 | G127: 0.2083333333 | H127: 0.5728219619 | I127: 0.2667968432 | J127: 0.2083333333 | K127: 0.5728219619 | L127: 0.2667968432 | M127: 0.2083333333 | N127: 0.5728219619 | O127: 0.2667968432 | P127: 0.2083333333 | Q127: 0.5728219619 | R127: 0.2667968432 | S127: 0.2083333333 | T127: 0.5728219619 | U127: 0.2667968432 | V127: 0.2083333333 | W127: 0.5728219619 | X127: 0.2667968432 | Y127: 0.2083333333 | Z127: 0.5728219619 | AA127: 0.2667968432 | AB127: 0.2083333333
B128: 0.5335936865 | C128: 0.3385016002 | D128: 0.4166666667 | E128: 0.5335936865 | F128: 0.3385016002 | G128: 0.4166666667 | H128: 0.5335936865 | I128: 0.3385016002 | J128: 0.4166666667 | K128: 0.5335936865 | L128: 0.3385016002 | M128: 0.4166666667 | N128: 0.5335936865 | O128: 0.3385016002 | P128: 0.4166666667 | Q128: 0.5335936865 | R128: 0.3385016002 | S128: 0.4166666667 | T128: 0.5335936865 | U128: 0.3385016002 | V128: 0.4166666667 | W128: 0.5335936865 | X128: 0.3385016002 | Y128: 0.4166666667 | Z128: 0.5335936865 | AA128: 0.3385016002 | AB128: 0.4166666667
B129: 0.5728219619 | C129: 0.2667968432 | D129: 0.2083333333 | E129: 0.5728219619 | F129: 0.2667968432 | G129: 0.2083333333 | H129: 0.5728219619 | I129: 0.2667968432 | J129: 0.2083333333 | K129: 0.5728219619 | L129: 0.2667968432 | M129: 0.2083333333 | N129: 0.5728219619 | O129: 0.2667968432 | P129: 0.2083333333 | Q129: 0.5728219619 | R129: 0.2667968432 | S129: 0.2083333333 | T129: 0.5728219619 | U129: 0.2667968432 | V129: 0.2083333333 | W129: 0.5728219619 | X129: 0.2667968432 | Y129: 0.2083333333 | Z129: 0.5728219619 | AA129: 0.2667968432 | AB129: 0.2083333333
B130: 0.6770032004 | C130: 0.3385016002 | D130: 0 | E130: 0.6770032004 | F130: 0.3385016002 | G130: 0 | H130: 0.6770032004 | I130: 0.3385016002 | J130: 0 | K130: 0.6770032004 | L130: 0.3385016002 | M130: 0 | N130: 0.6770032004 | O130: 0.3385016002 | P130: 0 | Q130: 0.6770032004 | R130: 0.3385016002 | S130: 0 | T130: 0.6770032004 | U130: 0.3385016002 | V130: 0 | W130: 0.6770032004 | X130: 0.3385016002 | Y130: 0 | Z130: 0.6770032004 | AA130: 0.3385016002 | AB130: 0
A132: h sphérique | B132: =MIN(1,B104) -> 0 | C132: =MIN(1,C104) -> 0.3385016002 | D132: 0.6770032004 | E132: 0 | F132: 0.3385016002 | G132: 0.6770032004 | H132: 0 | I132: 0.3385016002 | J132: 0.6770032004 | K132: 0 | L132: 0.3385016002 | M132: 0.6770032004 | N132: 0 | O132: 0.3385016002 | P132: 0.6770032004 | Q132: 0 | R132: 0.3385016002 | S132: 0.6770032004 | T132: 0 | U132: 0.3385016002 | V132: 0.6770032004 | W132: 0 | X132: 0.3385016002 | Y132: 0.6770032004 | Z132: 0 | AA132: 0.3385016002 | AB132: 0.6770032004
B133: =MIN(1,B105) -> 0.2083333333 | C133: 0.2667968432 | D133: 0.5728219619 | E133: 0.2083333333 | F133: 0.2667968432 | G133: 0.5728219619 | H133: 0.2083333333 | I133: 0.2667968432 | J133: 0.5728219619 | K133: 0.2083333333 | L133: 0.2667968432 | M133: 0.5728219619 | N133: 0.2083333333 | O133: 0.2667968432 | P133: 0.5728219619 | Q133: 0.2083333333 | R133: 0.2667968432 | S133: 0.5728219619 | T133: 0.2083333333 | U133: 0.2667968432 | V133: 0.5728219619 | W133: 0.2083333333 | X133: 0.2667968432 | Y133: 0.5728219619 | Z133: 0.2083333333 | AA133: 0.2667968432 | AB133: 0.5728219619
B134: 0.4166666667 | C134: 0.3385016002 | D134: 0.5335936865 | E134: 0.4166666667 | F134: 0.3385016002 | G134: 0.5335936865 | H134: 0.4166666667 | I134: 0.3385016002 | J134: 0.5335936865 | K134: 0.4166666667 | L134: 0.3385016002 | M134: 0.5335936865 | N134: 0.4166666667 | O134: 0.3385016002 | P134: 0.5335936865 | Q134: 0.4166666667 | R134: 0.3385016002 | S134: 0.5335936865 | T134: 0.4166666667 | U134: 0.3385016002 | V134: 0.5335936865 | W134: 0.4166666667 | X134: 0.3385016002 | Y134: 0.5335936865 | Z134: 0.4166666667 | AA134: 0.3385016002 | AB134: 0.5335936865
B135: 0.2083333333 | C135: 0.2667968432 | D135: 0.5728219619 | E135: 0.2083333333 | F135: 0.2667968432 | G135: 0.5728219619 | H135: 0.2083333333 | I135: 0.2667968432 | J135: 0.5728219619 | K135: 0.2083333333 | L135: 0.2667968432 | M135: 0.5728219619 | N135: 0.2083333333 | O135: 0.2667968432 | P135: 0.5728219619 | Q135: 0.2083333333 | R135: 0.2667968432 | S135: 0.5728219619 | T135: 0.2083333333 | U135: 0.2667968432 | V135: 0.5728219619 | W135: 0.2083333333 | X135: 0.2667968432 | Y135: 0.5728219619 | Z135: 0.2083333333 | AA135: 0.2667968432 | AB135: 0.5728219619
B136: 0.2946278255 | C136: 0.1666666667 | D136: 0.4448782605 | E136: 0.2946278255 | F136: 0.1666666667 | G136: 0.4448782605 | H136: 0.2946278255 | I136: 0.1666666667 | J136: 0.4448782605 | K136: 0.2946278255 | L136: 0.1666666667 | M136: 0.4448782605 | N136: 0.2946278255 | O136: 0.1666666667 | P136: 0.4448782605 | Q136: 0.2946278255 | R136: 0.1666666667 | S136: 0.4448782605 | T136: 0.2946278255 | U136: 0.1666666667 | V136: 0.4448782605 | W136: 0.2946278255 | X136: 0.1666666667 | Y136: 0.4448782605 | Z136: 0.2946278255 | AA136: 0.1666666667 | AB136: 0.4448782605
B137: 0.4658474953 | C137: 0.2667968432 | D137: 0.3930825472 | E137: 0.4658474953 | F137: 0.2667968432 | G137: 0.3930825472 | H137: 0.4658474953 | I137: 0.2667968432 | J137: 0.3930825472 | K137: 0.4658474953 | L137: 0.2667968432 | M137: 0.3930825472 | N137: 0.4658474953 | O137: 0.2667968432 | P137: 0.3930825472 | Q137: 0.4658474953 | R137: 0.2667968432 | S137: 0.3930825472 | T137: 0.4658474953 | U137: 0.2667968432 | V137: 0.3930825472 | W137: 0.4658474953 | X137: 0.2667968432 | Y137: 0.3930825472 | Z137: 0.4658474953 | AA137: 0.2667968432 | AB137: 0.3930825472
B138: 0.4166666667 | C138: 0.3385016002 | D138: 0.5335936865 | E138: 0.4166666667 | F138: 0.3385016002 | G138: 0.5335936865 | H138: 0.4166666667 | I138: 0.3385016002 | J138: 0.5335936865 | K138: 0.4166666667 | L138: 0.3385016002 | M138: 0.5335936865 | N138: 0.4166666667 | O138: 0.3385016002 | P138: 0.5335936865 | Q138: 0.4166666667 | R138: 0.3385016002 | S138: 0.5335936865 | T138: 0.4166666667 | U138: 0.3385016002 | V138: 0.5335936865 | W138: 0.4166666667 | X138: 0.3385016002 | Y138: 0.5335936865 | Z138: 0.4166666667 | AA138: 0.3385016002 | AB138: 0.5335936865
B139: 0.4658474953 | C139: 0.2667968432 | D139: 0.3930825472 | E139: 0.4658474953 | F139: 0.2667968432 | G139: 0.3930825472 | H139: 0.4658474953 | I139: 0.2667968432 | J139: 0.3930825472 | K139: 0.4658474953 | L139: 0.2667968432 | M139: 0.3930825472 | N139: 0.4658474953 | O139: 0.2667968432 | P139: 0.3930825472 | Q139: 0.4658474953 | R139: 0.2667968432 | S139: 0.3930825472 | T139: 0.4658474953 | U139: 0.2667968432 | V139: 0.3930825472 | W139: 0.4658474953 | X139: 0.2667968432 | Y139: 0.3930825472 | Z139: 0.4658474953 | AA139: 0.2667968432 | AB139: 0.3930825472
B140: 0.589255651 | C140: 0.3385016002 | D140: 0.3333333333 | E140: 0.589255651 | F140: 0.3385016002 | G140: 0.3333333333 | H140: 0.589255651 | I140: 0.3385016002 | J140: 0.3333333333 | K140: 0.589255651 | L140: 0.3385016002 | M140: 0.3333333333 | N140: 0.589255651 | O140: 0.3385016002 | P140: 0.3333333333 | Q140: 0.589255651 | R140: 0.3385016002 | S140: 0.3333333333 | T140: 0.589255651 | U140: 0.3385016002 | V140: 0.3333333333 | W140: 0.589255651 | X140: 0.3385016002 | Y140: 0.3333333333 | Z140: 0.589255651 | AA140: 0.3385016002 | AB140: 0.3333333333
B141: 0.1666666667 | C141: 0.2946278255 | D141: 0.6123724357 | E141: 0.1666666667 | F141: 0.2946278255 | G141: 0.6123724357 | H141: 0.1666666667 | I141: 0.2946278255 | J141: 0.6123724357 | K141: 0.1666666667 | L141: 0.2946278255 | M141: 0.6123724357 | N141: 0.1666666667 | O141: 0.2946278255 | P141: 0.6123724357 | Q141: 0.1666666667 | R141: 0.2946278255 | S141: 0.6123724357 | T141: 0.1666666667 | U141: 0.2946278255 | V141: 0.6123724357 | W141: 0.1666666667 | X141: 0.2946278255 | Y141: 0.6123724357 | Z141: 0.1666666667 | AA141: 0.2946278255 | AB141: 0.6123724357
B142: 0.2667968432 | C142: 0.2083333333 | D142: 0.4947642536 | E142: 0.2667968432 | F142: 0.2083333333 | G142: 0.4947642536 | H142: 0.2667968432 | I142: 0.2083333333 | J142: 0.4947642536 | K142: 0.2667968432 | L142: 0.2083333333 | M142: 0.4947642536 | N142: =MIN(1,N114) -> 0.2667968432 | O142: 0.2083333333 | P142: 0.4947642536 | Q142: 0.2667968432 | R142: 0.2083333333 | S142: 0.4947642536 | T142: 0.2667968432 | U142: 0.2083333333 | V142: 0.4947642536 | W142: 0.2667968432 | X142: 0.2083333333 | Y142: 0.4947642536 | Z142: 0.2667968432 | AA142: 0.2083333333 | AB142: 0.4947642536
B143: =MIN(1,B115) -> 0.4487637339 | C143: 0.2946278255 | D143: 0.4487637339 | E143: 0.4487637339 | F143: 0.2946278255 | G143: 0.4487637339 | H143: 0.4487637339 | I143: 0.2946278255 | J143: 0.4487637339 | K143: 0.4487637339 | L143: 0.2946278255 | M143: 0.4487637339 | N143: 0.4487637339 | O143: 0.2946278255 | P143: 0.4487637339 | Q143: 0.4487637339 | R143: 0.2946278255 | S143: 0.4487637339 | T143: 0.4487637339 | U143: 0.2946278255 | V143: 0.4487637339 | W143: 0.4487637339 | X143: 0.2946278255 | Y143: 0.4487637339 | Z143: 0.4487637339 | AA143: 0.2946278255 | AB143: 0.4487637339
B144: 0.2667968432 | C144: 0.2083333333 | D144: 0.4947642536 | E144: 0.2667968432 | F144: 0.2083333333 | G144: 0.4947642536 | H144: 0.2667968432 | I144: 0.2083333333 | J144: 0.4947642536 | K144: 0.2667968432 | L144: 0.2083333333 | M144: 0.4947642536 | N144: 0.2667968432 | O144: 0.2083333333 | P144: 0.4947642536 | Q144: 0.2667968432 | R144: 0.2083333333 | S144: 0.4947642536 | T144: 0.2667968432 | U144: 0.2083333333 | V144: 0.4947642536 | W144: 0.2667968432 | X144: 0.2083333333 | Y144: 0.4947642536 | Z144: 0.2667968432 | AA144: 0.2083333333 | AB144: 0.4947642536
B145: 0.3385016002 | C145: 0 | D145: 0.3385016002 | E145: 0.3385016002 | F145: 0 | G145: 0.3385016002 | H145: 0.3385016002 | I145: 0 | J145: 0.3385016002 | K145: 0.3385016002 | L145: 0 | M145: 0.3385016002 | N145: 0.3385016002 | O145: 0 | P145: 0.3385016002 | Q145: 0.3385016002 | R145: 0 | S145: 0.3385016002 | T145: 0.3385016002 | U145: 0 | V145: 0.3385016002 | W145: 0.3385016002 | X145: 0 | Y145: 0.3385016002 | Z145: 0.3385016002 | AA145: 0 | AB145: 0.3385016002
B146: 0.4947642536 | C146: 0.2083333333 | D146: 0.2667968432 | E146: 0.4947642536 | F146: 0.2083333333 | G146: 0.2667968432 | H146: 0.4947642536 | I146: 0.2083333333 | J146: 0.2667968432 | K146: 0.4947642536 | L146: 0.2083333333 | M146: 0.2667968432 | N146: 0.4947642536 | O146: 0.2083333333 | P146: 0.2667968432 | Q146: 0.4947642536 | R146: 0.2083333333 | S146: 0.2667968432 | T146: 0.4947642536 | U146: 0.2083333333 | V146: 0.2667968432 | W146: 0.4947642536 | X146: 0.2083333333 | Y146: 0.2667968432 | Z146: 0.4947642536 | AA146: 0.2083333333 | AB146: 0.2667968432
B147: 0.4487637339 | C147: 0.2946278255 | D147: 0.4487637339 | E147: 0.4487637339 | F147: 0.2946278255 | G147: 0.4487637339 | H147: 0.4487637339 | I147: 0.2946278255 | J147: 0.4487637339 | K147: 0.4487637339 | L147: 0.2946278255 | M147: 0.4487637339 | N147: 0.4487637339 | O147: 0.2946278255 | P147: 0.4487637339 | Q147: 0.4487637339 | R147: 0.2946278255 | S147: 0.4487637339 | T147: 0.4487637339 | U147: 0.2946278255 | V147: 0.4487637339 | W147: 0.4487637339 | X147: 0.2946278255 | Y147: 0.4487637339 | Z147: 0.4487637339 | AA147: 0.2946278255 | AB147: 0.4487637339
B148: 0.4947642536 | C148: 0.2083333333 | D148: 0.2667968432 | E148: 0.4947642536 | F148: 0.2083333333 | G148: 0.2667968432 | H148: 0.4947642536 | I148: 0.2083333333 | J148: 0.2667968432 | K148: 0.4947642536 | L148: 0.2083333333 | M148: 0.2667968432 | N148: 0.4947642536 | O148: 0.2083333333 | P148: 0.2667968432 | Q148: 0.4947642536 | R148: 0.2083333333 | S148: 0.2667968432 | T148: 0.4947642536 | U148: 0.2083333333 | V148: 0.2667968432 | W148: 0.4947642536 | X148: 0.2083333333 | Y148: 0.2667968432 | Z148: 0.4947642536 | AA148: 0.2083333333 | AB148: 0.2667968432
B149: 0.6123724357 | C149: 0.2946278255 | D149: 0.1666666667 | E149: 0.6123724357 | F149: 0.2946278255 | G149: 0.1666666667 | H149: 0.6123724357 | I149: 0.2946278255 | J149: 0.1666666667 | K149: 0.6123724357 | L149: 0.2946278255 | M149: 0.1666666667 | N149: 0.6123724357 | O149: 0.2946278255 | P149: 0.1666666667 | Q149: 0.6123724357 | R149: 0.2946278255 | S149: 0.1666666667 | T149: 0.6123724357 | U149: 0.2946278255 | V149: 0.1666666667 | W149: 0.6123724357 | X149: 0.2946278255 | Y149: 0.1666666667 | Z149: 0.6123724357 | AA149: 0.2946278255 | AB149: 0.1666666667
B150: 0.3333333333 | C150: 0.3385016002 | D150: 0.589255651 | E150: 0.3333333333 | F150: 0.3385016002 | G150: 0.589255651 | H150: 0.3333333333 | I150: 0.3385016002 | J150: 0.589255651 | K150: 0.3333333333 | L150: 0.3385016002 | M150: 0.589255651 | N150: 0.3333333333 | O150: 0.3385016002 | P150: 0.589255651 | Q150: 0.3333333333 | R150: 0.3385016002 | S150: 0.589255651 | T150: 0.3333333333 | U150: 0.3385016002 | V150: 0.589255651 | W150: 0.3333333333 | X150: 0.3385016002 | Y150: 0.589255651 | Z150: 0.3333333333 | AA150: 0.3385016002 | AB150: 0.589255651
B151: 0.3930825472 | C151: 0.2667968432 | D151: 0.4658474953 | E151: 0.3930825472 | F151: 0.2667968432 | G151: 0.4658474953 | H151: 0.3930825472 | I151: 0.2667968432 | J151: 0.4658474953 | K151: 0.3930825472 | L151: 0.2667968432 | M151: 0.4658474953 | N151: 0.3930825472 | O151: 0.2667968432 | P151: 0.4658474953 | Q151: 0.3930825472 | R151: 0.2667968432 | S151: 0.4658474953 | T151: 0.3930825472 | U151: 0.2667968432 | V151: 0.4658474953 | W151: 0.3930825472 | X151: 0.2667968432 | Y151: 0.4658474953 | Z151: 0.3930825472 | AA151: 0.2667968432 | AB151: 0.4658474953
B152: 0.5335936865 | C152: 0.3385016002 | D152: 0.4166666667 | E152: 0.5335936865 | F152: 0.3385016002 | G152: 0.4166666667 | H152: 0.5335936865 | I152: 0.3385016002 | J152: 0.4166666667 | K152: 0.5335936865 | L152: 0.3385016002 | M152: 0.4166666667 | N152: =MIN(1,N124) -> 0.5335936865 | O152: 0.3385016002 | P152: 0.4166666667 | Q152: 0.5335936865 | R152: 0.3385016002 | S152: 0.4166666667 | T152: 0.5335936865 | U152: 0.3385016002 | V152: 0.4166666667 | W152: 0.5335936865 | X152: 0.3385016002 | Y152: 0.4166666667 | Z152: 0.5335936865 | AA152: 0.3385016002 | AB152: 0.4166666667
B153: =MIN(1,B125) -> 0.3930825472 | C153: 0.2667968432 | D153: 0.4658474953 | E153: 0.3930825472 | F153: 0.2667968432 | G153: 0.4658474953 | H153: 0.3930825472 | I153: 0.2667968432 | J153: 0.4658474953 | K153: 0.3930825472 | L153: 0.2667968432 | M153: 0.4658474953 | N153: 0.3930825472 | O153: 0.2667968432 | P153: 0.4658474953 | Q153: 0.3930825472 | R153: 0.2667968432 | S153: 0.4658474953 | T153: 0.3930825472 | U153: 0.2667968432 | V153: 0.4658474953 | W153: 0.3930825472 | X153: 0.2667968432 | Y153: 0.4658474953 | Z153: 0.3930825472 | AA153: 0.2667968432 | AB153: 0.4658474953
B154: 0.4448782605 | C154: 0.1666666667 | D154: 0.2946278255 | E154: 0.4448782605 | F154: 0.1666666667 | G154: 0.2946278255 | H154: 0.4448782605 | I154: 0.1666666667 | J154: 0.2946278255 | K154: 0.4448782605 | L154: 0.1666666667 | M154: 0.2946278255 | N154: 0.4448782605 | O154: 0.1666666667 | P154: 0.2946278255 | Q154: 0.4448782605 | R154: 0.1666666667 | S154: 0.2946278255 | T154: 0.4448782605 | U154: 0.1666666667 | V154: 0.2946278255 | W154: 0.4448782605 | X154: 0.1666666667 | Y154: 0.2946278255 | Z154: 0.4448782605 | AA154: 0.1666666667 | AB154: 0.2946278255
B155: 0.5728219619 | C155: 0.2667968432 | D155: 0.2083333333 | E155: 0.5728219619 | F155: 0.2667968432 | G155: 0.2083333333 | H155: 0.5728219619 | I155: 0.2667968432 | J155: 0.2083333333 | K155: 0.5728219619 | L155: 0.2667968432 | M155: 0.2083333333 | N155: 0.5728219619 | O155: 0.2667968432 | P155: 0.2083333333 | Q155: 0.5728219619 | R155: 0.2667968432 | S155: 0.2083333333 | T155: 0.5728219619 | U155: 0.2667968432 | V155: 0.2083333333 | W155: 0.5728219619 | X155: 0.2667968432 | Y155: 0.2083333333 | Z155: 0.5728219619 | AA155: 0.2667968432 | AB155: 0.2083333333
B156: 0.5335936865 | C156: 0.3385016002 | D156: 0.4166666667 | E156: 0.5335936865 | F156: 0.3385016002 | G156: 0.4166666667 | H156: 0.5335936865 | I156: 0.3385016002 | J156: 0.4166666667 | K156: 0.5335936865 | L156: 0.3385016002 | M156: 0.4166666667 | N156: 0.5335936865 | O156: 0.3385016002 | P156: 0.4166666667 | Q156: 0.5335936865 | R156: 0.3385016002 | S156: 0.4166666667 | T156: 0.5335936865 | U156: 0.3385016002 | V156: 0.4166666667 | W156: 0.5335936865 | X156: 0.3385016002 | Y156: 0.4166666667 | Z156: 0.5335936865 | AA156: 0.3385016002 | AB156: 0.4166666667
B157: 0.5728219619 | C157: 0.2667968432 | D157: 0.2083333333 | E157: 0.5728219619 | F157: 0.2667968432 | G157: 0.2083333333 | H157: 0.5728219619 | I157: 0.2667968432 | J157: 0.2083333333 | K157: 0.5728219619 | L157: 0.2667968432 | M157: 0.2083333333 | N157: 0.5728219619 | O157: 0.2667968432 | P157: 0.2083333333 | Q157: 0.5728219619 | R157: 0.2667968432 | S157: 0.2083333333 | T157: 0.5728219619 | U157: 0.2667968432 | V157: 0.2083333333 | W157: 0.5728219619 | X157: 0.2667968432 | Y157: 0.2083333333 | Z157: 0.5728219619 | AA157: 0.2667968432 | AB157: 0.2083333333
B158: 0.6770032004 | C158: 0.3385016002 | D158: 0 | E158: 0.6770032004 | F158: 0.3385016002 | G158: 0 | H158: 0.6770032004 | I158: 0.3385016002 | J158: 0 | K158: 0.6770032004 | L158: 0.3385016002 | M158: 0 | N158: 0.6770032004 | O158: 0.3385016002 | P158: 0 | Q158: 0.6770032004 | R158: 0.3385016002 | S158: 0 | T158: 0.6770032004 | U158: 0.3385016002 | V158: 0 | W158: 0.6770032004 | X158: 0.3385016002 | Y158: 0 | Z158: 0.6770032004 | AA158: 0.3385016002 | AB158: 0

Sheet Variance d'estimation
A1: Variance d'estimation et variance des valeurs estimées (estimation ponctuelle)
A3: Variogramme exponentiel | D3: Variance des valeurs estimées | E3: Variance d'estimation
A4: C0 | B4: 10 | D4: =MMULT(MMULT(TRANSPOSE(E16:E25),B78:K87),E16:E25) -> 96.61953643 | E4: =B4+B5+D4-2*MMULT(TRANSPOSE(E16:E25),H16:H25) -> 54.50058173
A5: C | B5: 135
A6: ax | B6: 100
A7: ay | B7: 100
A8: az | B8: 100
A10: Point à estimer
B11: x | C11: y | D11: z
A12: x0 | B12: 10 | C12: 10 | D12: 0
A14: Points connus
A15: xi | B15: x | C15: y | D15: z | E15: poids associé au point (mettre 0 pour retirer une donnée) | G15: h(xi,x0) | H15: k0
A16: 1 | B16: 0 | C16: 0 | D16: 0 | E16: 0.276 | G16: =SQRT(((B16-$B$12)/$B$6)^2+((C16-$C$12)/$B$7)^2+((D16-$D$12)/$B$8)^2) -> 0.1414213562 | H16: =$B$4*(G16=0)+$B$5*EXP(-3*G16) -> 88.3238974
A17: 2 | B17: 20 | C17: 0 | D17: 0 | E17: 0.276 | G17: =SQRT(((B17-$B$12)/$B$6)^2+((C17-$C$12)/$B$7)^2+((D17-$D$12)/$B$8)^2) -> 0.1414213562 | H17: =$B$4*(G17=0)+$B$5*EXP(-3*G17) -> 88.3238974
A18: 3 | B18: 10 | C18: 20 | D18: 0 | E18: 0.448 | G18: 0.1 | H18: 100.0104598
A19: 4 | B19: 23 | C19: -3 | D19: -5 | E19: 0 | G19: 0.1905255888 | H19: 76.22564937
A20: 5 | B20: 31 | C20: -7 | D20: 8 | E20: 0 | G20: 0.2817800561 | H20: 57.97052028
A21: 6 | B21: -11 | C21: 8 | D21: 21 | E21: 0 | G21: 0.2976575213 | H21: 55.27397674
A22: 7 | B22: -22 | C22: 15 | D22: 43 | E22: 0 | G22: 0.5383307533 | H22: 26.85044833
A23: 8 | B23: 43 | C23: 6 | D23: -51 | E23: 0 | G23: 0.6087692502 | H23: 21.73593818
A24: 9 | B24: -33 | C24: 2 | D24: -20 | E24: 0 | G24: 0.4809365863 | H24: 31.89550273
A25: 10 | B25: -34 | C25: 25 | D25: 32 | E25: 0 | G25: 0.5643580424 | H25: 24.8336764
E26: =SUM(E16:E25) -> 1 | F26: Somme des poids (s'assurer que la somme donne 1)
A28: hx^2 | B28: =TRANSPOSE(B16:B25/$B$6) -> 0 | C28: 0.2 | D28: 0.1 | E28: 0.23 | F28: 0.31 | G28: -0.11 | H28: -0.22 | I28: 0.43 | J28: -0.33 | K28: -0.34
A29: =(B16:B25/$B$6) -> 0 | B29: =((B$28-$A29))^2 -> 0 | C29: =((C$28-$A29))^2 -> 0.04 | D29: =((D$28-$A29))^2 -> 0.01 | E29: 0.0529 | F29: 0.0961 | G29: 0.0121 | H29: 0.0484 | I29: 0.1849 | J29: 0.1089 | K29: 0.1156
A30: 0.2 | B30: 0.04 | C30: 0 | D30: 0.01 | E30: 0.0009 | F30: 0.0121 | G30: 0.0961 | H30: 0.1764 | I30: 0.0529 | J30: 0.2809 | K30: 0.2916
A31: 0.1 | B31: 0.01 | C31: 0.01 | D31: 0 | E31: 0.0169 | F31: 0.0441 | G31: 0.0441 | H31: 0.1024 | I31: 0.1089 | J31: 0.1849 | K31: 0.1936
A32: 0.23 | B32: 0.0529 | C32: 0.0009 | D32: 0.0169 | E32: 0 | F32: 0.0064 | G32: 0.1156 | H32: 0.2025 | I32: 0.04 | J32: 0.3136 | K32: 0.3249
A33: 0.31 | B33: 0.0961 | C33: 0.0121 | D33: 0.0441 | E33: 0.0064 | F33: 0 | G33: 0.1764 | H33: 0.2809 | I33: 0.0144 | J33: 0.4096 | K33: 0.4225
A34: -0.11 | B34: 0.0121 | C34: 0.0961 | D34: 0.0441 | E34: 0.1156 | F34: 0.1764 | G34: 0 | H34: 0.0121 | I34: 0.2916 | J34: 0.0484 | K34: 0.0529
A35: -0.22 | B35: 0.0484 | C35: 0.1764 | D35: 0.1024 | E35: 0.2025 | F35: 0.2809 | G35: 0.0121 | H35: 0 | I35: 0.4225 | J35: 0.0121 | K35: 0.0144
A36: 0.43 | B36: 0.1849 | C36: 0.0529 | D36: 0.1089 | E36: 0.04 | F36: 0.0144 | G36: 0.2916 | H36: 0.4225 | I36: 0 | J36: 0.5776 | K36: 0.5929
A37: -0.33 | B37: 0.1089 | C37: 0.2809 | D37: 0.1849 | E37: 0.3136 | F37: 0.4096 | G37: 0.0484 | H37: 0.0121 | I37: 0.5776 | J37: 0 | K37: 0.0001
A38: -0.34 | B38: 0.1156 | C38: 0.2916 | D38: 0.1936 | E38: 0.3249 | F38: 0.4225 | G38: 0.0529 | H38: 0.0144 | I38: 0.5929 | J38: 0.0001 | K38: 0
A40: hy^2 | B40: =TRANSPOSE(C16:C25/$B$7) -> 0 | C40: 0 | D40: 0.2 | E40: -0.03 | F40: -0.07 | G40: 0.08 | H40: 0.15 | I40: 0.06 | J40: 0.02 | K40: 0.25
A41: =(C16:C25/$B$7) -> 0 | B41: =((B$40-$A41))^2 -> 0 | C41: =((C$40-$A41))^2 -> 0 | D41: 0.04 | E41: 0.0009 | F41: 0.0049 | G41: 0.0064 | H41: 0.0225 | I41: 0.0036 | J41: 0.0004 | K41: 0.0625
A42: 0 | B42: =((B$40-$A42))^2 -> 0 | C42: 0 | D42: 0.04 | E42: 0.0009 | F42: 0.0049 | G42: 0.0064 | H42: 0.0225 | I42: 0.0036 | J42: 0.0004 | K42: 0.0625
A43: 0.2 | B43: 0.04 | C43: 0.04 | D43: 0 | E43: 0.0529 | F43: 0.0729 | G43: 0.0144 | H43: 0.0025 | I43: 0.0196 | J43: 0.0324 | K43: 0.0025
A44: -0.03 | B44: 0.0009 | C44: 0.0009 | D44: 0.0529 | E44: 0 | F44: 0.0016 | G44: 0.0121 | H44: 0.0324 | I44: 0.0081 | J44: 0.0025 | K44: 0.0784
A45: -0.07 | B45: 0.0049 | C45: 0.0049 | D45: 0.0729 | E45: 0.0016 | F45: 0 | G45: 0.0225 | H45: 0.0484 | I45: 0.0169 | J45: 0.0081 | K45: 0.1024
A46: 0.08 | B46: 0.0064 | C46: 0.0064 | D46: 0.0144 | E46: 0.0121 | F46: 0.0225 | G46: 0 | H46: 0.0049 | I46: 0.0004 | J46: 0.0036 | K46: 0.0289
A47: 0.15 | B47: 0.0225 | C47: 0.0225 | D47: 0.0025 | E47: 0.0324 | F47: 0.0484 | G47: 0.0049 | H47: 0 | I47: 0.0081 | J47: 0.0169 | K47: 0.01
A48: 0.06 | B48: 0.0036 | C48: 0.0036 | D48: 0.0196 | E48: 0.0081 | F48: 0.0169 | G48: 0.0004 | H48: 0.0081 | I48: 0 | J48: 0.0016 | K48: 0.0361
A49: 0.02 | B49: 0.0004 | C49: 0.0004 | D49: 0.0324 | E49: 0.0025 | F49: 0.0081 | G49: 0.0036 | H49: 0.0169 | I49: 0.0016 | J49: 0 | K49: 0.0529
A50: 0.25 | B50: 0.0625 | C50: 0.0625 | D50: 0.0025 | E50: 0.0784 | F50: 0.1024 | G50: 0.0289 | H50: 0.01 | I50: 0.0361 | J50: 0.0529 | K50: 0
A52: hz^2 | B52: =TRANSPOSE(D16:D25/$B$8) -> 0 | C52: 0 | D52: 0 | E52: -0.05 | F52: 0.08 | G52: 0.21 | H52: 0.43 | I52: -0.51 | J52: -0.2 | K52: 0.32
A53: =(D16:D25/$B$8) -> 0 | B53: =((B$52-$A53))^2 -> 0 | C53: =((C$52-$A53))^2 -> 0 | D53: 0 | E53: 0.0025 | F53: 0.0064 | G53: 0.0441 | H53: 0.1849 | I53: 0.2601 | J53: 0.04 | K53: 0.1024
A54: 0 | B54: =((B$52-$A54))^2 -> 0 | C54: 0 | D54: 0 | E54: 0.0025 | F54: 0.0064 | G54: 0.0441 | H54: 0.1849 | I54: 0.2601 | J54: 0.04 | K54: 0.1024
A55: 0 | B55: 0 | C55: 0 | D55: 0 | E55: 0.0025 | F55: 0.0064 | G55: 0.0441 | H55: 0.1849 | I55: 0.2601 | J55: 0.04 | K55: 0.1024
A56: -0.05 | B56: 0.0025 | C56: 0.0025 | D56: 0.0025 | E56: 0 | F56: 0.0169 | G56: 0.0676 | H56: 0.2304 | I56: 0.2116 | J56: 0.0225 | K56: 0.1369
A57: 0.08 | B57: 0.0064 | C57: 0.0064 | D57: 0.0064 | E57: 0.0169 | F57: 0 | G57: 0.0169 | H57: 0.1225 | I57: 0.3481 | J57: 0.0784 | K57: 0.0576
A58: 0.21 | B58: 0.0441 | C58: 0.0441 | D58: 0.0441 | E58: 0.0676 | F58: 0.0169 | G58: 0 | H58: 0.0484 | I58: 0.5184 | J58: 0.1681 | K58: 0.0121
A59: 0.43 | B59: 0.1849 | C59: 0.1849 | D59: 0.1849 | E59: 0.2304 | F59: 0.1225 | G59: 0.0484 | H59: 0 | I59: 0.8836 | J59: 0.3969 | K59: 0.0121
A60: -0.51 | B60: 0.2601 | C60: 0.2601 | D60: 0.2601 | E60: 0.2116 | F60: 0.3481 | G60: 0.5184 | H60: 0.8836 | I60: 0 | J60: 0.0961 | K60: 0.6889
A61: -0.2 | B61: 0.04 | C61: 0.04 | D61: 0.04 | E61: 0.0225 | F61: 0.0784 | G61: 0.1681 | H61: 0.3969 | I61: 0.0961 | J61: 0 | K61: 0.2704
A62: 0.32 | B62: 0.1024 | C62: 0.1024 | D62: 0.1024 | E62: 0.1369 | F62: 0.0576 | G62: 0.0121 | H62: 0.0121 | I62: 0.6889 | J62: 0.2704 | K62: 0
A64: h | B64: 1 | C64: 2 | D64: 3 | E64: 4 | F64: 5 | G64: 6 | H64: 7 | I64: 8 | J64: 9 | K64: 10
A65: 1 | B65: =SQRT(B29+B41+B53) -> 0 | C65: =SQRT(C29+C41+C53) -> 0.2 | D65: 0.2236067977 | E65: 0.2372762104 | F65: 0.3277193922 | G65: 0.2501999201 | H65: 0.5057667447 | I65: 0.669776082 | J65: 0.3863935817 | K65: 0.5296225071
A66: 2 | B66: =SQRT(B30+B42+B54) -> 0.2 | C66: 0 | D66: 0.2236067977 | E66: 0.06557438524 | F66: 0.1529705854 | G66: 0.3828837944 | H66: 0.6195159401 | I66: 0.5626721959 | J66: 0.5668333088 | K66: 0.6756478373
A67: 3 | B67: =SQRT(B31+B43+B55) -> 0.2236067977 | C67: 0.2236067977 | D67: 0 | E67: 0.2688865932 | F67: 0.3512833614 | G67: 0.3203123476 | H67: 0.5383307533 | I67: 0.623377895 | J67: 0.5072474741 | K67: 0.5463515352
A68: 4 | B68: =SQRT(B32+B44+B56) -> 0.2372762104 | C68: 0.06557438524 | D68: 0.2688865932 | E68: 0 | F68: 0.1577973384 | G68: 0.4419275959 | H68: 0.6821290201 | I68: 0.5096076922 | J68: 0.581893461 | K68: 0.734982993
A69: 5 | B69: =SQRT(B33+B45+B57) -> 0.3277193922 | C69: 0.1529705854 | D69: 0.3512833614 | E69: 0.1577973384 | F69: 0 | G69: 0.464542786 | H69: 0.6721606951 | I69: 0.6159545438 | J69: 0.7043436661 | K69: 0.7632168761
A70: 6 | B70: =SQRT(B34+B46+B58) -> 0.2501999201 | C70: 0.3828837944 | D70: 0.3203123476 | E70: 0.4419275959 | F70: 0.464542786 | G70: 0 | H70: 0.2557342371 | I70: 0.9002221948 | J70: 0.4691481642 | K70: 0.3064310689
A71: 7 | B71: =SQRT(B35+B47+B59) -> 0.5057667447 | C71: 0.6195159401 | D71: 0.5383307533 | E71: 0.6821290201 | F71: 0.6721606951 | G71: 0.2557342371 | H71: 0 | I71: 1.146385624 | J71: 0.652610144 | K71: 0.1910497317
A72: 8 | B72: =SQRT(B36+B48+B60) -> 0.669776082 | C72: 0.5626721959 | D72: 0.623377895 | E72: 0.5096076922 | F72: 0.6159545438 | G72: 0.9002221948 | H72: 1.146385624 | I72: 0 | J72: 0.8217663902 | K72: 1.147998258
A73: 9 | B73: =SQRT(B37+B49+B61) -> 0.3863935817 | C73: 0.5668333088 | D73: 0.5072474741 | E73: 0.581893461 | F73: 0.7043436661 | G73: 0.4691481642 | H73: 0.652610144 | I73: 0.8217663902 | J73: 0 | K73: 0.5686826883
A74: 10 | B74: =SQRT(B38+B50+B62) -> 0.5296225071 | C74: 0.6756478373 | D74: 0.5463515352 | E74: 0.734982993 | F74: 0.7632168761 | G74: 0.3064310689 | H74: 0.1910497317 | I74: 1.147998258 | J74: 0.5686826883 | K74: 0
A77: K | B77: 1 | C77: 2 | D77: 3 | E77: 4 | F77: 5 | G77: 6 | H77: 7 | I77: 8 | J77: 9 | K77: 10
A78: 1 | B78: =$B$4*(B65=0)+$B$5*EXP(-3*B65) -> 145 | C78: =$B$4*(C65=0)+$B$5*EXP(-3*C65) -> 74.08957087 | D78: 69.02400794 | E78: 66.25070772 | F78: 50.50723543 | G78: 63.73124969 | H78: 29.60592601 | I78: 18.10062617 | J78: 42.35532001 | K78: 27.56115234
A79: 2 | B79: =$B$4*(B66=0)+$B$5*EXP(-3*B66) -> 74.08957087 | C79: 145 | D79: 69.02400794 | E79: 110.8914309 | F79: 85.31608634 | G79: 42.80365068 | H79: 21.046346 | I79: 24.95959184 | J79: 24.6499495 | K79: 17.7845707
A80: 3 | B80: =$B$4*(B67=0)+$B$5*EXP(-3*B67) -> 69.02400794 | C80: 69.02400794 | D80: 145 | E80: 60.25677408 | F80: 47.06006169 | G80: 51.64212605 | H80: 26.85044833 | I80: 20.80391299 | J80: 29.47470259 | K80: 26.21207475
A81: 4 | B81: =$B$4*(B68=0)+$B$5*EXP(-3*B68) -> 66.25070772 | C81: 110.8914309 | D81: 60.25677408 | E81: 145 | F81: 84.08958875 | G81: 35.85532139 | H81: 17.4421156 | I81: 29.26673953 | J81: 23.56103752 | K81: 14.88458032
A82: 5 | B82: =$B$4*(B69=0)+$B$5*EXP(-3*B69) -> 50.50723543 | C82: 85.31608634 | D82: 47.06006169 | E82: 84.08958875 | F82: 145 | G82: 33.50338306 | H82: 17.97159927 | I82: 21.27241466 | J82: 16.31759184 | K82: 13.67574943
A83: 6 | B83: =$B$4*(B70=0)+$B$5*EXP(-3*B70) -> 63.73124969 | C83: 42.80365068 | D83: 51.64212605 | E83: 35.85532139 | F83: 33.50338306 | G83: 145 | H83: 62.68185848 | I83: 9.066698485 | J83: 33.04367878 | K83: 53.83810951
A84: 7 | B84: =$B$4*(B71=0)+$B$5*EXP(-3*B71) -> 29.60592601 | C84: 21.046346 | D84: 26.85044833 | E84: 17.4421156 | F84: 17.97159927 | G84: 62.68185848 | H84: 145 | I84: 4.332383728 | J84: 19.05718787 | K84: 76.10588415
A85: 8 | B85: =$B$4*(B72=0)+$B$5*EXP(-3*B72) -> 18.10062617 | C85: 24.95959184 | D85: 20.80391299 | E85: 29.26673953 | F85: 21.27241466 | G85: 9.066698485 | H85: 4.332383728 | I85: 145 | J85: 11.4727609 | K85: 4.311474707
A86: 9 | B86: =$B$4*(B73=0)+$B$5*EXP(-3*B73) -> 42.35532001 | C86: 24.6499495 | D86: 29.47470259 | E86: 23.56103752 | F86: 16.31759184 | G86: 33.04367878 | H86: 19.05718787 | I86: 11.4727609 | J86: 145 | K86: 24.51356685
A87: 10 | B87: =$B$4*(B74=0)+$B$5*EXP(-3*B74) -> 27.56115234 | C87: 17.7845707 | D87: 26.21207475 | E87: 14.88458032 | F87: 13.67574943 | G87: 53.83810951 | H87: 76.10588415 | I87: 4.311474707 | J87: 24.51356685 | K87: 145

Sheet KS-sphérique
A1: Krigeage simple modèle sphérique
A3: Variogramme sphérique | D3: Variance des valeurs estimées | E3: Variance d'estimation | F3: Somme
A4: C0 | B4: 0 | D4: =MMULT(MMULT(TRANSPOSE(E17:OFFSET(E16,$B$14,0)),B79:OFFSET(A78,$B$14,$B$14)),E17:OFFSET(E16,$B$14,0)) -> 0.9537996936 | E4: =B4+B5+D4-2*MMULT(TRANSPOSE(E17:OFFSET(E16,$B$14,0)),H17:OFFSET(H16,$B14,0)) -> 1.046200306 | F4: =D4+E4 -> 2
A5: C | B5: 2
A6: ax | B6: 30
A7: ay | B7: 30
A8: az | B8: 30
A10: Point à estimer
B11: x | C11: y | D11: z
A12: x0 | B12: 0 | C12: 0 | D12: 0
A14: Nombre de points à utiliser | B14: 10
A15: Points connus
A16: xi | B16: x | C16: y | D16: z | E16: Poids calculés par KS | G16: h(xi,x0) | H16: k0
A17: 1 | B17: -5 | C17: 5 | D17: 3 | E17: =MMULT(B91:OFFSET(A90,$B$14,$B$14),H17:OFFSET(H16,$B$14,0)) -> 0.5749276305 | G17: =MIN(SQRT(((B17-$B$12)/$B$6)^2+((C17-$C$12)/$B$7)^2+((D17-$D$12)/$B$8)^2),1) -> 0.2560381916 | H17: =$B$4*(G17=0)+$B$5*(1-(1.5*G17-0.5*G17^3)) -> 1.248670151
A18: 2 | B18: 12 | C18: 2 | D18: 5 | E18: 0.1293591591 | G18: =MIN(SQRT(((B18-$B$12)/$B$6)^2+((C18-$C$12)/$B$7)^2+((D18-$D$12)/$B$8)^2),1) -> 0.4384315479 | H18: =$B$4*(G18=0)+$B$5*(1-(1.5*G18-0.5*G18^3)) -> 0.7689816426
A19: 3 | B19: 13 | C19: -4 | D19: 3 | E19: 0.2077017353 | G19: 0.4642796092 | H19: 0.7072392214
A20: 4 | B20: 23 | C20: -3 | D20: -5 | E20: -0.04763083695 | G20: 0.7909207012 | H20: 0.1220027351
A21: 5 | B21: 31 | C21: -7 | D21: 8 | E21: -0.03868863898 | G21: 1 | H21: 0
A22: 6 | B22: -11 | C22: 8 | D22: 21 | E22: -0.05959255133 | G22: 0.8339997335 | H22: 0.07809394736
A23: 7 | B23: -22 | C23: 15 | D23: 43 | E23: 0.001908126908 | G23: 1 | H23: 0
A24: 8 | B24: 43 | C24: 6 | D24: -51 | E24: 0 | G24: 1 | H24: 0
A25: 9 | B25: -33 | C25: 2 | D25: -20 | E25: 0 | G25: 1 | H25: 0
A26: 10 | B26: -34 | C26: 25 | D26: 32 | E26: -0.0003317980975 | G26: 1 | H26: 0
E27: =1-SUM(E17:E26) -> 0.2323471735 | F27: Poids de la moyenne connue
A29: hx^2 | B29: =TRANSPOSE(B17:INDIRECT(_xlfn.CONCAT("B",$B$14+16))/$B$6) -> -0.1666666667 | C29: 0.4 | D29: 0.4333333333 | E29: 0.7666666667 | F29: 1.033333333 | G29: -0.3666666667 | H29: -0.7333333333 | I29: 1.433333333 | J29: -1.1 | K29: -1.133333333
A30: =(B17:INDIRECT(_xlfn.CONCAT("B",$B$14+16))/$B$6) -> -0.1666666667 | B30: =MIN(((B$29-$A30))^2,1) -> 0 | C30: =MIN(((C$29-$A30))^2,1) -> 0.3211111111 | D30: 0.36 | E30: 0.8711111111 | F30: 1 | G30: 0.04 | H30: 0.3211111111 | I30: 1 | J30: 0.8711111111 | K30: 0.9344444444
A31: 0.4 | B31: =MIN(((B$29-$A31))^2,1) -> 0.3211111111 | C31: 0 | D31: 0.001111111111 | E31: 0.1344444444 | F31: 0.4011111111 | G31: 0.5877777778 | H31: 1 | I31: 1 | J31: 1 | K31: 1
A32: 0.4333333333 | B32: 0.36 | C32: 0.001111111111 | D32: 0 | E32: 0.1111111111 | F32: 0.36 | G32: 0.64 | H32: 1 | I32: 1 | J32: 1 | K32: 1
A33: 0.7666666667 | B33: 0.8711111111 | C33: 0.1344444444 | D33: 0.1111111111 | E33: 0 | F33: 0.07111111111 | G33: 1 | H33: 1 | I33: 0.4444444444 | J33: 1 | K33: 1
A34: 1.033333333 | B34: 1 | C34: 0.4011111111 | D34: 0.36 | E34: 0.07111111111 | F34: 0 | G34: 1 | H34: 1 | I34: 0.16 | J34: 1 | K34: 1
A35: -0.3666666667 | B35: 0.04 | C35: 0.5877777778 | D35: 0.64 | E35: 1 | F35: 1 | G35: 0 | H35: 0.1344444444 | I35: 1 | J35: 0.5377777778 | K35: 0.5877777778
A36: -0.7333333333 | B36: 0.3211111111 | C36: 1 | D36: 1 | E36: 1 | F36: 1 | G36: 0.1344444444 | H36: 0 | I36: 1 | J36: 0.1344444444 | K36: 0.16
A37: 1.433333333 | B37: 1 | C37: 1 | D37: 1 | E37: 0.4444444444 | F37: 0.16 | G37: 1 | H37: 1 | I37: 0 | J37: 1 | K37: 1
A38: -1.1 | B38: 0.8711111111 | C38: 1 | D38: 1 | E38: 1 | F38: 1 | G38: 0.5377777778 | H38: 0.1344444444 | I38: 1 | J38: 0 | K38: 0.001111111111
A39: -1.133333333 | B39: 0.9344444444 | C39: 1 | D39: 1 | E39: 1 | F39: 1 | G39: 0.5877777778 | H39: 0.16 | I39: 1 | J39: 0.001111111111 | K39: 0
A41: hy^2 | B41: =TRANSPOSE(C17:INDIRECT(_xlfn.CONCAT("C",$B$14+16))/$B$7) -> 0.1666666667 | C41: 0.06666666667 | D41: -0.1333333333 | E41: -0.1 | F41: -0.2333333333 | G41: 0.2666666667 | H41: 0.5 | I41: 0.2 | J41: 0.06666666667 | K41: 0.8333333333
A42: =(C17:INDIRECT(_xlfn.CONCAT("C",$B$14+16))/$B$7) -> 0.1666666667 | B42: =MIN(((B$41-$A42))^2,1) -> 0 | C42: =MIN(((C$41-$A42))^2,1) -> 0.01 | D42: 0.09 | E42: 0.07111111111 | F42: 0.16 | G42: 0.01 | H42: 0.1111111111 | I42: 0.001111111111 | J42: 0.01 | K42: 0.4444444444
A43: 0.06666666667 | B43: =MIN(((B$41-$A43))^2,1) -> 0.01 | C43: 0 | D43: 0.04 | E43: 0.02777777778 | F43: 0.09 | G43: 0.04 | H43: 0.1877777778 | I43: 0.01777777778 | J43: 0 | K43: 0.5877777778
A44: -0.1333333333 | B44: 0.09 | C44: 0.04 | D44: 0 | E44: 0.001111111111 | F44: 0.01 | G44: 0.16 | H44: 0.4011111111 | I44: 0.1111111111 | J44: 0.04 | K44: 0.9344444444
A45: -0.1 | B45: 0.07111111111 | C45: 0.02777777778 | D45: 0.001111111111 | E45: 0 | F45: 0.01777777778 | G45: 0.1344444444 | H45: 0.36 | I45: 0.09 | J45: 0.02777777778 | K45: 0.8711111111
A46: -0.2333333333 | B46: 0.16 | C46: 0.09 | D46: 0.01 | E46: 0.01777777778 | F46: 0 | G46: 0.25 | H46: 0.5377777778 | I46: 0.1877777778 | J46: 0.09 | K46: 1
A47: 0.2666666667 | B47: 0.01 | C47: 0.04 | D47: 0.16 | E47: 0.1344444444 | F47: 0.25 | G47: 0 | H47: 0.05444444444 | I47: 0.004444444444 | J47: 0.04 | K47: 0.3211111111
A48: 0.5 | B48: 0.1111111111 | C48: 0.1877777778 | D48: 0.4011111111 | E48: 0.36 | F48: 0.5377777778 | G48: 0.05444444444 | H48: 0 | I48: 0.09 | J48: 0.1877777778 | K48: 0.1111111111
A49: 0.2 | B49: 0.001111111111 | C49: 0.01777777778 | D49: 0.1111111111 | E49: 0.09 | F49: 0.1877777778 | G49: 0.004444444444 | H49: 0.09 | I49: 0 | J49: 0.01777777778 | K49: 0.4011111111
A50: 0.06666666667 | B50: 0.01 | C50: 0 | D50: 0.04 | E50: 0.02777777778 | F50: 0.09 | G50: 0.04 | H50: 0.1877777778 | I50: 0.01777777778 | J50: 0 | K50: 0.5877777778
A51: 0.8333333333 | B51: 0.4444444444 | C51: 0.5877777778 | D51: 0.9344444444 | E51: 0.8711111111 | F51: 1 | G51: 0.3211111111 | H51: 0.1111111111 | I51: 0.4011111111 | J51: 0.5877777778 | K51: 0
A53: hz^2 | B53: =TRANSPOSE(D17:INDIRECT(_xlfn.CONCAT("D",$B$14+16))/$B$8) -> 0.1 | C53: 0.1666666667 | D53: 0.1 | E53: -0.1666666667 | F53: 0.2666666667 | G53: 0.7 | H53: 1.433333333 | I53: -1.7 | J53: -0.6666666667 | K53: 1.066666667
A54: =(D17:INDIRECT(_xlfn.CONCAT("D",$B$14+16))/$B$8) -> 0.1 | B54: =MIN((B$53-$A54)^2,1) -> 0 | C54: =MIN((C$53-$A54)^2,1) -> 0.004444444444 | D54: 0 | E54: 0.07111111111 | F54: 0.02777777778 | G54: 0.36 | H54: 1 | I54: 1 | J54: 0.5877777778 | K54: 0.9344444444
A55: 0.1666666667 | B55: =MIN((B$53-$A55)^2,1) -> 0.004444444444 | C55: 0 | D55: 0.004444444444 | E55: 0.1111111111 | F55: 0.01 | G55: 0.2844444444 | H55: 1 | I55: 1 | J55: 0.6944444444 | K55: 0.81
A56: 0.1 | B56: 0 | C56: 0.004444444444 | D56: 0 | E56: 0.07111111111 | F56: 0.02777777778 | G56: 0.36 | H56: 1 | I56: 1 | J56: 0.5877777778 | K56: 0.9344444444
A57: -0.1666666667 | B57: 0.07111111111 | C57: 0.1111111111 | D57: 0.07111111111 | E57: 0 | F57: 0.1877777778 | G57: 0.7511111111 | H57: 1 | I57: 1 | J57: 0.25 | K57: 1
A58: 0.2666666667 | B58: 0.02777777778 | C58: 0.01 | D58: 0.02777777778 | E58: 0.1877777778 | F58: 0 | G58: 0.1877777778 | H58: 1 | I58: 1 | J58: 0.8711111111 | K58: 0.64
A59: 0.7 | B59: 0.36 | C59: 0.2844444444 | D59: 0.36 | E59: 0.7511111111 | F59: 0.1877777778 | G59: 0 | H59: 0.5377777778 | I59: 1 | J59: 1 | K59: 0.1344444444
A60: 1.433333333 | B60: 1 | C60: 1 | D60: 1 | E60: 1 | F60: 1 | G60: 0.5377777778 | H60: 0 | I60: 1 | J60: 1 | K60: 0.1344444444
A61: -1.7 | B61: 1 | C61: 1 | D61: 1 | E61: 1 | F61: 1 | G61: 1 | H61: 1 | I61: 0 | J61: 1 | K61: 1
A62: -0.6666666667 | B62: 0.5877777778 | C62: 0.6944444444 | D62: 0.5877777778 | E62: 0.25 | F62: 0.8711111111 | G62: 1 | H62: 1 | I62: 1 | J62: 0 | K62: 1
A63: 1.066666667 | B63: 0.9344444444 | C63: 0.81 | D63: 0.9344444444 | E63: 1 | F63: 0.64 | G63: 0.1344444444 | H63: 0.1344444444 | I63: 1 | J63: 1 | K63: 0
A65: h | B65: 1 | C65: 2 | D65: 3 | E65: 4 | F65: 5 | G65: 6 | H65: 7 | I65: 8 | J65: 9 | K65: 10
A66: 1 | B66: =MIN(SQRT(B30+B42+B54),1) -> 0 | C66: =MIN(SQRT(C30+C42+C54),1) -> 0.5792715732 | D66: 0.6708203932 | E66: 1 | F66: 1 | G66: 0.6403124237 | H66: 1 | I66: 1 | J66: 1 | K66: 1
A67: 2 | B67: =MIN(SQRT(B31+B43+B55),1) -> 0.5792715732 | C67: 0 | D67: 0.2134374746 | E67: 0.5228129047 | F67: 0.7078920194 | G67: 0.9551032521 | H67: 1 | I67: 1 | J67: 1 | K67: 1
A68: 3 | B68: =MIN(SQRT(B32+B44+B56),1) -> 0.6708203932 | C68: 0.2134374746 | D68: 0 | E68: 0.4281744193 | F68: 0.6306962643 | G68: 1 | H68: 1 | I68: 1 | J68: 1 | K68: 1
A69: 4 | B69: =MIN(SQRT(B33+B45+B57),1) -> 1 | C69: 0.5228129047 | D69: 0.4281744193 | E69: 0 | F69: 0.5259911279 | G69: 1 | H69: 1 | I69: 1 | J69: 1 | K69: 1
A70: 5 | B70: =MIN(SQRT(B34+B46+B58),1) -> 1 | C70: 0.7078920194 | D70: 0.6306962643 | E70: 0.5259911279 | F70: 0 | G70: 1 | H70: 1 | I70: 1 | J70: 1 | K70: 1
A71: 6 | B71: =MIN(SQRT(B35+B47+B59),1) -> 0.6403124237 | C71: 0.9551032521 | D71: 1 | E71: 1 | F71: 1 | G71: 0 | H71: 0.8524474568 | I71: 1 | J71: 1 | K71: 1
A72: 7 | B72: =MIN(SQRT(B36+B48+B60),1) -> 1 | C72: 1 | D72: 1 | E72: 1 | F72: 1 | G72: 0.8524474568 | H72: 0 | I72: 1 | J72: 1 | K72: 0.6368324392
A73: 8 | B73: =MIN(SQRT(B37+B49+B61),1) -> 1 | C73: 1 | D73: 1 | E73: 1 | F73: 1 | G73: 1 | H73: 1 | I73: 0 | J73: 1 | K73: 1
A74: 9 | B74: =MIN(SQRT(B38+B50+B62),1) -> 1 | C74: 1 | D74: 1 | E74: 1 | F74: 1 | G74: 1 | H74: 1 | I74: 1 | J74: 0 | K74: 1
A75: 10 | B75: =MIN(SQRT(B39+B51+B63),1) -> 1 | C75: 1 | D75: 1 | E75: 1 | F75: 1 | G75: 1 | H75: 0.6368324392 | I75: 1 | J75: 1 | K75: 0
A78: K | B78: 1 | C78: 2 | D78: 3 | E78: 4 | F78: 5 | G78: 6 | H78: 7 | I78: 8 | J78: 9 | K78: 10
A79: 1 | B79: =$B$4*(B66=0)+$B$5*(1-(1.5*B66-0.5*B66^3)) -> 2 | C79: =$B$4*(C66=0)+$B$5*(1-(1.5*C66-0.5*C66^3)) -> 0.4565630749 | D79: 0.2894079972 | E79: 0 | F79: 0 | G79: 0.3415908225 | H79: 0 | I79: 0 | J79: 0 | K79: 0
A80: 2 | B80: =$B$4*(B67=0)+$B$5*(1-(1.5*B67-0.5*B67^3)) -> 0.4565630749 | C80: 2 | D80: 1.369410839 | E80: 0.5744634798 | F80: 0.2310564982 | G80: 0.005956654727 | H80: 0 | I80: 0 | J80: 0 | K80: 0
A81: 3 | B81: =$B$4*(B68=0)+$B$5*(1-(1.5*B68-0.5*B68^3)) -> 0.2894079972 | C81: 1.369410839 | D81: 2 | E81: 0.7939753857 | F81: 0.3587881656 | G81: 0 | H81: 0 | I81: 0 | J81: 0 | K81: 0
A82: 4 | B82: =$B$4*(B69=0)+$B$5*(1-(1.5*B69-0.5*B69^3)) -> 0 | C82: 0.5744634798 | D82: 0.7939753857 | E82: 2 | F82: 0.5675508283 | G82: 0 | H82: 0 | I82: 0 | J82: 0 | K82: 0
A83: 5 | B83: =$B$4*(B70=0)+$B$5*(1-(1.5*B70-0.5*B70^3)) -> 0 | C83: 0.2310564982 | D83: 0.3587881656 | E83: 0.5675508283 | F83: 2 | G83: 0 | H83: 0 | I83: 0 | J83: 0 | K83: 0
A84: 6 | B84: =$B$4*(B71=0)+$B$5*(1-(1.5*B71-0.5*B71^3)) -> 0.3415908225 | C84: 0.005956654727 | D84: 0 | E84: 0 | F84: 0 | G84: 2 | H84: 0.06210278146 | I84: 0 | J84: 0 | K84: 0
A85: 7 | B85: =$B$4*(B72=0)+$B$5*(1-(1.5*B72-0.5*B72^3)) -> 0 | C85: 0 | D85: 0 | E85: 0 | F85: 0 | G85: 0.06210278146 | H85: 2 | I85: 0 | J85: 0 | K85: 0.3477736162
A86: 8 | B86: =$B$4*(B73=0)+$B$5*(1-(1.5*B73-0.5*B73^3)) -> 0 | C86: 0 | D86: 0 | E86: 0 | F86: 0 | G86: 0 | H86: 0 | I86: 2 | J86: 0 | K86: 0
A87: 9 | B87: =$B$4*(B74=0)+$B$5*(1-(1.5*B74-0.5*B74^3)) -> 0 | C87: 0 | D87: 0 | E87: 0 | F87: 0 | G87: 0 | H87: 0 | I87: 0 | J87: 2 | K87: 0
A88: 10 | B88: =$B$4*(B75=0)+$B$5*(1-(1.5*B75-0.5*B75^3)) -> 0 | C88: 0 | D88: 0 | E88: 0 | F88: 0 | G88: 0 | H88: 0.3477736162 | I88: 0 | J88: 0 | K88: 2
A90: Kinv | B90: 1 | C90: 2 | D90: 3 | E90: 4 | F90: 5 | G90: 6 | H90: 7 | I90: 8 | J90: 9 | K90: 10
A91: 1 | B91: =MINVERSE(B79:OFFSET(A78,$B$14,$B$14)) -> 0.5469551101 | C91: -0.1335603314 | D91: -0.003888029957 | E91: 0.03842390257 | F91: 0.005223721947 | G91: -0.09311221355 | H91: 0.002981411538 | I91: 0 | J91: 0 | K91: -0.000518428136
A92: 2 | B92: -0.1335603314 | C92: 0.9746759934 | D92: -0.6381570878 | E92: -0.02952846661 | F92: 0.01025844733 | G92: 0.0199284014 | H92: -0.0006380985223 | I92: 0 | J92: 0 | K92: 0.0001109569153
A93: 3 | B93: -0.003888029957 | C93: -0.6381570878 | D93: 1.030579928 | E93: -0.2113013652 | F93: -0.05119263746 | G93: 0.002567250886 | H93: -8.220222806e-05 | I93: 0 | J93: 0 | K93: 1.429388306e-05
A94: 4 | B94: 0.03842390257 | C94: -0.02952846661 | D94: -0.2113013652 | E94: 0.6314938853 | F94: -0.1378848522 | G94: -0.00648112467 | H94: 0.0002075227206 | I94: 0 | J94: 0 | K94: -3.608546349e-05
A95: 5 | B95: 0.005223721947 | C95: 0.01025844733 | D95: -0.05119263746 | E95: -0.1378848522 | F95: 0.5471268468 | G95: -0.0009236591022 | H95: 2.957515239e-05 | I95: 0 | J95: 0 | K95: -5.142728848e-06
A96: 6 | B96: -0.09311221355 | C96: 0.0199284014 | D96: 0.002567250886 | E96: -0.00648112467 | F96: -0.0009236591022 | G96: 0.5163571745 | H96: -0.01653352637 | I96: 0 | J96: 0 | K96: 0.002874962127
A97: 7 | B97: 0.002981411538 | C97: -0.0006380985223 | D97: -8.220222806e-05 | E97: 0.0002075227206 | F97: 2.957515239e-05 | G97: -0.01653352637 | H97: 0.5161190867 | I97: 0 | J97: 0 | K97: -0.08974630059
A98: 8 | B98: 0 | C98: 0 | D98: 0 | E98: 0 | F98: 0 | G98: 0 | H98: 0 | I98: 0.5 | J98: 0 | K98: 0
A99: 9 | B99: 0 | C99: 0 | D99: 0 | E99: 0 | F99: 0 | G99: 0 | H99: 0 | I99: 0 | J99: 0.5 | K99: 0
A100: 10 | B100: -0.000518428136 | C100: 0.0001109569153 | D100: 1.429388306e-05 | E100: -3.608546349e-05 | F100: -5.142728848e-06 | G100: 0.002874962127 | H100: -0.08974630059 | I100: 0 | J100: 0 | K100: 0.5156056977

Sheet KS-Exponentiel
A1: Krigeage simple modèle exponentiel
A3: Variogramme exponentiel | D3: Variance des valeurs estimées | E3: Variance d'estimation | F3: Somme
A4: C0 | B4: 0.1 | D4: =MMULT(MMULT(TRANSPOSE(E17:OFFSET(E16,$B$14,0)),B79:OFFSET(A78,$B$14,$B$14)),E17:OFFSET(E16,$B$14,0)) -> 6.766746151 | E4: =B4+B5+D4-2*MMULT(TRANSPOSE(E17:OFFSET(E16,$B$14,0)),H17:OFFSET(H16,$B14,0)) -> 1.333253849 | F4: =D4+E4 -> 8.1
A5: C | B5: 8
A6: ax | B6: 200
A7: ay | B7: 200
A8: az | B8: 200
A10: Point à estimer
B11: x | C11: y | D11: z
A12: x0 | B12: 0 | C12: 0 | D12: 0
A14: Nombre de points à utiliser | B14: 10
A15: Points connus
A16: xi | B16: x | C16: y | D16: z | E16: Poids calculés par KS | G16: h(xi,x0) | H16: k0
A17: 1 | B17: -5 | C17: 5 | D17: 3 | E17: =MMULT(B91:OFFSET(A90,$B$14,$B$14),H17:OFFSET(H16,$B$14,0)) -> 0.5708205547 | G17: =SQRT(((B17-$B$12)/$B$6)^2+((C17-$C$12)/$B$7)^2+((D17-$D$12)/$B$8)^2) -> 0.03840572874 | H17: =$B$4*(G17=0)+$B$5*EXP(-3*G17) -> 7.12938058
A18: 2 | B18: 12 | C18: 2 | D18: 5 | E18: 0.1460239372 | G18: =SQRT(((B18-$B$12)/$B$6)^2+((C18-$C$12)/$B$7)^2+((D18-$D$12)/$B$8)^2) -> 0.06576473219 | H18: =$B$4*(G18=0)+$B$5*EXP(-3*G18) -> 6.567592619
A19: 3 | B19: 13 | C19: -4 | D19: 3 | E19: 0.2168732842 | G19: 0.06964194139 | H19: 6.49164339
A20: 4 | B20: 23 | C20: -3 | D20: -5 | E20: 0.04558264878 | G20: 0.1186381052 | H20: 5.604261139
A21: 5 | B21: 31 | C21: -7 | D21: 8 | E21: -0.03545210632 | G21: 0.1638596961 | H21: 4.893278132
A22: 6 | B22: -11 | C22: 8 | D22: 21 | E22: 0.00427717764 | G22: 0.12509996 | H22: 5.496665643
A23: 7 | B23: -22 | C23: 15 | D23: 43 | E23: -0.004179555215 | G23: 0.2528833723 | H23: 3.746385186
A24: 8 | B24: 43 | C24: 6 | D24: -51 | E24: 0.0105248729 | G24: 0.334888041 | H24: 2.929340811
A25: 9 | B25: -33 | C25: 2 | D25: -20 | E25: 0.05579775354 | G25: 0.1931967909 | H25: 4.481022106
A26: 10 | B26: -34 | C26: 25 | D26: 32 | E26: -0.01118614933 | G26: 0.2648112535 | H26: 3.614696083
E27: =1-SUM(E17:E26) -> 0.0009175817996 | F27: Poids de la moyenne connue
A29: hx^2 | B29: =TRANSPOSE(B17:INDIRECT(_xlfn.CONCAT("B",$B$14+16))/$B$6) -> -0.025 | C29: 0.06 | D29: 0.065 | E29: 0.115 | F29: 0.155 | G29: -0.055 | H29: -0.11 | I29: 0.215 | J29: -0.165 | K29: -0.17
A30: =(B17:INDIRECT(_xlfn.CONCAT("B",$B$14+16))/$B$6) -> -0.025 | B30: =((B$29-$A30))^2 -> 0 | C30: =((C$29-$A30))^2 -> 0.007225 | D30: =((D$29-$A30))^2 -> 0.0081 | E30: 0.0196 | F30: 0.0324 | G30: 0.0009 | H30: 0.007225 | I30: 0.0576 | J30: 0.0196 | K30: 0.021025
A31: 0.06 | B31: 0.007225 | C31: 0 | D31: 2.5e-05 | E31: 0.003025 | F31: 0.009025 | G31: 0.013225 | H31: 0.0289 | I31: 0.024025 | J31: 0.050625 | K31: 0.0529
A32: 0.065 | B32: 0.0081 | C32: 2.5e-05 | D32: 0 | E32: 0.0025 | F32: 0.0081 | G32: 0.0144 | H32: 0.030625 | I32: 0.0225 | J32: 0.0529 | K32: 0.055225
A33: 0.115 | B33: 0.0196 | C33: 0.003025 | D33: 0.0025 | E33: 0 | F33: 0.0016 | G33: 0.0289 | H33: 0.050625 | I33: 0.01 | J33: 0.0784 | K33: 0.081225
A34: 0.155 | B34: 0.0324 | C34: 0.009025 | D34: 0.0081 | E34: 0.0016 | F34: 0 | G34: 0.0441 | H34: 0.070225 | I34: 0.0036 | J34: 0.1024 | K34: 0.105625
A35: -0.055 | B35: 0.0009 | C35: 0.013225 | D35: 0.0144 | E35: 0.0289 | F35: 0.0441 | G35: 0 | H35: 0.003025 | I35: 0.0729 | J35: 0.0121 | K35: 0.013225
A36: -0.11 | B36: 0.007225 | C36: 0.0289 | D36: 0.030625 | E36: 0.050625 | F36: 0.070225 | G36: 0.003025 | H36: 0 | I36: 0.105625 | J36: 0.003025 | K36: 0.0036
A37: 0.215 | B37: 0.0576 | C37: 0.024025 | D37: 0.0225 | E37: 0.01 | F37: 0.0036 | G37: 0.0729 | H37: 0.105625 | I37: 0 | J37: 0.1444 | K37: 0.148225
A38: -0.165 | B38: 0.0196 | C38: 0.050625 | D38: 0.0529 | E38: 0.0784 | F38: 0.1024 | G38: 0.0121 | H38: 0.003025 | I38: 0.1444 | J38: 0 | K38: 2.5e-05
A39: -0.17 | B39: 0.021025 | C39: 0.0529 | D39: 0.055225 | E39: 0.081225 | F39: 0.105625 | G39: 0.013225 | H39: 0.0036 | I39: 0.148225 | J39: 2.5e-05 | K39: 0
A41: hy^2 | B41: =TRANSPOSE(C17:INDIRECT(_xlfn.CONCAT("C",$B$14+16))/$B$7) -> 0.025 | C41: 0.01 | D41: -0.02 | E41: -0.015 | F41: -0.035 | G41: 0.04 | H41: 0.075 | I41: 0.03 | J41: 0.01 | K41: 0.125
A42: =(C17:INDIRECT(_xlfn.CONCAT("C",$B$14+16))/$B$7) -> 0.025 | B42: =((B$41-$A42))^2 -> 0 | C42: =((C$41-$A42))^2 -> 0.000225 | D42: 0.002025 | E42: 0.0016 | F42: 0.0036 | G42: 0.000225 | H42: 0.0025 | I42: 2.5e-05 | J42: 0.000225 | K42: 0.01
A43: 0.01 | B43: =((B$41-$A43))^2 -> 0.000225 | C43: 0 | D43: 0.0009 | E43: 0.000625 | F43: 0.002025 | G43: 0.0009 | H43: 0.004225 | I43: 0.0004 | J43: 0 | K43: 0.013225
A44: -0.02 | B44: 0.002025 | C44: 0.0009 | D44: 0 | E44: 2.5e-05 | F44: 0.000225 | G44: 0.0036 | H44: 0.009025 | I44: 0.0025 | J44: 0.0009 | K44: 0.021025
A45: -0.015 | B45: 0.0016 | C45: 0.000625 | D45: 2.5e-05 | E45: 0 | F45: 0.0004 | G45: 0.003025 | H45: 0.0081 | I45: 0.002025 | J45: 0.000625 | K45: 0.0196
A46: -0.035 | B46: 0.0036 | C46: 0.002025 | D46: 0.000225 | E46: 0.0004 | F46: 0 | G46: 0.005625 | H46: 0.0121 | I46: 0.004225 | J46: 0.002025 | K46: 0.0256
A47: 0.04 | B47: 0.000225 | C47: 0.0009 | D47: 0.0036 | E47: 0.003025 | F47: 0.005625 | G47: 0 | H47: 0.001225 | I47: 0.0001 | J47: 0.0009 | K47: 0.007225
A48: 0.075 | B48: 0.0025 | C48: 0.004225 | D48: 0.009025 | E48: 0.0081 | F48: 0.0121 | G48: 0.001225 | H48: 0 | I48: 0.002025 | J48: 0.004225 | K48: 0.0025
A49: 0.03 | B49: 2.5e-05 | C49: 0.0004 | D49: 0.0025 | E49: 0.002025 | F49: 0.004225 | G49: 0.0001 | H49: 0.002025 | I49: 0 | J49: 0.0004 | K49: 0.009025
A50: 0.01 | B50: 0.000225 | C50: 0 | D50: 0.0009 | E50: 0.000625 | F50: 0.002025 | G50: 0.0009 | H50: 0.004225 | I50: 0.0004 | J50: 0 | K50: 0.013225
A51: 0.125 | B51: 0.01 | C51: 0.013225 | D51: 0.021025 | E51: 0.0196 | F51: 0.0256 | G51: 0.007225 | H51: 0.0025 | I51: 0.009025 | J51: 0.013225 | K51: 0
A53: hz^2 | B53: =TRANSPOSE(D17:INDIRECT(_xlfn.CONCAT("D",$B$14+16))/$B$8) -> 0.015 | C53: 0.025 | D53: 0.015 | E53: -0.025 | F53: 0.04 | G53: 0.105 | H53: 0.215 | I53: -0.255 | J53: -0.1 | K53: 0.16
A54: =(D17:INDIRECT(_xlfn.CONCAT("D",$B$14+16))/$B$8) -> 0.015 | B54: =((B$53-$A54))^2 -> 0 | C54: =((C$53-$A54))^2 -> 0.0001 | D54: 0 | E54: 0.0016 | F54: 0.000625 | G54: 0.0081 | H54: 0.04 | I54: 0.0729 | J54: 0.013225 | K54: 0.021025
A55: 0.025 | B55: =((B$53-$A55))^2 -> 0.0001 | C55: 0 | D55: 0.0001 | E55: 0.0025 | F55: 0.000225 | G55: 0.0064 | H55: 0.0361 | I55: 0.0784 | J55: 0.015625 | K55: 0.018225
A56: 0.015 | B56: 0 | C56: 0.0001 | D56: 0 | E56: 0.0016 | F56: 0.000625 | G56: 0.0081 | H56: 0.04 | I56: 0.0729 | J56: 0.013225 | K56: 0.021025
A57: -0.025 | B57: 0.0016 | C57: 0.0025 | D57: 0.0016 | E57: 0 | F57: 0.004225 | G57: 0.0169 | H57: 0.0576 | I57: 0.0529 | J57: 0.005625 | K57: 0.034225
A58: 0.04 | B58: 0.000625 | C58: 0.000225 | D58: 0.000625 | E58: 0.004225 | F58: 0 | G58: 0.004225 | H58: 0.030625 | I58: 0.087025 | J58: 0.0196 | K58: 0.0144
A59: 0.105 | B59: 0.0081 | C59: 0.0064 | D59: 0.0081 | E59: 0.0169 | F59: 0.004225 | G59: 0 | H59: 0.0121 | I59: 0.1296 | J59: 0.042025 | K59: 0.003025
A60: 0.215 | B60: 0.04 | C60: 0.0361 | D60: 0.04 | E60: 0.0576 | F60: 0.030625 | G60: 0.0121 | H60: 0 | I60: 0.2209 | J60: 0.099225 | K60: 0.003025
A61: -0.255 | B61: 0.0729 | C61: 0.0784 | D61: 0.0729 | E61: 0.0529 | F61: 0.087025 | G61: 0.1296 | H61: 0.2209 | I61: 0 | J61: 0.024025 | K61: 0.172225
A62: -0.1 | B62: 0.013225 | C62: 0.015625 | D62: 0.013225 | E62: 0.005625 | F62: 0.0196 | G62: 0.042025 | H62: 0.099225 | I62: 0.024025 | J62: 0 | K62: 0.0676
A63: 0.16 | B63: 0.021025 | C63: 0.018225 | D63: 0.021025 | E63: 0.034225 | F63: 0.0144 | G63: 0.003025 | H63: 0.003025 | I63: 0.172225 | J63: 0.0676 | K63: 0
A65: h | B65: 1 | C65: 2 | D65: 3 | E65: 4 | F65: 5 | G65: 6 | H65: 7 | I65: 8 | J65: 9 | K65: 10
A66: 1 | B66: =SQRT(B30+B42+B54) -> 0 | C66: =SQRT(C30+C42+C54) -> 0.08689073598 | D66: 0.100623059 | E66: 0.1509966887 | F66: 0.1913765921 | G66: 0.09604686356 | H66: 0.2229910312 | I66: 0.361282438 | J66: 0.1817965896 | K66: 0.2281446909
A67: 2 | B67: =SQRT(B31+B43+B55) -> 0.08689073598 | C67: 0 | D67: 0.03201562119 | E67: 0.07842193571 | F67: 0.1061838029 | G67: 0.1432654878 | H67: 0.2631064423 | I67: 0.3206633749 | J67: 0.2573907535 | K67: 0.2904307146
A68: 3 | B68: 0.100623059 | C68: 0.03201562119 | D68: 0 | E68: 0.06422616289 | F68: 0.09460443964 | G68: 0.1615549442 | H68: 0.2822233158 | I68: 0.3128897569 | J68: 0.2588918693 | K68: 0.3118894035
A69: 4 | B69: 0.1509966887 | C69: 0.07842193571 | D69: 0.06422616289 | E69: 0 | F69: 0.07889866919 | G69: 0.2209637979 | H69: 0.34106451 | I69: 0.2548038461 | J69: 0.2909467305 | K69: 0.3674914965
A70: 5 | B70: 0.1913765921 | C70: 0.1061838029 | D70: 0.09460443964 | E70: 0.07889866919 | F70: 0 | G70: 0.232271393 | H70: 0.3360803475 | I70: 0.3079772719 | J70: 0.3521718331 | K70: 0.3816084381
A71: 6 | B71: 0.09604686356 | C71: 0.1432654878 | D71: 0.1615549442 | E71: 0.2209637979 | F71: 0.232271393 | G71: 0 | H71: 0.1278671185 | I71: 0.4501110974 | J71: 0.2345740821 | K71: 0.1532155345
A72: 7 | B72: 0.2229910312 | C72: 0.2631064423 | D72: 0.2822233158 | E72: 0.34106451 | F72: 0.3360803475 | G72: 0.1278671185 | H72: 0 | I72: 0.5731928122 | J72: 0.326305072 | K72: 0.09552486587
A73: 8 | B73: 0.361282438 | C73: 0.3206633749 | D73: 0.3128897569 | E73: 0.2548038461 | F73: 0.3079772719 | G73: 0.4501110974 | H73: 0.5731928122 | I73: 0 | J73: 0.4108831951 | K73: 0.5739991289
A74: 9 | B74: 0.1817965896 | C74: 0.2573907535 | D74: 0.2588918693 | E74: 0.2909467305 | F74: 0.3521718331 | G74: 0.2345740821 | H74: 0.326305072 | I74: 0.4108831951 | J74: 0 | K74: 0.2843413442
A75: 10 | B75: 0.2281446909 | C75: 0.2904307146 | D75: 0.3118894035 | E75: 0.3674914965 | F75: 0.3816084381 | G75: 0.1532155345 | H75: 0.09552486587 | I75: 0.5739991289 | J75: 0.2843413442 | K75: 0
A78: K | B78: 1 | C78: 2 | D78: 3 | E78: 4 | F78: 5 | G78: 6 | H78: 7 | I78: 8 | J78: 9 | K78: 10
A79: 1 | B79: =$B$4*(B66=0)+$B$5*EXP(-3*B66) -> 8.1 | C79: =$B$4*(C66=0)+$B$5*EXP(-3*C66) -> 6.164267624 | D79: 5.915478349 | E79: 5.08579559 | F79: 4.505558089 | G79: 5.997249521 | H79: 4.097874596 | I79: 2.706332041 | J79: 4.636926585 | K79: 4.03500471
A80: 2 | B80: =$B$4*(B67=0)+$B$5*EXP(-3*B67) -> 6.164267624 | C80: 8.1 | D80: 7.267371546 | E80: 6.322885906 | F80: 5.81761354 | G80: 5.205132085 | H80: 3.633230563 | I80: 3.057053113 | J80: 3.696066999 | K80: 3.347284425
A81: 3 | B81: =$B$4*(B68=0)+$B$5*EXP(-3*B68) -> 5.915478349 | C81: 7.267371546 | D81: 8.1 | E81: 6.597976776 | F81: 6.023257481 | G81: 4.927228744 | H81: 3.430724949 | I81: 3.12918401 | J81: 3.679459748 | K81: 3.138588986
A82: 4 | B82: =$B$4*(B69=0)+$B$5*EXP(-3*B69) -> 5.08579559 | C82: 6.322885906 | D82: 6.597976776 | E82: 8.1 | F82: 6.313849375 | G82: 4.122872577 | H82: 2.87556165 | I82: 3.724862742 | J82: 3.342106678 | K82: 2.656387328
A83: 5 | B83: =$B$4*(B70=0)+$B$5*EXP(-3*B70) -> 4.505558089 | C83: 5.81761354 | D83: 6.023257481 | E83: 6.313849375 | F83: 8.1 | G83: 3.985358867 | H83: 2.918881512 | I83: 3.175641712 | J83: 2.781321133 | K83: 2.546236095
A84: 6 | B84: =$B$4*(B71=0)+$B$5*EXP(-3*B71) -> 5.997249521 | C84: 5.205132085 | D84: 4.927228744 | E84: 4.122872577 | F84: 3.985358867 | G84: 8.1 | H84: 5.451224084 | I84: 2.073230978 | J84: 3.957922615 | K84: 5.052054228
A85: 7 | B85: =$B$4*(B72=0)+$B$5*EXP(-3*B72) -> 4.097874596 | C85: 3.633230563 | D85: 3.430724949 | E85: 2.87556165 | F85: 2.918881512 | G85: 5.451224084 | H85: 8.1 | I85: 1.433133212 | J85: 3.00574761 | K85: 6.00664853
A86: 8 | B86: =$B$4*(B73=0)+$B$5*EXP(-3*B73) -> 2.706332041 | C86: 3.057053113 | D86: 3.12918401 | E86: 3.724862742 | F86: 3.175641712 | G86: 2.073230978 | H86: 1.433133212 | I86: 8.1 | J86: 2.332153189 | K86: 1.429670724
A87: 9 | B87: =$B$4*(B74=0)+$B$5*EXP(-3*B74) -> 4.636926585 | C87: 3.696066999 | D87: 3.679459748 | E87: 3.342106678 | F87: 2.781321133 | G87: 3.957922615 | H87: 3.00574761 | I87: 2.332153189 | J87: 8.1 | K87: 3.408994941
A88: 10 | B88: =$B$4*(B75=0)+$B$5*EXP(-3*B75) -> 4.03500471 | C88: 3.347284425 | D88: 3.138588986 | E88: 2.656387328 | F88: 2.546236095 | G88: 5.052054228 | H88: 6.00664853 | I88: 1.429670724 | J88: 3.408994941 | K88: 8.1
A90: Kinv | B90: 1 | C90: 2 | D90: 3 | E90: 4 | F90: 5 | G90: 6 | H90: 7 | I90: 8 | J90: 9 | K90: 10
A91: 1 | B91: =MINVERSE(B79:OFFSET(A78,$B$14,$B$14)) -> 0.4412365065 | C91: -0.1414792774 | D91: -0.06545434947 | E91: -0.01576348979 | F91: 0.02575568491 | G91: -0.1599775313 | H91: 0.01326111327 | I91: -0.007673915409 | J91: -0.07917076084 | K91: -0.0142799516
A92: 2 | B92: -0.1414792774 | C92: 0.7633723741 | D92: -0.4602993699 | E92: -0.07250101642 | F92: -0.04996639554 | G92: -0.04767624776 | H92: -0.006112068 | I92: -0.001111798781 | J92: 0.01413047747 | K92: 0.001376229462
A93: 3 | B93: -0.06545434947 | C93: -0.4602993699 | D93: 0.7999435067 | E93: -0.1844449546 | F93: -0.08031482835 | G93: -0.008992186878 | H93: -0.003202884804 | I93: 0.007671799251 | J93: -0.01338682735 | K93: 0.01085932037
A94: 4 | B94: -0.01576348979 | C94: -0.07250101642 | D94: -0.1844449546 | E94: 0.4939500744 | F94: -0.1720358819 | G94: 0.02155097543 | H94: 0.007244185319 | I94: -0.058154266 | J94: -0.0149435001 | K94: -0.0008889837159
A95: 5 | B95: 0.02575568491 | C95: -0.04996639554 | D95: -0.08031482835 | E95: -0.1720358819 | F95: 0.3543547286 | G95: -0.01937084647 | H95: -0.01603606188 | I95: -0.01497448621 | J95: 0.01108282929 | K95: 0.005918349335
A96: 6 | B96: -0.1599775313 | C96: -0.04767624776 | D96: -0.008992186878 | E96: 0.02155097543 | F96: -0.01937084647 | G96: 0.3919857222 | H96: -0.1157630884 | I96: 0.005737213963 | J96: -0.01305893413 | K96: -0.05225624497
A97: 7 | B97: 0.01326111327 | C97: -0.006112068 | D97: -0.003202884804 | E97: 0.007244185319 | F97: -0.01603606188 | G97: -0.1157630884 | H97: 0.3289111382 | I97: 0.002495006022 | J97: 0.006668960323 | K97: -0.1751262644
A98: 8 | B98: -0.007673915409 | C98: -0.001111798781 | D98: 0.007671799251 | E98: -0.058154266 | F98: -0.01497448621 | G98: 0.005737213963 | H98: 0.002495006022 | I98: 0.159730168 | J98: -0.01892824878 | K98: -0.0005667384461
A99: 9 | B99: -0.07917076084 | C99: 0.01413047747 | D99: -0.01338682735 | E99: -0.0149435001 | F99: 0.01108282929 | G99: -0.01305893413 | H99: 0.006668960323 | I99: -0.01892824878 | J99: 0.1949942694 | K99: -0.03532213989
A100: 10 | B100: -0.0142799516 | C100: 0.001376229462 | D100: 0.01085932037 | E100: -0.0008889837159 | F100: 0.005918349335 | G100: -0.05225624497 | H100: -0.1751262644 | I100: -0.0005667384461 | J100: -0.03532213989 | K100: 0.3016504463

Sheet KS-Gaussien
A1: Krigeage simple modèle gaussien
A3: Variogramme gaussien | D3: Variance des valeurs estimées | E3: Variance d'estimation | F3: Somme
A4: C0 | B4: 5 | D4: =MMULT(MMULT(TRANSPOSE(E17:OFFSET(E16,$B$14,0)),B79:OFFSET(A78,$B$14,$B$14)),E17:OFFSET(E16,$B$14,0)) -> 3.23201791 | E4: =B4+B5+D4-2*MMULT(TRANSPOSE(E17:OFFSET(E16,$B$14,0)),H17:OFFSET(H16,$B14,0)) -> 11.76798209 | F4: =D4+E4 -> 15
A5: C | B5: 10
A6: ax | B6: 10
A7: ay | B7: 10
A8: az | B8: 10
A10: Point à estimer
B11: x | C11: y | D11: z
A12: x0 | B12: 0 | C12: 0 | D12: 0
A14: Nombre de points à utiliser | B14: 2
A15: Points connus
A16: xi | B16: x | C16: y | D16: z | E16: Poids calculés par KS | G16: h(xi,x0) | H16: k0
A17: 1 | B17: -6 | C17: 0 | D17: 0 | E17: =MMULT(B91:OFFSET(A90,$B$14,$B$14),H17:OFFSET(H16,$B$14,0)) -> 0.2129394229 | G17: =SQRT(((B17-$B$12)/$B$6)^2+((C17-$C$12)/$B$7)^2+((D17-$D$12)/$B$8)^2) -> 0.6 | H17: =$B$4*(G17=0)+$B$5*EXP(-3*G17^2) -> 3.395955256
A18: 2 | B18: 4 | C18: 0 | D18: 0 | E18: 0.4054545081 | G18: =SQRT(((B18-$B$12)/$B$6)^2+((C18-$C$12)/$B$7)^2+((D18-$D$12)/$B$8)^2) -> 0.4 | H18: =$B$4*(G18=0)+$B$5*EXP(-3*G18^2) -> 6.187833918
A19: 3 | B19: 13 | C19: -4 | D19: 3 | G19: 1.392838828 | H19: 0.02967605145
A20: 4 | B20: 23 | C20: -3 | D20: -5 | G20: 2.372762104 | H20: 4.621321689e-07
A21: 5 | B21: 31 | C21: -7 | D21: 8 | G21: 3.277193922 | H21: 1.016323091e-13
A22: 6 | B22: -11 | C22: 8 | D22: 21 | G22: 2.501999201 | H22: 6.981514267e-08
A23: 7 | B23: -22 | C23: 15 | D23: 43 | G23: 5.057667447 | H23: 4.701554326e-33
A24: 8 | B24: 43 | C24: 6 | D24: -51 | G24: 6.69776082 | H24: 3.569838964e-58
A25: 9 | B25: -33 | C25: 2 | D25: -20 | G25: 3.863935817 | H25: 3.531426369e-19
A26: 10 | B26: -34 | C26: 25 | D26: 32 | G26: 5.296225071 | H26: 2.845242897e-36
E27: =1-SUM(E17:E26) -> 0.381606069 | F27: Poids de la moyenne connue
A29: hx^2 | B29: =TRANSPOSE(B17:INDIRECT(_xlfn.CONCAT("B",$B$14+16))/$B$6) -> -0.6 | C29: 0.4
A30: =(B17:INDIRECT(_xlfn.CONCAT("B",$B$14+16))/$B$6) -> -0.6 | B30: =((B$29-$A30))^2 -> 0 | C30: =((C$29-$A30))^2 -> 1 | D30: =((D$29-$A30))^2 -> 0.36 | E30: 0.36 | F30: 0.36 | G30: 0.36 | H30: 0.36 | I30: 0.36 | J30: 0.36 | K30: 0.36
A31: 0.4 | B31: 1 | C31: 0 | D31: 0.16 | E31: 0.16 | F31: 0.16 | G31: 0.16 | H31: 0.16 | I31: 0.16 | J31: 0.16 | K31: 0.16
B32: 0.36 | C32: 0.16 | D32: 0 | E32: 0 | F32: 0 | G32: 0 | H32: 0 | I32: 0 | J32: 0 | K32: 0
B33: 0.36 | C33: 0.16 | D33: 0 | E33: 0 | F33: 0 | G33: 0 | H33: 0 | I33: 0 | J33: 0 | K33: 0
B34: 0.36 | C34: 0.16 | D34: 0 | E34: 0 | F34: 0 | G34: 0 | H34: 0 | I34: 0 | J34: 0 | K34: 0
B35: 0.36 | C35: 0.16 | D35: 0 | E35: 0 | F35: 0 | G35: 0 | H35: 0 | I35: 0 | J35: 0 | K35: 0
B36: 0.36 | C36: 0.16 | D36: 0 | E36: 0 | F36: 0 | G36: 0 | H36: 0 | I36: 0 | J36: 0 | K36: 0
B37: 0.36 | C37: 0.16 | D37: 0 | E37: 0 | F37: 0 | G37: 0 | H37: 0 | I37: 0 | J37: 0 | K37: 0
B38: 0.36 | C38: 0.16 | D38: 0 | E38: 0 | F38: 0 | G38: 0 | H38: 0 | I38: 0 | J38: 0 | K38: 0
B39: 0.36 | C39: 0.16 | D39: 0 | E39: 0 | F39: 0 | G39: 0 | H39: 0 | I39: 0 | J39: 0 | K39: 0
A41: hy^2 | B41: =TRANSPOSE(C17:INDIRECT(_xlfn.CONCAT("C",$B$14+16))/$B$7) -> 0 | C41: 0
A42: =(C17:INDIRECT(_xlfn.CONCAT("C",$B$14+16))/$B$7) -> 0 | B42: =((B$41-$A42))^2 -> 0 | C42: =((C$41-$A42))^2 -> 0 | D42: 0 | E42: 0 | F42: 0 | G42: 0 | H42: 0 | I42: 0 | J42: 0 | K42: 0
A43: 0 | B43: =((B$41-$A43))^2 -> 0 | C43: 0 | D43: 0 | E43: 0 | F43: 0 | G43: 0 | H43: 0 | I43: 0 | J43: 0 | K43: 0
B44: 0 | C44: 0 | D44: 0 | E44: 0 | F44: 0 | G44: 0 | H44: 0 | I44: 0 | J44: 0 | K44: 0
B45: 0 | C45: 0 | D45: 0 | E45: 0 | F45: 0 | G45: 0 | H45: 0 | I45: 0 | J45: 0 | K45: 0
B46: 0 | C46: 0 | D46: 0 | E46: 0 | F46: 0 | G46: 0 | H46: 0 | I46: 0 | J46: 0 | K46: 0
B47: 0 | C47: 0 | D47: 0 | E47: 0 | F47: 0 | G47: 0 | H47: 0 | I47: 0 | J47: 0 | K47: 0
B48: 0 | C48: 0 | D48: 0 | E48: 0 | F48: 0 | G48: 0 | H48: 0 | I48: 0 | J48: 0 | K48: 0
B49: 0 | C49: 0 | D49: 0 | E49: 0 | F49: 0 | G49: 0 | H49: 0 | I49: 0 | J49: 0 | K49: 0
B50: 0 | C50: 0 | D50: 0 | E50: 0 | F50: 0 | G50: 0 | H50: 0 | I50: 0 | J50: 0 | K50: 0
B51: 0 | C51: 0 | D51: 0 | E51: 0 | F51: 0 | G51: 0 | H51: 0 | I51: 0 | J51: 0 | K51: 0
A53: hz^2 | B53: =TRANSPOSE(D17:INDIRECT(_xlfn.CONCAT("D",$B$14+16))/$B$8) -> 0 | C53: 0
A54: =(D17:INDIRECT(_xlfn.CONCAT("D",$B$14+16))/$B$8) -> 0 | B54: =((B$53-$A54))^2 -> 0 | C54: =((C$53-$A54))^2 -> 0 | D54: 0 | E54: 0 | F54: 0 | G54: 0 | H54: 0 | I54: 0 | J54: 0 | K54: 0
A55: 0 | B55: =((B$53-$A55))^2 -> 0 | C55: 0 | D55: 0 | E55: 0 | F55: 0 | G55: 0 | H55: 0 | I55: 0 | J55: 0 | K55: 0
B56: 0 | C56: 0 | D56: 0 | E56: 0 | F56: 0 | G56: 0 | H56: 0 | I56: 0 | J56: 0 | K56: 0
B57: 0 | C57: 0 | D57: 0 | E57: 0 | F57: 0 | G57: 0 | H57: 0 | I57: 0 | J57: 0 | K57: 0
B58: 0 | C58: 0 | D58: 0 | E58: 0 | F58: 0 | G58: 0 | H58: 0 | I58: 0 | J58: 0 | K58: 0
B59: 0 | C59: 0 | D59: 0 | E59: 0 | F59: 0 | G59: 0 | H59: 0 | I59: 0 | J59: 0 | K59: 0
B60: 0 | C60: 0 | D60: 0 | E60: 0 | F60: 0 | G60: 0 | H60: 0 | I60: 0 | J60: 0 | K60: 0
B61: 0 | C61: 0 | D61: 0 | E61: 0 | F61: 0 | G61: 0 | H61: 0 | I61: 0 | J61: 0 | K61: 0
B62: 0 | C62: 0 | D62: 0 | E62: 0 | F62: 0 | G62: 0 | H62: 0 | I62: 0 | J62: 0 | K62: 0
B63: 0 | C63: 0 | D63: 0 | E63: 0 | F63: 0 | G63: 0 | H63: 0 | I63: 0 | J63: 0 | K63: 0
A65: h | B65: 1 | C65: 2 | D65: 3 | E65: 4 | F65: 5 | G65: 6 | H65: 7 | I65: 8 | J65: 9 | K65: 10
A66: 1 | B66: =SQRT(B30+B42+B54) -> 0 | C66: =SQRT(C30+C42+C54) -> 1 | D66: 0.6 | E66: 0.6 | F66: 0.6 | G66: 0.6 | H66: 0.6 | I66: 0.6 | J66: 0.6 | K66: 0.6
A67: 2 | B67: =SQRT(B31+B43+B55) -> 1 | C67: 0 | D67: 0.4 | E67: 0.4 | F67: 0.4 | G67: 0.4 | H67: 0.4 | I67: 0.4 | J67: 0.4 | K67: 0.4
A68: 3 | B68: 0.6 | C68: 0.4 | D68: 0 | E68: 0 | F68: 0 | G68: 0 | H68: 0 | I68: 0 | J68: 0 | K68: 0
A69: 4 | B69: 0.6 | C69: 0.4 | D69: 0 | E69: 0 | F69: 0 | G69: 0 | H69: 0 | I69: 0 | J69: 0 | K69: 0
A70: 5 | B70: 0.6 | C70: 0.4 | D70: 0 | E70: 0 | F70: 0 | G70: 0 | H70: 0 | I70: 0 | J70: 0 | K70: 0
A71: 6 | B71: 0.6 | C71: 0.4 | D71: 0 | E71: 0 | F71: 0 | G71: 0 | H71: 0 | I71: 0 | J71: 0 | K71: 0
A72: 7 | B72: 0.6 | C72: 0.4 | D72: 0 | E72: 0 | F72: 0 | G72: 0 | H72: 0 | I72: 0 | J72: 0 | K72: 0
A73: 8 | B73: 0.6 | C73: 0.4 | D73: 0 | E73: 0 | F73: 0 | G73: 0 | H73: 0 | I73: 0 | J73: 0 | K73: 0
A74: 9 | B74: 0.6 | C74: 0.4 | D74: 0 | E74: 0 | F74: 0 | G74: 0 | H74: 0 | I74: 0 | J74: 0 | K74: 0
A75: 10 | B75: 0.6 | C75: 0.4 | D75: 0 | E75: 0 | F75: 0 | G75: 0 | H75: 0 | I75: 0 | J75: 0 | K75: 0
A78: K | B78: 1 | C78: 2 | D78: 3 | E78: 4 | F78: 5 | G78: 6 | H78: 7 | I78: 8 | J78: 9 | K78: 10
A79: 1 | B79: =$B$4*(B66=0)+$B$5*EXP(-3*B66^2) -> 15 | C79: =$B$4*(C66=0)+$B$5*EXP(-3*C66^2) -> 0.4978706837 | D79: 3.395955256 | E79: 3.395955256 | F79: 3.395955256 | G79: 3.395955256 | H79: 3.395955256 | I79: 3.395955256 | J79: 3.395955256 | K79: 3.395955256
A80: 2 | B80: =$B$4*(B67=0)+$B$5*EXP(-3*B67^2) -> 0.4978706837 | C80: 15 | D80: 6.187833918 | E80: 6.187833918 | F80: 6.187833918 | G80: 6.187833918 | H80: 6.187833918 | I80: 6.187833918 | J80: 6.187833918 | K80: 6.187833918
A81: 3 | B81: =$B$4*(B68=0)+$B$5*EXP(-3*B68^2) -> 3.395955256 | C81: 6.187833918 | D81: 15 | E81: 15 | F81: 15 | G81: 15 | H81: 15 | I81: 15 | J81: 15 | K81: 15
A82: 4 | B82: =$B$4*(B69=0)+$B$5*EXP(-3*B69^2) -> 3.395955256 | C82: 6.187833918 | D82: 15 | E82: 15 | F82: 15 | G82: 15 | H82: 15 | I82: 15 | J82: 15 | K82: 15
A83: 5 | B83: =$B$4*(B70=0)+$B$5*EXP(-3*B70^2) -> 3.395955256 | C83: 6.187833918 | D83: 15 | E83: 15 | F83: 15 | G83: 15 | H83: 15 | I83: 15 | J83: 15 | K83: 15
A84: 6 | B84: =$B$4*(B71=0)+$B$5*EXP(-3*B71^2) -> 3.395955256 | C84: 6.187833918 | D84: 15 | E84: 15 | F84: 15 | G84: 15 | H84: 15 | I84: 15 | J84: 15 | K84: 15
A85: 7 | B85: =$B$4*(B72=0)+$B$5*EXP(-3*B72^2) -> 3.395955256 | C85: 6.187833918 | D85: 15 | E85: 15 | F85: 15 | G85: 15 | H85: 15 | I85: 15 | J85: 15 | K85: 15
A86: 8 | B86: =$B$4*(B73=0)+$B$5*EXP(-3*B73^2) -> 3.395955256 | C86: 6.187833918 | D86: 15 | E86: 15 | F86: 15 | G86: 15 | H86: 15 | I86: 15 | J86: 15 | K86: 15
A87: 9 | B87: =$B$4*(B74=0)+$B$5*EXP(-3*B74^2) -> 3.395955256 | C87: 6.187833918 | D87: 15 | E87: 15 | F87: 15 | G87: 15 | H87: 15 | I87: 15 | J87: 15 | K87: 15
A88: 10 | B88: =$B$4*(B75=0)+$B$5*EXP(-3*B75^2) -> 3.395955256 | C88: 6.187833918 | D88: 15 | E88: 15 | F88: 15 | G88: 15 | H88: 15 | I88: 15 | J88: 15 | K88: 15
A90: Kinv | B90: 1 | C90: 2 | D90: 3 | E90: 4 | F90: 5 | G90: 6 | H90: 7 | I90: 8 | J90: 9 | K90: 10
A91: 1 | B91: =MINVERSE(B79:OFFSET(A78,$B$14,$B$14)) -> 0.06674019218 | C91: -0.002215199007
A92: 2 | B92: -0.002215199007 | C92: 0.06674019218
A93: 3
A94: 4
A95: 5
A96: 6
A97: 7
A98: 8
A99: 9
A100: 10

Sheet KO-Sphérique
A1: Krigeage ordinaire modèle sphérique
A3: Variogramme sphérique | D3: Variance des valeurs estimées | E3: Variance d'estimation | F3: Somme
A4: C0 | B4: 10 | D4: =MMULT(MMULT(TRANSPOSE(E17:OFFSET(E16,$B$14,0)),B79:OFFSET(A78,$B$14,$B$14)),E17:OFFSET(E16,$B$14,0)) -> 110.448991 | E4: =B4+B5-MMULT(TRANSPOSE(E16:OFFSET(E16,$B$14,0)),H16:OFFSET(H16,$B14,0)) -> 34.90916734 | F4: =D4+E4 -> 145.3581583
A5: C | B5: 135
A6: ax | B6: 100
A7: ay | B7: 100
A8: az | B8: 100
A10: Point à estimer
B11: x | C11: y | D11: z
A12: x0 | B12: 10 | C12: 10 | D12: 0
A14: Nombre de points à utiliser | B14: 3
A15: Points connus | E15: Poids calculés par KO | G15: h(xi,x0) | H15: k0
A16: xi | B16: x | C16: y | D16: z | E16: =MMULT(A91:OFFSET(A91,$B$14,$B$14),H16:OFFSET(H16,$B$14,0)) -> -0.1790791499 | F16: Multiplicateur de Lagrange | H16: 1
A17: 1 | B17: 0 | C17: 0 | D17: 0 | E17: 0.2751309829 | G17: =MIN(SQRT(((B17-$B$12)/$B$6)^2+((C17-$C$12)/$B$7)^2+((D17-$D$12)/$B$8)^2),1) -> 0.1414213562 | H17: =$B$4*(G17=0)+$B$5*(1-(1.5*G17-0.5*G17^3)) -> 106.5530942
A18: 2 | B18: 20 | C18: 0 | D18: 0 | E18: 0.2751309829 | G18: =MIN(SQRT(((B18-$B$12)/$B$6)^2+((C18-$C$12)/$B$7)^2+((D18-$D$12)/$B$8)^2),1) -> 0.1414213562 | H18: =$B$4*(G18=0)+$B$5*(1-(1.5*G18-0.5*G18^3)) -> 106.5530942
A19: 3 | B19: 10 | C19: 20 | D19: 0 | E19: 0.4497380342 | G19: 0.1 | H19: 114.8175
A20: 4 | B20: 35 | C20: 0 | D20: 0 | G20: 0.2692582404 | H20: 81.79288884
A21: 5 | B21: 31 | C21: -7 | D21: 8 | G21: 0.2817800561 | H21: 79.44973886
A22: 6 | B22: -11 | C22: 8 | D22: 21 | G22: 0.2976575213 | H22: 76.50449274
A23: 7 | B23: -22 | C23: 15 | D23: 43 | G23: 0.5383307533 | H23: 36.51857948
A24: 8 | B24: 43 | C24: 6 | D24: -51 | G24: 0.6087692502 | H24: 26.95289401
A25: 9 | B25: -33 | C25: 2 | D25: -20 | G25: 0.4809365863 | H25: 45.11908397
A26: 10 | B26: -34 | C26: 25 | D26: 32 | G26: 0.5643580424 | H26: 32.85048888
E27: =SUM(E17:E26) -> 1 | F27: Somme des poids
A29: hx^2 | B29: =TRANSPOSE(B17:INDIRECT(_xlfn.CONCAT("B",$B$14+16))/$B$6) -> 0 | C29: 0.2 | D29: 0.1
A30: =(B17:INDIRECT(_xlfn.CONCAT("B",$B$14+16))/$B$6) -> 0 | B30: =MIN(((B$29-$A30))^2,1) -> 0 | C30: =MIN(((C$29-$A30))^2,1) -> 0.04 | D30: 0.01 | E30: 0 | F30: 0 | G30: 0 | H30: 0 | I30: 0 | J30: 0 | K30: 0
A31: 0.2 | B31: =MIN(((B$29-$A31))^2,1) -> 0.04 | C31: 0 | D31: 0.01 | E31: 0.04 | F31: 0.04 | G31: 0.04 | H31: 0.04 | I31: 0.04 | J31: 0.04 | K31: 0.04
A32: 0.1 | B32: 0.01 | C32: 0.01 | D32: 0 | E32: 0.01 | F32: 0.01 | G32: 0.01 | H32: 0.01 | I32: 0.01 | J32: 0.01 | K32: 0.01
B33: 0 | C33: 0.04 | D33: 0.01 | E33: 0 | F33: 0 | G33: 0 | H33: 0 | I33: 0 | J33: 0 | K33: 0
B34: 0 | C34: 0.04 | D34: 0.01 | E34: 0 | F34: 0 | G34: 0 | H34: 0 | I34: 0 | J34: 0 | K34: 0
B35: 0 | C35: 0.04 | D35: 0.01 | E35: 0 | F35: 0 | G35: 0 | H35: 0 | I35: 0 | J35: 0 | K35: 0
B36: 0 | C36: 0.04 | D36: 0.01 | E36: 0 | F36: 0 | G36: 0 | H36: 0 | I36: 0 | J36: 0 | K36: 0
B37: 0 | C37: 0.04 | D37: 0.01 | E37: 0 | F37: 0 | G37: 0 | H37: 0 | I37: 0 | J37: 0 | K37: 0
B38: 0 | C38: 0.04 | D38: 0.01 | E38: 0 | F38: 0 | G38: 0 | H38: 0 | I38: 0 | J38: 0 | K38: 0
B39: 0 | C39: 0.04 | D39: 0.01 | E39: 0 | F39: 0 | G39: 0 | H39: 0 | I39: 0 | J39: 0 | K39: 0
A41: hy^2 | B41: =TRANSPOSE(C17:INDIRECT(_xlfn.CONCAT("C",$B$14+16))/$B$7) -> 0 | C41: 0 | D41: 0.2
A42: =(C17:INDIRECT(_xlfn.CONCAT("C",$B$14+16))/$B$7) -> 0 | B42: =MIN(((B$41-$A42))^2,1) -> 0 | C42: =MIN(((C$41-$A42))^2,1) -> 0 | D42: 0.04 | E42: 0 | F42: 0 | G42: 0 | H42: 0 | I42: 0 | J42: 0 | K42: 0
A43: 0 | B43: =MIN(((B$41-$A43))^2,1) -> 0 | C43: 0 | D43: 0.04 | E43: 0 | F43: 0 | G43: 0 | H43: 0 | I43: 0 | J43: 0 | K43: 0
A44: 0.2 | B44: 0.04 | C44: 0.04 | D44: 0 | E44: 0.04 | F44: 0.04 | G44: 0.04 | H44: 0.04 | I44: 0.04 | J44: 0.04 | K44: 0.04
B45: 0 | C45: 0 | D45: 0.04 | E45: 0 | F45: 0 | G45: 0 | H45: 0 | I45: 0 | J45: 0 | K45: 0
B46: 0 | C46: 0 | D46: 0.04 | E46: 0 | F46: 0 | G46: 0 | H46: 0 | I46: 0 | J46: 0 | K46: 0
B47: 0 | C47: 0 | D47: 0.04 | E47: 0 | F47: 0 | G47: 0 | H47: 0 | I47: 0 | J47: 0 | K47: 0
B48: 0 | C48: 0 | D48: 0.04 | E48: 0 | F48: 0 | G48: 0 | H48: 0 | I48: 0 | J48: 0 | K48: 0
B49: 0 | C49: 0 | D49: 0.04 | E49: 0 | F49: 0 | G49: 0 | H49: 0 | I49: 0 | J49: 0 | K49: 0
B50: 0 | C50: 0 | D50: 0.04 | E50: 0 | F50: 0 | G50: 0 | H50: 0 | I50: 0 | J50: 0 | K50: 0
B51: 0 | C51: 0 | D51: 0.04 | E51: 0 | F51: 0 | G51: 0 | H51: 0 | I51: 0 | J51: 0 | K51: 0
A53: hz^2 | B53: =TRANSPOSE(D17:INDIRECT(_xlfn.CONCAT("D",$B$14+16))/$B$8) -> 0 | C53: 0 | D53: 0
A54: =(D17:INDIRECT(_xlfn.CONCAT("D",$B$14+16))/$B$8) -> 0 | B54: =MIN((B$53-$A54)^2,1) -> 0 | C54: =MIN((C$53-$A54)^2,1) -> 0 | D54: 0 | E54: 0 | F54: 0 | G54: 0 | H54: 0 | I54: 0 | J54: 0 | K54: 0
A55: 0 | B55: =MIN((B$53-$A55)^2,1) -> 0 | C55: 0 | D55: 0 | E55: 0 | F55: 0 | G55: 0 | H55: 0 | I55: 0 | J55: 0 | K55: 0
A56: 0 | B56: 0 | C56: 0 | D56: 0 | E56: 0 | F56: 0 | G56: 0 | H56: 0 | I56: 0 | J56: 0 | K56: 0
B57: 0 | C57: 0 | D57: 0 | E57: 0 | F57: 0 | G57: 0 | H57: 0 | I57: 0 | J57: 0 | K57: 0
B58: 0 | C58: 0 | D58: 0 | E58: 0 | F58: 0 | G58: 0 | H58: 0 | I58: 0 | J58: 0 | K58: 0
B59: 0 | C59: 0 | D59: 0 | E59: 0 | F59: 0 | G59: 0 | H59: 0 | I59: 0 | J59: 0 | K59: 0
B60: 0 | C60: 0 | D60: 0 | E60: 0 | F60: 0 | G60: 0 | H60: 0 | I60: 0 | J60: 0 | K60: 0
B61: 0 | C61: 0 | D61: 0 | E61: 0 | F61: 0 | G61: 0 | H61: 0 | I61: 0 | J61: 0 | K61: 0
B62: 0 | C62: 0 | D62: 0 | E62: 0 | F62: 0 | G62: 0 | H62: 0 | I62: 0 | J62: 0 | K62: 0
B63: 0 | C63: 0 | D63: 0 | E63: 0 | F63: 0 | G63: 0 | H63: 0 | I63: 0 | J63: 0 | K63: 0
A65: h | B65: 1 | C65: 2 | D65: 3 | E65: 4 | F65: 5 | G65: 6 | H65: 7 | I65: 8 | J65: 9 | K65: 10
A66: 1 | B66: =MIN(SQRT(B30+B42+B54),1) -> 0 | C66: =MIN(SQRT(C30+C42+C54),1) -> 0.2 | D66: 0.2236067977 | E66: 0 | F66: 0 | G66: 0 | H66: 0 | I66: 0 | J66: 0 | K66: 0
A67: 2 | B67: =MIN(SQRT(B31+B43+B55),1) -> 0.2 | C67: 0 | D67: 0.2236067977 | E67: 0.2 | F67: 0.2 | G67: 0.2 | H67: 0.2 | I67: 0.2 | J67: 0.2 | K67: 0.2
A68: 3 | B68: 0.2236067977 | C68: 0.2236067977 | D68: 0 | E68: 0.2236067977 | F68: 0.2236067977 | G68: 0.2236067977 | H68: 0.2236067977 | I68: 0.2236067977 | J68: 0.2236067977 | K68: 0.2236067977
A69: 4 | B69: 0 | C69: 0.2 | D69: 0.2236067977 | E69: 0 | F69: 0 | G69: 0 | H69: 0 | I69: 0 | J69: 0 | K69: 0
A70: 5 | B70: 0 | C70: 0.2 | D70: 0.2236067977 | E70: 0 | F70: 0 | G70: 0 | H70: 0 | I70: 0 | J70: 0 | K70: 0
A71: 6 | B71: 0 | C71: 0.2 | D71: 0.2236067977 | E71: 0 | F71: 0 | G71: 0 | H71: 0 | I71: 0 | J71: 0 | K71: 0
A72: 7 | B72: 0 | C72: 0.2 | D72: 0.2236067977 | E72: 0 | F72: 0 | G72: 0 | H72: 0 | I72: 0 | J72: 0 | K72: 0
A73: 8 | B73: 0 | C73: 0.2 | D73: 0.2236067977 | E73: 0 | F73: 0 | G73: 0 | H73: 0 | I73: 0 | J73: 0 | K73: 0
A74: 9 | B74: 0 | C74: 0.2 | D74: 0.2236067977 | E74: 0 | F74: 0 | G74: 0 | H74: 0 | I74: 0 | J74: 0 | K74: 0
A75: 10 | B75: 0 | C75: 0.2 | D75: 0.2236067977 | E75: 0 | F75: 0 | G75: 0 | H75: 0 | I75: 0 | J75: 0 | K75: 0
A78: 0 | B78: 1 | C78: 1 | D78: 1 | E78: 1 | F78: 1 | G78: 1 | H78: 1 | I78: 1 | J78: 1 | K78: 1
A79: 1 | B79: =$B$4*(B66=0)+$B$5*(1-(1.5*B66-0.5*B66^3)) -> 145 | C79: =$B$4*(C66=0)+$B$5*(1-(1.5*C66-0.5*C66^3)) -> 95.04 | D79: 90.4742964 | E79: 145 | F79: 145 | G79: 145 | H79: 145 | I79: 145 | J79: 145 | K79: 145
A80: 1 | B80: =$B$4*(B67=0)+$B$5*(1-(1.5*B67-0.5*B67^3)) -> 95.04 | C80: 145 | D80: 90.4742964 | E80: 95.04 | F80: 95.04 | G80: 95.04 | H80: 95.04 | I80: 95.04 | J80: 95.04 | K80: 95.04
A81: 1 | B81: 90.4742964 | C81: 90.4742964 | D81: 145 | E81: 90.4742964 | F81: 90.4742964 | G81: 90.4742964 | H81: 90.4742964 | I81: 90.4742964 | J81: 90.4742964 | K81: 90.4742964
A82: 1 | B82: 145 | C82: 95.04 | D82: 90.4742964 | E82: 145 | F82: 145 | G82: 145 | H82: 145 | I82: 145 | J82: 145 | K82: 145 | L82: Matrice K augmentée
A83: 1 | B83: 145 | C83: 95.04 | D83: 90.4742964 | E83: 145 | F83: 145 | G83: 145 | H83: 145 | I83: 145 | J83: 145 | K83: 145
A84: 1 | B84: 145 | C84: 95.04 | D84: 90.4742964 | E84: 145 | F84: 145 | G84: 145 | H84: 145 | I84: 145 | J84: 145 | K84: 145
A85: 1 | B85: 145 | C85: 95.04 | D85: 90.4742964 | E85: 145 | F85: 145 | G85: 145 | H85: 145 | I85: 145 | J85: 145 | K85: 145
A86: 1 | B86: 145 | C86: 95.04 | D86: 90.4742964 | E86: 145 | F86: 145 | G86: 145 | H86: 145 | I86: 145 | J86: 145 | K86: 145
A87: 1 | B87: 145 | C87: 95.04 | D87: 90.4742964 | E87: 145 | F87: 145 | G87: 145 | H87: 145 | I87: 145 | J87: 145 | K87: 145
A88: 1 | B88: 145 | C88: 95.04 | D88: 90.4742964 | E88: 145 | F88: 145 | G88: 145 | H88: 145 | I88: 145 | J88: 145 | K88: 145
A90: Kinv
A91: =MINVERSE(A78:OFFSET(A78,$B$14,$B$14)) -> -109.6365815 | B91: 0.3242820919 | C91: 0.3242820919 | D91: 0.3514358161
A92: 0.3242820919 | B92: 0.01298166901 | C92: -0.007034343797 | D92: -0.005947325216
A93: 0.3242820919 | B93: -0.007034343797 | C93: 0.01298166901 | D93: -0.005947325216
A94: 0.3514358161 | B94: -0.005947325216 | C94: -0.005947325216 | D94: 0.01189465043
L95: Inverse de K augmentée

Sheet KO-Exponentiel
A1: Krigeage ordinaire modèle exponentiel
A3: Variogramme sphérique | D3: Variance des valeurs estimées | E3: Variance d'estimation | F3: Somme
A4: C0 | B4: 10 | D4: =MMULT(MMULT(TRANSPOSE(E17:OFFSET(E16,$B$14,0)),B79:OFFSET(A78,$B$14,$B$14)),E17:OFFSET(E16,$B$14,0)) -> 96.62290207 | E4: =B4+B5-MMULT(TRANSPOSE(E16:OFFSET(E16,$B$14,0)),H16:OFFSET(H16,$B14,0)) -> 54.50057931 | F4: =D4+E4 -> 151.1234814
A5: C | B5: 135
A6: ax | B6: 100
A7: ay | B7: 100
A8: az | B8: 100
A10: Point à estimer
B11: x | C11: y | D11: z
A12: x0 | B12: 10 | C12: 10 | D12: 0
A14: Nombre de points à utiliser | B14: 3
A15: Points connus | E15: Poids calculés par KO | G15: h(xi,x0) | H15: k0
A16: xi | B16: x | C16: y | D16: z | E16: =MMULT(A91:OFFSET(A91,$B$14,$B$14),H16:OFFSET(H16,$B$14,0)) -> -3.061740692 | F16: Multiplicateur de Lagrange | H16: 1
A17: 1 | B17: 0 | C17: 0 | D17: 0 | E17: 0.2759279502 | G17: =SQRT(((B17-$B$12)/$B$6)^2+((C17-$C$12)/$B$7)^2+((D17-$D$12)/$B$8)^2) -> 0.1414213562 | H17: =$B$4*(G17=0)+$B$5*EXP(-3*G17) -> 88.3238974
A18: 2 | B18: 20 | C18: 0 | D18: 0 | E18: 0.2759279502 | G18: =SQRT(((B18-$B$12)/$B$6)^2+((C18-$C$12)/$B$7)^2+((D18-$D$12)/$B$8)^2) -> 0.1414213562 | H18: =$B$4*(G18=0)+$B$5*EXP(-3*G18) -> 88.3238974
A19: 3 | B19: 10 | C19: 20 | D19: 0 | E19: 0.4481440995 | G19: 0.1 | H19: 100.0104598
A20: 4 | B20: 23 | C20: -3 | D20: -5 | G20: 0.1905255888 | H20: 76.22564937
A21: 5 | B21: 31 | C21: -7 | D21: 8 | G21: 0.2817800561 | H21: 57.97052028
A22: 6 | B22: -11 | C22: 8 | D22: 21 | G22: 0.2976575213 | H22: 55.27397674
A23: 7 | B23: -22 | C23: 15 | D23: 43 | G23: 0.5383307533 | H23: 26.85044833
A24: 8 | B24: 43 | C24: 6 | D24: -51 | G24: 0.6087692502 | H24: 21.73593818
A25: 9 | B25: -33 | C25: 2 | D25: -20 | G25: 0.4809365863 | H25: 31.89550273
A26: 10 | B26: -34 | C26: 25 | D26: 32 | G26: 0.5643580424 | H26: 24.8336764
E27: =SUM(E17:E26) -> 1 | F27: Somme des poids
A29: hx^2 | B29: =TRANSPOSE(B17:INDIRECT(_xlfn.CONCAT("B",$B$14+16))/$B$6) -> 0 | C29: 0.2 | D29: 0.1
A30: =(B17:INDIRECT(_xlfn.CONCAT("B",$B$14+16))/$B$6) -> 0 | B30: =((B$29-$A30))^2 -> 0 | C30: =((C$29-$A30))^2 -> 0.04 | D30: 0.01 | E30: 0 | F30: 0 | G30: 0 | H30: 0 | I30: 0 | J30: 0 | K30: 0
A31: 0.2 | B31: =((B$29-$A31))^2 -> 0.04 | C31: 0 | D31: 0.01 | E31: 0.04 | F31: 0.04 | G31: 0.04 | H31: 0.04 | I31: 0.04 | J31: 0.04 | K31: 0.04
A32: 0.1 | B32: 0.01 | C32: 0.01 | D32: 0 | E32: 0.01 | F32: 0.01 | G32: 0.01 | H32: 0.01 | I32: 0.01 | J32: 0.01 | K32: 0.01
B33: 0 | C33: 0.04 | D33: 0.01 | E33: 0 | F33: 0 | G33: 0 | H33: 0 | I33: 0 | J33: 0 | K33: 0
B34: 0 | C34: 0.04 | D34: 0.01 | E34: 0 | F34: 0 | G34: 0 | H34: 0 | I34: 0 | J34: 0 | K34: 0
B35: 0 | C35: 0.04 | D35: 0.01 | E35: 0 | F35: 0 | G35: 0 | H35: 0 | I35: 0 | J35: 0 | K35: 0
B36: 0 | C36: 0.04 | D36: 0.01 | E36: 0 | F36: 0 | G36: 0 | H36: 0 | I36: 0 | J36: 0 | K36: 0
B37: 0 | C37: 0.04 | D37: 0.01 | E37: 0 | F37: 0 | G37: 0 | H37: 0 | I37: 0 | J37: 0 | K37: 0
B38: 0 | C38: 0.04 | D38: 0.01 | E38: 0 | F38: 0 | G38: 0 | H38: 0 | I38: 0 | J38: 0 | K38: 0
B39: 0 | C39: 0.04 | D39: 0.01 | E39: 0 | F39: 0 | G39: 0 | H39: 0 | I39: 0 | J39: 0 | K39: 0
A41: hy^2 | B41: =TRANSPOSE(C17:INDIRECT(_xlfn.CONCAT("C",$B$14+16))/$B$7) -> 0 | C41: 0 | D41: 0.2
A42: =(C17:INDIRECT(_xlfn.CONCAT("C",$B$14+16))/$B$7) -> 0 | B42: =((B$41-$A42))^2 -> 0 | C42: =((C$41-$A42))^2 -> 0 | D42: 0.04 | E42: 0 | F42: 0 | G42: 0 | H42: 0 | I42: 0 | J42: 0 | K42: 0
A43: 0 | B43: =((B$41-$A43))^2 -> 0 | C43: 0 | D43: 0.04 | E43: 0 | F43: 0 | G43: 0 | H43: 0 | I43: 0 | J43: 0 | K43: 0
A44: 0.2 | B44: 0.04 | C44: 0.04 | D44: 0 | E44: 0.04 | F44: 0.04 | G44: 0.04 | H44: 0.04 | I44: 0.04 | J44: 0.04 | K44: 0.04
B45: 0 | C45: 0 | D45: 0.04 | E45: 0 | F45: 0 | G45: 0 | H45: 0 | I45: 0 | J45: 0 | K45: 0
B46: 0 | C46: 0 | D46: 0.04 | E46: 0 | F46: 0 | G46: 0 | H46: 0 | I46: 0 | J46: 0 | K46: 0
B47: 0 | C47: 0 | D47: 0.04 | E47: 0 | F47: 0 | G47: 0 | H47: 0 | I47: 0 | J47: 0 | K47: 0
B48: 0 | C48: 0 | D48: 0.04 | E48: 0 | F48: 0 | G48: 0 | H48: 0 | I48: 0 | J48: 0 | K48: 0
B49: 0 | C49: 0 | D49: 0.04 | E49: 0 | F49: 0 | G49: 0 | H49: 0 | I49: 0 | J49: 0 | K49: 0
B50: 0 | C50: 0 | D50: 0.04 | E50: 0 | F50: 0 | G50: 0 | H50: 0 | I50: 0 | J50: 0 | K50: 0
B51: 0 | C51: 0 | D51: 0.04 | E51: 0 | F51: 0 | G51: 0 | H51: 0 | I51: 0 | J51: 0 | K51: 0
A53: hz^2 | B53: =TRANSPOSE(D17:INDIRECT(_xlfn.CONCAT("D",$B$14+16))/$B$8) -> 0 | C53: 0 | D53: 0
A54: =(D17:INDIRECT(_xlfn.CONCAT("D",$B$14+16))/$B$8) -> 0 | B54: =(B$53-$A54)^2 -> 0 | C54: =(C$53-$A54)^2 -> 0 | D54: 0 | E54: 0 | F54: 0 | G54: 0 | H54: 0 | I54: 0 | J54: 0 | K54: 0
A55: 0 | B55: =(B$53-$A55)^2 -> 0 | C55: 0 | D55: 0 | E55: 0 | F55: 0 | G55: 0 | H55: 0 | I55: 0 | J55: 0 | K55: 0
A56: 0 | B56: 0 | C56: 0 | D56: 0 | E56: 0 | F56: 0 | G56: 0 | H56: 0 | I56: 0 | J56: 0 | K56: 0
B57: 0 | C57: 0 | D57: 0 | E57: 0 | F57: 0 | G57: 0 | H57: 0 | I57: 0 | J57: 0 | K57: 0
B58: 0 | C58: 0 | D58: 0 | E58: 0 | F58: 0 | G58: 0 | H58: 0 | I58: 0 | J58: 0 | K58: 0
B59: 0 | C59: 0 | D59: 0 | E59: 0 | F59: 0 | G59: 0 | H59: 0 | I59: 0 | J59: 0 | K59: 0
B60: 0 | C60: 0 | D60: 0 | E60: 0 | F60: 0 | G60: 0 | H60: 0 | I60: 0 | J60: 0 | K60: 0
B61: 0 | C61: 0 | D61: 0 | E61: 0 | F61: 0 | G61: 0 | H61: 0 | I61: 0 | J61: 0 | K61: 0
B62: 0 | C62: 0 | D62: 0 | E62: 0 | F62: 0 | G62: 0 | H62: 0 | I62: 0 | J62: 0 | K62: 0
B63: 0 | C63: 0 | D63: 0 | E63: 0 | F63: 0 | G63: 0 | H63: 0 | I63: 0 | J63: 0 | K63: 0
A65: h | B65: 1 | C65: 2 | D65: 3 | E65: 4 | F65: 5 | G65: 6 | H65: 7 | I65: 8 | J65: 9 | K65: 10
A66: 1 | B66: =SQRT(B30+B42+B54) -> 0 | C66: =SQRT(C30+C42+C54) -> 0.2 | D66: 0.2236067977 | E66: 0 | F66: 0 | G66: 0 | H66: 0 | I66: 0 | J66: 0 | K66: 0
A67: 2 | B67: =SQRT(B31+B43+B55) -> 0.2 | C67: 0 | D67: 0.2236067977 | E67: 0.2 | F67: 0.2 | G67: 0.2 | H67: 0.2 | I67: 0.2 | J67: 0.2 | K67: 0.2
A68: 3 | B68: =SQRT(B32+B44+B56) -> 0.2236067977 | C68: 0.2236067977 | D68: 0 | E68: 0.2236067977 | F68: 0.2236067977 | G68: 0.2236067977 | H68: 0.2236067977 | I68: 0.2236067977 | J68: 0.2236067977 | K68: 0.2236067977
A69: 4 | B69: =SQRT(B33+B45+B57) -> 0 | C69: 0.2 | D69: 0.2236067977 | E69: 0 | F69: 0 | G69: 0 | H69: 0 | I69: 0 | J69: 0 | K69: 0
A70: 5 | B70: =SQRT(B34+B46+B58) -> 0 | C70: 0.2 | D70: 0.2236067977 | E70: 0 | F70: 0 | G70: 0 | H70: 0 | I70: 0 | J70: 0 | K70: 0
A71: 6 | B71: =SQRT(B35+B47+B59) -> 0 | C71: 0.2 | D71: 0.2236067977 | E71: 0 | F71: 0 | G71: 0 | H71: 0 | I71: 0 | J71: 0 | K71: 0
A72: 7 | B72: =SQRT(B36+B48+B60) -> 0 | C72: 0.2 | D72: 0.2236067977 | E72: 0 | F72: 0 | G72: 0 | H72: 0 | I72: 0 | J72: 0 | K72: 0
A73: 8 | B73: =SQRT(B37+B49+B61) -> 0 | C73: 0.2 | D73: 0.2236067977 | E73: 0 | F73: 0 | G73: 0 | H73: 0 | I73: 0 | J73: 0 | K73: 0
A74: 9 | B74: =SQRT(B38+B50+B62) -> 0 | C74: 0.2 | D74: 0.2236067977 | E74: 0 | F74: 0 | G74: 0 | H74: 0 | I74: 0 | J74: 0 | K74: 0
A75: 10 | B75: =SQRT(B39+B51+B63) -> 0 | C75: 0.2 | D75: 0.2236067977 | E75: 0 | F75: 0 | G75: 0 | H75: 0 | I75: 0 | J75: 0 | K75: 0
A78: 0 | B78: 1 | C78: 1 | D78: 1 | E78: 1 | F78: 1 | G78: 1 | H78: 1 | I78: 1 | J78: 1 | K78: 1
A79: 1 | B79: =$B$4*(B66=0)+$B$5*EXP(-3*B66) -> 145 | C79: =$B$4*(C66=0)+$B$5*EXP(-3*C66) -> 74.08957087 | D79: 69.02400794 | E79: 145 | F79: 145 | G79: 145 | H79: 145 | I79: 145 | J79: 145 | K79: 145
A80: 1 | B80: =$B$4*(B67=0)+$B$5*EXP(-3*B67) -> 74.08957087 | C80: 145 | D80: 69.02400794 | E80: 74.08957087 | F80: 74.08957087 | G80: 74.08957087 | H80: 74.08957087 | I80: 74.08957087 | J80: 74.08957087 | K80: 74.08957087
A81: 1 | B81: =$B$4*(B68=0)+$B$5*EXP(-3*B68) -> 69.02400794 | C81: 69.02400794 | D81: 145 | E81: 69.02400794 | F81: 69.02400794 | G81: 69.02400794 | H81: 69.02400794 | I81: 69.02400794 | J81: 69.02400794 | K81: 69.02400794
A82: 1 | B82: =$B$4*(B69=0)+$B$5*EXP(-3*B69) -> 145 | C82: 74.08957087 | D82: 69.02400794 | E82: 145 | F82: 145 | G82: 145 | H82: 145 | I82: 145 | J82: 145 | K82: 145 | L82: Matrice K augmentée
A83: 1 | B83: =$B$4*(B70=0)+$B$5*EXP(-3*B70) -> 145 | C83: 74.08957087 | D83: 69.02400794 | E83: 145 | F83: 145 | G83: 145 | H83: 145 | I83: 145 | J83: 145 | K83: 145
A84: 1 | B84: =$B$4*(B71=0)+$B$5*EXP(-3*B71) -> 145 | C84: 74.08957087 | D84: 69.02400794 | E84: 145 | F84: 145 | G84: 145 | H84: 145 | I84: 145 | J84: 145 | K84: 145
A85: 1 | B85: =$B$4*(B72=0)+$B$5*EXP(-3*B72) -> 145 | C85: 74.08957087 | D85: 69.02400794 | E85: 145 | F85: 145 | G85: 145 | H85: 145 | I85: 145 | J85: 145 | K85: 145
A86: 1 | B86: =$B$4*(B73=0)+$B$5*EXP(-3*B73) -> 145 | C86: 74.08957087 | D86: 69.02400794 | E86: 145 | F86: 145 | G86: 145 | H86: 145 | I86: 145 | J86: 145 | K86: 145
A87: 1 | B87: =$B$4*(B74=0)+$B$5*EXP(-3*B74) -> 145 | C87: 74.08957087 | D87: 69.02400794 | E87: 145 | F87: 145 | G87: 145 | H87: 145 | I87: 145 | J87: 145 | K87: 145
A88: 1 | B88: =$B$4*(B75=0)+$B$5*EXP(-3*B75) -> 145 | C88: 74.08957087 | D88: 69.02400794 | E88: 145 | F88: 145 | G88: 145 | H88: 145 | I88: 145 | J88: 145 | K88: 145
A90: Kinv
A91: =MINVERSE(A78:OFFSET(A78,$B$14,$B$14)) -> -95.45054561 | B91: 0.3260862612 | C91: 0.3260862612 | D91: 0.3478274775
A92: 0.3260862612 | B92: 0.009197131233 | C92: -0.004905166727 | D92: -0.004291964506
A93: 0.3260862612 | B93: -0.004905166727 | C93: 0.009197131233 | D93: -0.004291964506
A94: 0.3478274775 | B94: -0.004291964506 | C94: -0.004291964506 | D94: 0.008583929011
L95: Inverse de K augmentée

Sheet KO-Gaussien
A1: Krigeage ordinaire modèle gaussien
A3: Variogramme gaussien | D3: Variance des valeurs estimées | E3: Variance d'estimation | F3: Somme
A4: C0 | B4: 5 | D4: =MMULT(MMULT(TRANSPOSE(E17:OFFSET(E16,$B$14,0)),B79:OFFSET(A78,$B$14,$B$14)),E17:OFFSET(E16,$B$14,0)) -> 5.889767885 | E4: =B4+B5-MMULT(TRANSPOSE(E16:OFFSET(E16,$B$14,0)),H16:OFFSET(H16,$B14,0)) -> 10.60725475 | F4: =D4+E4 -> 16.49702264
A5: C | B5: 10
A6: ax | B6: 10
A7: ay | B7: 30
A8: az | B8: 10
A10: Point à estimer
B11: x | C11: y | D11: z
A12: x0 | B12: 0 | C12: 0 | D12: 0
A14: Nombre de points à utiliser | B14: 7
A15: Points connus | E15: Poids calculés par KO | G15: h(xi,x0) | H15: k0
A16: xi | B16: x | C16: y | D16: z | E16: =MMULT(A91:OFFSET(A91,$B$14,$B$14),H16:OFFSET(H16,$B$14,0)) -> -0.7485113178 | F16: Multiplicateur de Lagrange | H16: 1
A17: 1 | B17: 0 | C17: 10 | D17: 0 | E17: 0.4287770795 | G17: =SQRT(((B17-$B$12)/$B$6)^2+((C17-$C$12)/$B$7)^2+((D17-$D$12)/$B$8)^2) -> 0.3333333333 | H17: =$B$4*(G17=0)+$B$5*EXP(-3*G17^2) -> 7.165313106
A18: 2 | B18: 4 | C18: 0 | D18: 0 | E18: 0.3340775556 | G18: =SQRT(((B18-$B$12)/$B$6)^2+((C18-$C$12)/$B$7)^2+((D18-$D$12)/$B$8)^2) -> 0.4 | H18: =$B$4*(G18=0)+$B$5*EXP(-3*G18^2) -> 6.187833918
A19: 3 | B19: 13 | C19: -4 | D19: 3 | E19: 0.03778623699 | G19: 1.340812357 | H19: 0.04546792074
A20: 4 | B20: 23 | C20: -3 | D20: -5 | E20: 0.04968647143 | G20: 2.355843798 | H20: 5.87485127e-07
A21: 5 | B21: 31 | C21: -7 | D21: 8 | E21: 0.04987113633 | G21: 3.210053651 | H21: 3.754135261e-13
A22: 6 | B22: -11 | C22: 8 | D22: 21 | E22: 0.04990076598 | G22: 2.385604978 | H22: 3.847206924e-07
A23: 7 | B23: -22 | C23: 15 | D23: 43 | E23: 0.04990075415 | G23: 4.855924217 | H23: 1.896742389e-30
A24: 8 | B24: 43 | C24: 6 | D24: -51 | G24: 6.673829485 | H24: 9.323335833e-58
A25: 9 | B25: -33 | C25: 2 | D25: -20 | G25: 3.859332124 | H25: 3.92893551e-19
A26: 10 | B26: -34 | C26: 25 | D26: 32 | G26: 4.742830847 | H26: 4.924483798e-29
E27: =SUM(E17:E26) -> 1 | F27: Somme des poids
A29: hx^2 | B29: =TRANSPOSE(B17:INDIRECT(_xlfn.CONCAT("B",$B$14+16))/$B$6) -> 0 | C29: 0.4 | D29: 1.3 | E29: 2.3 | F29: 3.1 | G29: -1.1 | H29: -2.2
A30: =(B17:INDIRECT(_xlfn.CONCAT("B",$B$14+16))/$B$6) -> 0 | B30: =((B$29-$A30))^2 -> 0 | C30: =((C$29-$A30))^2 -> 0.16 | D30: 1.69 | E30: 5.29 | F30: 9.61 | G30: 1.21 | H30: 4.84 | I30: 0 | J30: 0 | K30: 0
A31: 0.4 | B31: =((B$29-$A31))^2 -> 0.16 | C31: 0 | D31: 0.81 | E31: 3.61 | F31: 7.29 | G31: 2.25 | H31: 6.76 | I31: 0.16 | J31: 0.16 | K31: 0.16
A32: 1.3 | B32: 1.69 | C32: 0.81 | D32: 0 | E32: 1 | F32: 3.24 | G32: 5.76 | H32: 12.25 | I32: 1.69 | J32: 1.69 | K32: 1.69
A33: 2.3 | B33: 5.29 | C33: 3.61 | D33: 1 | E33: 0 | F33: 0.64 | G33: 11.56 | H33: 20.25 | I33: 5.29 | J33: 5.29 | K33: 5.29
A34: 3.1 | B34: 9.61 | C34: 7.29 | D34: 3.24 | E34: 0.64 | F34: 0 | G34: 17.64 | H34: 28.09 | I34: 9.61 | J34: 9.61 | K34: 9.61
A35: -1.1 | B35: 1.21 | C35: 2.25 | D35: 5.76 | E35: 11.56 | F35: 17.64 | G35: 0 | H35: 1.21 | I35: 1.21 | J35: 1.21 | K35: 1.21
A36: -2.2 | B36: 4.84 | C36: 6.76 | D36: 12.25 | E36: 20.25 | F36: 28.09 | G36: 1.21 | H36: 0 | I36: 4.84 | J36: 4.84 | K36: 4.84
B37: 0 | C37: 0.16 | D37: 1.69 | E37: 5.29 | F37: 9.61 | G37: 1.21 | H37: 4.84 | I37: 0 | J37: 0 | K37: 0
B38: 0 | C38: 0.16 | D38: 1.69 | E38: 5.29 | F38: 9.61 | G38: 1.21 | H38: 4.84 | I38: 0 | J38: 0 | K38: 0
B39: 0 | C39: 0.16 | D39: 1.69 | E39: 5.29 | F39: 9.61 | G39: 1.21 | H39: 4.84 | I39: 0 | J39: 0 | K39: 0
A41: hy^2 | B41: =TRANSPOSE(C17:INDIRECT(_xlfn.CONCAT("C",$B$14+16))/$B$7) -> 0.3333333333 | C41: 0 | D41: -0.1333333333 | E41: -0.1 | F41: -0.2333333333 | G41: 0.2666666667 | H41: 0.5
A42: =(C17:INDIRECT(_xlfn.CONCAT("C",$B$14+16))/$B$7) -> 0.3333333333 | B42: =((B$41-$A42))^2 -> 0 | C42: =((C$41-$A42))^2 -> 0.1111111111 | D42: 0.2177777778 | E42: 0.1877777778 | F42: 0.3211111111 | G42: 0.004444444444 | H42: 0.02777777778 | I42: 0.1111111111 | J42: 0.1111111111 | K42: 0.1111111111
A43: 0 | B43: =((B$41-$A43))^2 -> 0.1111111111 | C43: 0 | D43: 0.01777777778 | E43: 0.01 | F43: 0.05444444444 | G43: 0.07111111111 | H43: 0.25 | I43: 0 | J43: 0 | K43: 0
A44: -0.1333333333 | B44: 0.2177777778 | C44: 0.01777777778 | D44: 0 | E44: 0.001111111111 | F44: 0.01 | G44: 0.16 | H44: 0.4011111111 | I44: 0.01777777778 | J44: 0.01777777778 | K44: 0.01777777778
A45: -0.1 | B45: 0.1877777778 | C45: 0.01 | D45: 0.001111111111 | E45: 0 | F45: 0.01777777778 | G45: 0.1344444444 | H45: 0.36 | I45: 0.01 | J45: 0.01 | K45: 0.01
A46: -0.2333333333 | B46: 0.3211111111 | C46: 0.05444444444 | D46: 0.01 | E46: 0.01777777778 | F46: 0 | G46: 0.25 | H46: 0.5377777778 | I46: 0.05444444444 | J46: 0.05444444444 | K46: 0.05444444444
A47: 0.2666666667 | B47: 0.004444444444 | C47: 0.07111111111 | D47: 0.16 | E47: 0.1344444444 | F47: 0.25 | G47: 0 | H47: 0.05444444444 | I47: 0.07111111111 | J47: 0.07111111111 | K47: 0.07111111111
A48: 0.5 | B48: 0.02777777778 | C48: 0.25 | D48: 0.4011111111 | E48: 0.36 | F48: 0.5377777778 | G48: 0.05444444444 | H48: 0 | I48: 0.25 | J48: 0.25 | K48: 0.25
B49: 0.1111111111 | C49: 0 | D49: 0.01777777778 | E49: 0.01 | F49: 0.05444444444 | G49: 0.07111111111 | H49: 0.25 | I49: 0 | J49: 0 | K49: 0
B50: 0.1111111111 | C50: 0 | D50: 0.01777777778 | E50: 0.01 | F50: 0.05444444444 | G50: 0.07111111111 | H50: 0.25 | I50: 0 | J50: 0 | K50: 0
B51: 0.1111111111 | C51: 0 | D51: 0.01777777778 | E51: 0.01 | F51: 0.05444444444 | G51: 0.07111111111 | H51: 0.25 | I51: 0 | J51: 0 | K51: 0
A53: hz^2 | B53: =TRANSPOSE(D17:INDIRECT(_xlfn.CONCAT("D",$B$14+16))/$B$8) -> 0 | C53: 0 | D53: 0.3 | E53: -0.5 | F53: 0.8 | G53: 2.1 | H53: 4.3
A54: =(D17:INDIRECT(_xlfn.CONCAT("D",$B$14+16))/$B$8) -> 0 | B54: =(B$53-$A54)^2 -> 0 | C54: =(C$53-$A54)^2 -> 0 | D54: 0.09 | E54: 0.25 | F54: 0.64 | G54: 4.41 | H54: 18.49 | I54: 0 | J54: 0 | K54: 0
A55: 0 | B55: =(B$53-$A55)^2 -> 0 | C55: 0 | D55: 0.09 | E55: 0.25 | F55: 0.64 | G55: 4.41 | H55: 18.49 | I55: 0 | J55: 0 | K55: 0
A56: 0.3 | B56: 0.09 | C56: 0.09 | D56: 0 | E56: 0.64 | F56: 0.25 | G56: 3.24 | H56: 16 | I56: 0.09 | J56: 0.09 | K56: 0.09
A57: -0.5 | B57: 0.25 | C57: 0.25 | D57: 0.64 | E57: 0 | F57: 1.69 | G57: 6.76 | H57: 23.04 | I57: 0.25 | J57: 0.25 | K57: 0.25
A58: 0.8 | B58: 0.64 | C58: 0.64 | D58: 0.25 | E58: 1.69 | F58: 0 | G58: 1.69 | H58: 12.25 | I58: 0.64 | J58: 0.64 | K58: 0.64
A59: 2.1 | B59: 4.41 | C59: 4.41 | D59: 3.24 | E59: 6.76 | F59: 1.69 | G59: 0 | H59: 4.84 | I59: 4.41 | J59: 4.41 | K59: 4.41
A60: 4.3 | B60: 18.49 | C60: 18.49 | D60: 16 | E60: 23.04 | F60: 12.25 | G60: 4.84 | H60: 0 | I60: 18.49 | J60: 18.49 | K60: 18.49
B61: 0 | C61: 0 | D61: 0.09 | E61: 0.25 | F61: 0.64 | G61: 4.41 | H61: 18.49 | I61: 0 | J61: 0 | K61: 0
B62: 0 | C62: 0 | D62: 0.09 | E62: 0.25 | F62: 0.64 | G62: 4.41 | H62: 18.49 | I62: 0 | J62: 0 | K62: 0
B63: 0 | C63: 0 | D63: 0.09 | E63: 0.25 | F63: 0.64 | G63: 4.41 | H63: 18.49 | I63: 0 | J63: 0 | K63: 0
A65: h | B65: 1 | C65: 2 | D65: 3 | E65: 4 | F65: 5 | G65: 6 | H65: 7 | I65: 8 | J65: 9 | K65: 10
A66: 1 | B66: =SQRT(B30+B42+B54) -> 0 | C66: =SQRT(C30+C42+C54) -> 0.5206833117 | D66: 1.41342767 | E66: 2.393277622 | F66: 3.251324516 | G66: 2.371591121 | H66: 4.832988493 | I66: 0.3333333333 | J66: 0.3333333333 | K66: 0.3333333333
A67: 2 | B67: =SQRT(B31+B43+B55) -> 0.5206833117 | C67: 0 | D67: 0.9580071909 | E67: 1.967231557 | F67: 2.825675927 | G67: 2.594438496 | H67: 5.049752469 | I67: 0.4 | J67: 0.4 | K67: 0.4
A68: 3 | B68: 1.41342767 | C68: 0.9580071909 | D68: 0 | E68: 1.28105859 | F68: 1.870828693 | G68: 3.02654919 | H68: 5.352673268 | I68: 1.340812357 | J68: 1.340812357 | K68: 1.340812357
A69: 4 | B69: 2.393277622 | C69: 1.967231557 | D69: 1.28105859 | E69: 0 | F69: 1.532245991 | G69: 4.295863644 | H69: 6.606814664 | I69: 2.355843798 | J69: 2.355843798 | K69: 2.355843798
A70: 5 | B70: 3.251324516 | C70: 2.825675927 | D70: 1.870828693 | E70: 1.532245991 | F70: 0 | G70: 4.424929378 | H70: 6.393573162 | I70: 3.210053651 | J70: 3.210053651 | K70: 3.210053651
A71: 6 | B71: 2.371591121 | C71: 2.594438496 | D71: 3.02654919 | E71: 4.295863644 | F71: 4.424929378 | G71: 0 | H71: 2.470717395 | I71: 2.385604978 | J71: 2.385604978 | K71: 2.385604978
A72: 7 | B72: 4.832988493 | C72: 5.049752469 | D72: 5.352673268 | E72: 6.606814664 | F72: 6.393573162 | G72: 2.470717395 | H72: 0 | I72: 4.855924217 | J72: 4.855924217 | K72: 4.855924217
A73: 8 | B73: 0.3333333333 | C73: 0.4 | D73: 1.340812357 | E73: 2.355843798 | F73: 3.210053651 | G73: 2.385604978 | H73: 4.855924217 | I73: 0 | J73: 0 | K73: 0
A74: 9 | B74: 0.3333333333 | C74: 0.4 | D74: 1.340812357 | E74: 2.355843798 | F74: 3.210053651 | G74: 2.385604978 | H74: 4.855924217 | I74: 0 | J74: 0 | K74: 0
A75: 10 | B75: 0.3333333333 | C75: 0.4 | D75: 1.340812357 | E75: 2.355843798 | F75: 3.210053651 | G75: 2.385604978 | H75: 4.855924217 | I75: 0 | J75: 0 | K75: 0
A78: 0 | B78: 1 | C78: 1 | D78: 1 | E78: 1 | F78: 1 | G78: 1 | H78: 1 | I78: 1 | J78: 1 | K78: 1
A79: 1 | B79: =$B$4*(B66=0)+$B$5*EXP(-3*B66^2) -> 15 | C79: =$B$4*(C66=0)+$B$5*EXP(-3*C66^2) -> 4.433776747 | D79: 0.02495332397 | E79: 3.446459288e-07 | F79: 1.686841708e-13 | G79: 4.698989148e-07 | H79: 3.694349719e-30 | I79: 7.165313106 | J79: 7.165313106 | K79: 7.165313106
A80: 1 | B80: =$B$4*(B67=0)+$B$5*EXP(-3*B67^2) -> 4.433776747 | C80: 15 | D80: 0.637151231 | E80: 9.074883639e-05 | F80: 3.955482889e-10 | G80: 1.698817641e-08 | H80: 5.976846943e-33 | I80: 6.187833918 | J80: 6.187833918 | K80: 6.187833918
A81: 1 | B81: =$B$4*(B68=0)+$B$5*EXP(-3*B68^2) -> 0.02495332397 | C81: 0.637151231 | D81: 15 | E81: 0.07274840916 | F81: 0.0002753644935 | G81: 1.163021216e-11 | H81: 4.687503793e-37 | I81: 0.04546792074 | J81: 0.04546792074 | K81: 0.04546792074
A82: 1 | B82: =$B$4*(B69=0)+$B$5*EXP(-3*B69^2) -> 3.446459288e-07 | C82: 9.074883639e-05 | D82: 0.07274840916 | E82: 15 | F82: 0.008732110024 | G82: 9.036699349e-24 | H82: 1.346286822e-56 | I82: 5.87485127e-07 | J82: 5.87485127e-07 | K82: 5.87485127e-07 | L82: Matrice K augmentée
A83: 1 | B83: =$B$4*(B70=0)+$B$5*EXP(-3*B70^2) -> 1.686841708e-13 | C83: 3.955482889e-10 | D83: 0.0002753644935 | E83: 0.008732110024 | F83: 15 | G83: 3.08703912e-25 | H83: 5.508331082e-53 | I83: 3.754135261e-13 | J83: 3.754135261e-13 | K83: 3.754135261e-13
A84: 1 | B84: =$B$4*(B71=0)+$B$5*EXP(-3*B71^2) -> 4.698989148e-07 | C84: 1.698817641e-08 | D84: 1.163021216e-11 | E84: 9.036699349e-24 | F84: 3.08703912e-25 | G84: 15 | H84: 1.113320967e-07 | I84: 3.847206924e-07 | J84: 3.847206924e-07 | K84: 3.847206924e-07
A85: 1 | B85: =$B$4*(B72=0)+$B$5*EXP(-3*B72^2) -> 3.694349719e-30 | C85: 5.976846943e-33 | D85: 4.687503793e-37 | E85: 1.346286822e-56 | F85: 5.508331082e-53 | G85: 1.113320967e-07 | H85: 15 | I85: 1.896742389e-30 | J85: 1.896742389e-30 | K85: 1.896742389e-30
A86: 1 | B86: =$B$4*(B73=0)+$B$5*EXP(-3*B73^2) -> 7.165313106 | C86: 6.187833918 | D86: 0.04546792074 | E86: 5.87485127e-07 | F86: 3.754135261e-13 | G86: 3.847206924e-07 | H86: 1.896742389e-30 | I86: 15 | J86: 15 | K86: 15
A87: 1 | B87: =$B$4*(B74=0)+$B$5*EXP(-3*B74^2) -> 7.165313106 | C87: 6.187833918 | D87: 0.04546792074 | E87: 5.87485127e-07 | F87: 3.754135261e-13 | G87: 3.847206924e-07 | H87: 1.896742389e-30 | I87: 15 | J87: 15 | K87: 15
A88: 1 | B88: =$B$4*(B75=0)+$B$5*EXP(-3*B75^2) -> 7.165313106 | C88: 6.187833918 | D88: 0.04546792074 | E88: 5.87485127e-07 | F88: 3.754135261e-13 | G88: 3.847206924e-07 | H88: 1.896742389e-30 | I88: 15 | J88: 15 | K88: 15
A90: Kinv
A91: =MINVERSE(A78:OFFSET(A78,$B$14,$B$14)) -> -2.31911341 | B91: 0.1211112795 | C91: 0.1124840253 | D91: 0.1488794043 | E91: 0.1537948784 | F91: 0.1545152973 | G91: 0.1546075556 | H91: 0.1546075595
A92: 0.1211112795 | B92: 0.06673370722 | C92: -0.02750313568 | D92: -0.006977737822 | E92: -0.008035381697 | F92: -0.008069279481 | G92: -0.008074087299 | H92: -0.008074085239
A93: 0.1124840253 | B93: -0.02750313568 | C93: 0.06773455332 | D93: -0.01029408033 | E93: -0.007445056179 | F93: -0.007494411979 | G93: -0.007498934182 | H93: -0.007498934967
A94: 0.1488794043 | B94: -0.006977737822 | C94: -0.01029408033 | D94: 0.05723987675 | E94: -0.01019706344 | F94: -0.009920408285 | G94: -0.009925293318 | H94: -0.009925293548
A95: 0.1537948784 | B95: -0.008035381697 | C95: -0.007445056179 | D95: -0.01019706344 | E95: 0.05646916239 | F95: -0.0102856777 | G95: -0.01025299156 | H95: -0.01025299182 | L95: Inverse de K augmentée
A96: 0.1545152973 | B96: -0.008069279481 | C96: -0.007494411979 | D96: -0.009920408285 | E96: -0.0102856777 | F96: 0.05637181667 | G96: -0.01030101948 | H96: -0.01030101975
A97: 0.1546075556 | B97: -0.008074087299 | C97: -0.007498934182 | D97: -0.009925293318 | E97: -0.01025299156 | F97: -0.01030101948 | G97: 0.05635949663 | H97: -0.01030717079
A98: 0.1546075595 | B98: -0.008074085239 | C98: -0.007498934967 | D98: -0.009925293548 | E98: -0.01025299182 | F98: -0.01030101975 | G98: -0.01030717079 | H98: 0.05635949611
